Workbook

Sheet Kalkulator (hidden)
A1: Podaj Datę | C1: Typ kontraktu | F1: typ
A2: ='Kalkulator Depozytów'!F12 -> 00:00:00 | C2: GAS_BASE
AB3: ile < 0 | AC3: ile > 0 | AD3: minimalne >0 | AE3: maksymalne <0
AB4: =COUNTIF(Z8:Z39,"<0") -> 32 | AC4: =COUNTIF(AA8:AA39,"<0") -> 32 | AD4: =SMALL(Z8:Z39,AB4+1) ->  | AE4: =SMALL(AA8:AA39,AC4) -> -428
P5: Suma Depozytów | AG5: różnica | AH5: ile dodać?
P6: =SUM(P8:P29) -> 0 | Q6: =SUM(Q8:Q29)*'Kalkulator Depozytów'!F14 ->  | Z6: miejsce na date początkową | AA6: miejsce na datę końcową | AD6: =VLOOKUP(AD4,Z8:AC39,4,0) ->  | AE6: =VLOOKUP(AE4,AA8:AC39,3,0) -> 32 | AG6: =AD6-AE6+1 -> 
A7: Początek | B7: Koniec | C7: Nominał | D7: Wolumen Kupna | E7: ŚWKK | F7: Wolumen Sprzedaży | G7: ŚWWS | H7: Kurs Rozliczeniowy | I7: Współczynnik Ryzyka | J7: godziny czas letni/zimowy | K7: Dni | M7: Liczba dni roboczych | N7: Liczba dnia świątecznych | P7: Depozyt uzupełniający | Q7: Depozyt wstępny | R7: VAT | Z7: 2029-01-01 | AA7: 2029-12-31 | AE7: 10 | AK7: data koniec | AP7: czy święto | AU7: sum jeżeli
A8: 2025-09-20 | B8: 2025-09-20 | C8: =IF($C$2="GAS_BASE",(B8-A8+1)*koszyki!$A$14+J8,IF($C$2="OFFPEAK",M8*koszyki!$A$14+(N8)*24+J8,IF($C$2="BASE5",M8*koszyki!$A$14+J8,IF($C$2="PEAK7",(B8-A8+1)*koszyki!$A$14,M8*koszyki!$A$14)))) -> 24 | D8: ='Kalkulator Depozytów'!M13 -> 0 | E8: ='Kalkulator Depozytów'!N13 -> 0 | F8: ='Kalkulator Depozytów'!O13 -> 0 | G8: ='Kalkulator Depozytów'!P13 -> 0 | H8: ='Kalkulator Depozytów'!Q13 -> 0 | I8: =ROUND(AVERAGE(INDIRECT("krzywa!C"&MATCH(A8-$A$2,krzywa!A:A,0)&":C"&MATCH(B8-$A$2,krzywa!A:A,0),TRUE)),4) ->  | K8: =IF(-($A$2-B8)<364,-($A$2-B8),365) -> 365 | L8: GAS_BASE | M8: =NETWORKDAYS(A8,B8,koszyki!$M$20:$M$89) -> 0 | N8: =B8-A8+1- NETWORKDAYS(A8,B8,koszyki!$M$20:$M$89) -> 1 | P8: =C8*(D8*(H8-E8)-F8*(H8-G8))*T8 -> 0 | Q8: =-C8*ABS(D8-F8)*H8*I8*T8 ->  | R8: =VLOOKUP(A8,krzywa!L:N,3,1) -> 0 | S8: =VLOOKUP(B8,krzywa!L:N,3,1) -> 0 | T8: =IF('Kalkulator Depozytów'!$B$35=TRUE,1,(1+R8/100)*V8+(1+S8/100)*(1-V8)) -> 1 | U8: =IF(R8<>S8,VLOOKUP(A8,krzywa!L:N,2,1)) -> FALSE | V8: =IF(U8<>FALSE,IF($C$2="GAS_BASE",(U8-A8+1)*koszyki!$A$14+J8,IF($C$2="OFFPEAK",M8*koszyki!$A$14+(N8)*24+J8,IF($C$2="BASE5",M8*koszyki!$A$14+J8,IF($C$2="PEAK7",(B8-A8+1)*koszyki!$A$14,M8*koszyki!$A$14))))/B8,1) -> 1 | Z8: =AD8-$Z$7 -> -5755 | AA8: =AD8-$AA$7 -> -6119 | AC8: 1 | AD8: 2013-03-31 | AE8: -1 | AK8: =B8 -> 2025-09-20 | AL8: =AK8-1 -> 2025-09-19 | AM8: =AL8-1 -> 2025-09-18 | AN8: =AM8-1 -> 2025-09-17 | AP8: =NETWORKDAYS(AK8,AK8,koszyki!$M$20:$M$89) -> 0 | AQ8: =NETWORKDAYS(AL8,AL8,koszyki!$M$20:$M$89) -> 1 | AR8: =NETWORKDAYS(AM8,AM8,koszyki!$M$20:$M$89) -> 1 | AS8: =NETWORKDAYS(AN8,AN8,koszyki!$M$20:$M$89) -> 1 | AU8: =SUM(AP8) -> 0 | AV8: =SUM(AP8:AQ8) -> 1 | AW8: =SUM(AP8:AR8) -> 2 | AX8: =SUM(AP8:AS8) -> 3 | AZ8: =COUNTIF(AU8:AX8,"=0") -> 1
A9: 2025-09-21 | B9: 2025-09-21 | C9: =IF($C$2="GAS_BASE",(B9-A9+1)*koszyki!$A$14+J9,IF($C$2="OFFPEAK",M9*koszyki!$A$14+(N9)*24+J9,IF($C$2="BASE5",M9*koszyki!$A$14+J9,IF($C$2="PEAK7",(B9-A9+1)*koszyki!$A$14,M9*koszyki!$A$14)))) -> 24 | D9: ='Kalkulator Depozytów'!M14 -> 0 | E9: ='Kalkulator Depozytów'!N14 -> 0 | F9: ='Kalkulator Depozytów'!O14 -> 0 | G9: ='Kalkulator Depozytów'!P14 -> 0 | H9: ='Kalkulator Depozytów'!Q14 -> 0 | I9: =ROUND(AVERAGE(INDIRECT("krzywa!C"&MATCH(A9-$A$2,krzywa!A:A,0)&":C"&MATCH(B9-$A$2,krzywa!A:A,0),TRUE)),4) ->  | K9: =IF(-($A$2-B9)<364,-($A$2-B9),365) -> 365 | L9: GAS_BASE | M9: =NETWORKDAYS(A9,B9,koszyki!$M$20:$M$89) -> 0 | N9: =B9-A9+1- NETWORKDAYS(A9,B9,koszyki!$M$20:$M$89) -> 1 | P9: =C9*(D9*(H9-E9)-F9*(H9-G9))*T9 -> 0 | Q9: =-C9*ABS(D9-F9)*H9*I9*T9 ->  | R9: =VLOOKUP(A9,krzywa!L:N,3,1) -> 0 | S9: =VLOOKUP(B9,krzywa!L:N,3,1) -> 0 | T9: =IF('Kalkulator Depozytów'!$B$35=TRUE,1,(1+R9/100)*V9+(1+S9/100)*(1-V9)) -> 1 | U9: =IF(R9<>S9,VLOOKUP(A9,krzywa!L:N,2,1)) -> FALSE | V9: =IF(U9<>FALSE,IF($C$2="GAS_BASE",(U9-A9+1)*koszyki!$A$14+J9,IF($C$2="OFFPEAK",M9*koszyki!$A$14+(N9)*24+J9,IF($C$2="BASE5",M9*koszyki!$A$14+J9,IF($C$2="PEAK7",(B9-A9+1)*koszyki!$A$14,M9*koszyki!$A$14))))/B9,1) -> 1 | Z9: =AD9-$Z$7 -> -5545 | AA9: =AD9-$AA$7 -> -5909 | AC9: 2 | AD9: 2013-10-27 | AE9: 1 | AK9: =B9 -> 2025-09-21 | AL9: =AK9-1 -> 2025-09-20 | AM9: 2025-09-19 | AN9: 2025-09-18 | AP9: =NETWORKDAYS(AK9,AK9,koszyki!$M$20:$M$89) -> 0 | AQ9: =NETWORKDAYS(AL9,AL9,koszyki!$M$20:$M$89) -> 0 | AR9: =NETWORKDAYS(AM9,AM9,koszyki!$M$20:$M$89) -> 1 | AS9: =NETWORKDAYS(AN9,AN9,koszyki!$M$20:$M$89) -> 1 | AU9: =SUM(AP9) -> 0 | AV9: =SUM(AP9:AQ9) -> 0 | AW9: =SUM(AP9:AR9) -> 1 | AX9: =SUM(AP9:AS9) -> 2 | AZ9: =COUNTIF(AU9:AX9,"=0") -> 2
A10: 2025-09-22 | B10: 2025-09-22 | C10: =IF($C$2="GAS_BASE",(B10-A10+1)*koszyki!$A$14+J10,IF($C$2="OFFPEAK",M10*koszyki!$A$14+(N10)*24+J10,IF($C$2="BASE5",M10*koszyki!$A$14+J10,IF($C$2="PEAK7",(B10-A10+1)*koszyki!$A$14,M10*koszyki!$A$14)))) -> 24 | D10: ='Kalkulator Depozytów'!M15 -> 0 | E10: ='Kalkulator Depozytów'!N15 -> 0 | F10: ='Kalkulator Depozytów'!O15 -> 0 | G10: ='Kalkulator Depozytów'!P15 -> 0 | H10: ='Kalkulator Depozytów'!Q15 -> 0 | I10: =ROUND(AVERAGE(INDIRECT("krzywa!C"&MATCH(A10-$A$2,krzywa!A:A,0)&":C"&MATCH(B10-$A$2,krzywa!A:A,0),TRUE)),4) ->  | K10: 365 | L10: GAS_BASE | M10: =NETWORKDAYS(A10,B10,koszyki!$M$20:$M$89) -> 1 | N10: =B10-A10+1- NETWORKDAYS(A10,B10,koszyki!$M$20:$M$89) -> 0 | P10: 0 | R10: =VLOOKUP(A10,krzywa!L:N,3,1) -> 0 | S10: =VLOOKUP(B10,krzywa!L:N,3,1) -> 0 | T10: =IF('Kalkulator Depozytów'!$B$35=TRUE,1,(1+R10/100)*V10+(1+S10/100)*(1-V10)) -> 1 | U10: =IF(R10<>S10,VLOOKUP(A10,krzywa!L:N,2,1)) -> FALSE | V10: =IF(U10<>FALSE,IF($C$2="GAS_BASE",(U10-A10+1)*koszyki!$A$14+J10,IF($C$2="OFFPEAK",M10*koszyki!$A$14+(N10)*24+J10,IF($C$2="BASE5",M10*koszyki!$A$14+J10,IF($C$2="PEAK7",(B10-A10+1)*koszyki!$A$14,M10*koszyki!$A$14))))/B10,1) -> 1 | Z10: -5391 | AA10: -5755 | AC10: 3 | AD10: 2014-03-30 | AE10: -1 | AK10: 2025-09-22 | AL10: =AK10-1 -> 2025-09-21 | AM10: 2025-09-20 | AN10: 2025-09-19 | AP10: =NETWORKDAYS(AK10,AK10,koszyki!$M$20:$M$89) -> 1 | AQ10: =NETWORKDAYS(AL10,AL10,koszyki!$M$20:$M$89) -> 0 | AR10: =NETWORKDAYS(AM10,AM10,koszyki!$M$20:$M$89) -> 0 | AS10: =NETWORKDAYS(AN10,AN10,koszyki!$M$20:$M$89) -> 1 | AU10: 1 | AV10: 1 | AW10: 1 | AX10: 2 | AZ10: 0
A11: 2025-09-23 | B11: 2025-09-23 | C11: =IF($C$2="GAS_BASE",(B11-A11+1)*koszyki!$A$14+J11,IF($C$2="OFFPEAK",M11*koszyki!$A$14+(N11)*24+J11,IF($C$2="BASE5",M11*koszyki!$A$14+J11,IF($C$2="PEAK7",(B11-A11+1)*koszyki!$A$14,M11*koszyki!$A$14)))) -> 24 | D11: ='Kalkulator Depozytów'!M16 -> 0 | E11: ='Kalkulator Depozytów'!N16 -> 0 | F11: ='Kalkulator Depozytów'!O16 -> 0 | G11: ='Kalkulator Depozytów'!P16 -> 0 | H11: ='Kalkulator Depozytów'!Q16 -> 0 | I11: =ROUND(AVERAGE(INDIRECT("krzywa!C"&MATCH(A11-$A$2,krzywa!A:A,0)&":C"&MATCH(B11-$A$2,krzywa!A:A,0),TRUE)),4) ->  | K11: 365 | L11: GAS_BASE | M11: =NETWORKDAYS(A11,B11,koszyki!$M$20:$M$89) -> 1 | N11: =B11-A11+1- NETWORKDAYS(A11,B11,koszyki!$M$20:$M$89) -> 0 | P11: 0 | R11: =VLOOKUP(A11,krzywa!L:N,3,1) -> 0 | S11: =VLOOKUP(B11,krzywa!L:N,3,1) -> 0 | T11: =IF('Kalkulator Depozytów'!$B$35=TRUE,1,(1+R11/100)*V11+(1+S11/100)*(1-V11)) -> 1 | U11: =IF(R11<>S11,VLOOKUP(A11,krzywa!L:N,2,1)) -> FALSE | V11: =IF(U11<>FALSE,IF($C$2="GAS_BASE",(U11-A11+1)*koszyki!$A$14+J11,IF($C$2="OFFPEAK",M11*koszyki!$A$14+(N11)*24+J11,IF($C$2="BASE5",M11*koszyki!$A$14+J11,IF($C$2="PEAK7",(B11-A11+1)*koszyki!$A$14,M11*koszyki!$A$14))))/B11,1) -> 1 | Z11: -5181 | AA11: -5545 | AC11: 4 | AD11: 2014-10-26 | AE11: 1 | AK11: 2025-09-23 | AL11: =AK11-1 -> 2025-09-22 | AM11: 2025-09-21 | AN11: 2025-09-20 | AP11: =NETWORKDAYS(AK11,AK11,koszyki!$M$20:$M$89) -> 1 | AQ11: =NETWORKDAYS(AL11,AL11,koszyki!$M$20:$M$89) -> 1 | AR11: =NETWORKDAYS(AM11,AM11,koszyki!$M$20:$M$89) -> 0 | AS11: =NETWORKDAYS(AN11,AN11,koszyki!$M$20:$M$89) -> 0 | AU11: 1 | AV11: 2 | AW11: 2 | AX11: 2 | AZ11: 0
A12: 2025-09-24 | B12: 2025-09-24 | C12: =IF($C$2="GAS_BASE",(B12-A12+1)*koszyki!$A$14+J12,IF($C$2="OFFPEAK",M12*koszyki!$A$14+(N12)*24+J12,IF($C$2="BASE5",M12*koszyki!$A$14+J12,IF($C$2="PEAK7",(B12-A12+1)*koszyki!$A$14,M12*koszyki!$A$14)))) -> 24 | D12: ='Kalkulator Depozytów'!M17 -> 0 | E12: ='Kalkulator Depozytów'!N17 -> 0 | F12: ='Kalkulator Depozytów'!O17 -> 0 | G12: ='Kalkulator Depozytów'!P17 -> 0 | H12: ='Kalkulator Depozytów'!Q17 -> 0 | I12: =ROUND(AVERAGE(INDIRECT("krzywa!C"&MATCH(A12-$A$2,krzywa!A:A,0)&":C"&MATCH(B12-$A$2,krzywa!A:A,0),TRUE)),4) ->  | K12: 365 | L12: GAS_BASE | M12: =NETWORKDAYS(A12,B12,koszyki!$M$20:$M$89) -> 1 | N12: =B12-A12+1- NETWORKDAYS(A12,B12,koszyki!$M$20:$M$89) -> 0 | P12: 0 | R12: =VLOOKUP(A12,krzywa!L:N,3,1) -> 0 | S12: =VLOOKUP(B12,krzywa!L:N,3,1) -> 0 | T12: =IF('Kalkulator Depozytów'!$B$35=TRUE,1,(1+R12/100)*V12+(1+S12/100)*(1-V12)) -> 1 | U12: =IF(R12<>S12,VLOOKUP(A12,krzywa!L:N,2,1)) -> FALSE | V12: =IF(U12<>FALSE,IF($C$2="GAS_BASE",(U12-A12+1)*koszyki!$A$14+J12,IF($C$2="OFFPEAK",M12*koszyki!$A$14+(N12)*24+J12,IF($C$2="BASE5",M12*koszyki!$A$14+J12,IF($C$2="PEAK7",(B12-A12+1)*koszyki!$A$14,M12*koszyki!$A$14))))/B12,1) -> 1 | Z12: -5027 | AA12: -5391 | AC12: 5 | AD12: 2015-03-29 | AE12: -1 | AK12: 2025-09-24 | AL12: =AK12-1 -> 2025-09-23 | AM12: 2025-09-22 | AN12: 2025-09-21 | AP12: =NETWORKDAYS(AK12,AK12,koszyki!$M$20:$M$89) -> 1 | AQ12: =NETWORKDAYS(AL12,AL12,koszyki!$M$20:$M$89) -> 1 | AR12: =NETWORKDAYS(AM12,AM12,koszyki!$M$20:$M$89) -> 1 | AS12: =NETWORKDAYS(AN12,AN12,koszyki!$M$20:$M$89) -> 0 | AU12: 1 | AV12: 2 | AW12: 3 | AX12: 3 | AZ12: 0
A13: 2025-09-25 | B13: 2025-09-25 | C13: =IF($C$2="GAS_BASE",(B13-A13+1)*koszyki!$A$14+J13,IF($C$2="OFFPEAK",M13*koszyki!$A$14+(N13)*24+J13,IF($C$2="BASE5",M13*koszyki!$A$14+J13,IF($C$2="PEAK7",(B13-A13+1)*koszyki!$A$14,M13*koszyki!$A$14)))) -> 24 | D13: ='Kalkulator Depozytów'!M18 -> 0 | E13: ='Kalkulator Depozytów'!N18 -> 0 | F13: ='Kalkulator Depozytów'!O18 -> 0 | G13: ='Kalkulator Depozytów'!P18 -> 0 | H13: ='Kalkulator Depozytów'!Q18 -> 0 | I13: =ROUND(AVERAGE(INDIRECT("krzywa!C"&MATCH(A13-$A$2,krzywa!A:A,0)&":C"&MATCH(B13-$A$2,krzywa!A:A,0),TRUE)),4) ->  | K13: 365 | L13: GAS_BASE | M13: =NETWORKDAYS(A13,B13,koszyki!$M$20:$M$89) -> 1 | N13: =B13-A13+1- NETWORKDAYS(A13,B13,koszyki!$M$20:$M$89) -> 0 | P13: 0 | R13: =VLOOKUP(A13,krzywa!L:N,3,1) -> 0 | S13: =VLOOKUP(B13,krzywa!L:N,3,1) -> 0 | T13: =IF('Kalkulator Depozytów'!$B$35=TRUE,1,(1+R13/100)*V13+(1+S13/100)*(1-V13)) -> 1 | U13: =IF(R13<>S13,VLOOKUP(A13,krzywa!L:N,2,1)) -> FALSE | V13: =IF(U13<>FALSE,IF($C$2="GAS_BASE",(U13-A13+1)*koszyki!$A$14+J13,IF($C$2="OFFPEAK",M13*koszyki!$A$14+(N13)*24+J13,IF($C$2="BASE5",M13*koszyki!$A$14+J13,IF($C$2="PEAK7",(B13-A13+1)*koszyki!$A$14,M13*koszyki!$A$14))))/B13,1) -> 1 | Z13: -4817 | AA13: -5181 | AC13: 6 | AD13: 2015-10-25 | AE13: 1 | AK13: 2025-09-25 | AL13: =AK13-1 -> 2025-09-24 | AM13: 2025-09-23 | AN13: 2025-09-22 | AP13: =NETWORKDAYS(AK13,AK13,koszyki!$M$20:$M$89) -> 1 | AQ13: =NETWORKDAYS(AL13,AL13,koszyki!$M$20:$M$89) -> 1 | AR13: =NETWORKDAYS(AM13,AM13,koszyki!$M$20:$M$89) -> 1 | AS13: =NETWORKDAYS(AN13,AN13,koszyki!$M$20:$M$89) -> 1 | AU13: 1 | AV13: 2 | AW13: 3 | AX13: 4 | AZ13: 0
A14: 2025-09-26 | B14: 2025-09-26 | C14: =IF($C$2="GAS_BASE",(B14-A14+1)*koszyki!$A$14+J14,IF($C$2="OFFPEAK",M14*koszyki!$A$14+(N14)*24+J14,IF($C$2="BASE5",M14*koszyki!$A$14+J14,IF($C$2="PEAK7",(B14-A14+1)*koszyki!$A$14,M14*koszyki!$A$14)))) -> 24 | D14: ='Kalkulator Depozytów'!M19 -> 0 | E14: ='Kalkulator Depozytów'!N19 -> 0 | F14: ='Kalkulator Depozytów'!O19 -> 0 | G14: ='Kalkulator Depozytów'!P19 -> 0 | H14: ='Kalkulator Depozytów'!Q19 -> 0 | I14: =ROUND(AVERAGE(INDIRECT("krzywa!C"&MATCH(A14-$A$2,krzywa!A:A,0)&":C"&MATCH(B14-$A$2,krzywa!A:A,0),TRUE)),4) ->  | K14: 365 | L14: GAS_BASE | M14: =NETWORKDAYS(A14,B14,koszyki!$M$20:$M$89) -> 1 | N14: =B14-A14+1- NETWORKDAYS(A14,B14,koszyki!$M$20:$M$89) -> 0 | P14: 0 | R14: =VLOOKUP(A14,krzywa!L:N,3,1) -> 0 | S14: =VLOOKUP(B14,krzywa!L:N,3,1) -> 0 | T14: =IF('Kalkulator Depozytów'!$B$35=TRUE,1,(1+R14/100)*V14+(1+S14/100)*(1-V14)) -> 1 | U14: =IF(R14<>S14,VLOOKUP(A14,krzywa!L:N,2,1)) -> FALSE | V14: =IF(U14<>FALSE,IF($C$2="GAS_BASE",(U14-A14+1)*koszyki!$A$14+J14,IF($C$2="OFFPEAK",M14*koszyki!$A$14+(N14)*24+J14,IF($C$2="BASE5",M14*koszyki!$A$14+J14,IF($C$2="PEAK7",(B14-A14+1)*koszyki!$A$14,M14*koszyki!$A$14))))/B14,1) -> 1 | Z14: -4663 | AA14: -5027 | AC14: 7 | AD14: 2016-03-27 | AE14: -1 | AK14: 2025-09-26 | AL14: =AK14-1 -> 2025-09-25 | AM14: 2025-09-24 | AN14: 2025-09-23 | AP14: =NETWORKDAYS(AK14,AK14,koszyki!$M$20:$M$89) -> 1 | AQ14: =NETWORKDAYS(AL14,AL14,koszyki!$M$20:$M$89) -> 1 | AR14: =NETWORKDAYS(AM14,AM14,koszyki!$M$20:$M$89) -> 1 | AS14: =NETWORKDAYS(AN14,AN14,koszyki!$M$20:$M$89) -> 1 | AU14: 1 | AV14: 2 | AW14: 3 | AX14: 4 | AZ14: 0
A15: 2025-09-27 | B15: 2025-09-27 | C15: =IF($C$2="GAS_BASE",(B15-A15+1)*koszyki!$A$14+J15,IF($C$2="OFFPEAK",M15*koszyki!$A$14+(N15)*24+J15,IF($C$2="BASE5",M15*koszyki!$A$14+J15,IF($C$2="PEAK7",(B15-A15+1)*koszyki!$A$14,M15*koszyki!$A$14)))) -> 24 | D15: ='Kalkulator Depozytów'!M20 -> 0 | E15: ='Kalkulator Depozytów'!N20 -> 0 | F15: ='Kalkulator Depozytów'!O20 -> 0 | G15: ='Kalkulator Depozytów'!P20 -> 0 | H15: ='Kalkulator Depozytów'!Q20 -> 0 | I15: =ROUND(AVERAGE(INDIRECT("krzywa!C"&MATCH(A15-$A$2,krzywa!A:A,0)&":C"&MATCH(B15-$A$2,krzywa!A:A,0),TRUE)),4) ->  | K15: 365 | L15: GAS_BASE | M15: =NETWORKDAYS(A15,B15,koszyki!$M$20:$M$89) -> 0 | N15: =B15-A15+1- NETWORKDAYS(A15,B15,koszyki!$M$20:$M$89) -> 1 | P15: 0 | R15: =VLOOKUP(A15,krzywa!L:N,3,1) -> 0 | S15: =VLOOKUP(B15,krzywa!L:N,3,1) -> 0 | T15: =IF('Kalkulator Depozytów'!$B$35=TRUE,1,(1+R15/100)*V15+(1+S15/100)*(1-V15)) -> 1 | U15: =IF(R15<>S15,VLOOKUP(A15,krzywa!L:N,2,1)) -> FALSE | V15: =IF(U15<>FALSE,IF($C$2="GAS_BASE",(U15-A15+1)*koszyki!$A$14+J15,IF($C$2="OFFPEAK",M15*koszyki!$A$14+(N15)*24+J15,IF($C$2="BASE5",M15*koszyki!$A$14+J15,IF($C$2="PEAK7",(B15-A15+1)*koszyki!$A$14,M15*koszyki!$A$14))))/B15,1) -> 1 | Z15: -4446 | AA15: -4810 | AC15: 8 | AD15: 2016-10-30 | AE15: 1 | AK15: 2025-09-27 | AL15: =AK15-1 -> 2025-09-26 | AM15: 2025-09-25 | AN15: 2025-09-24 | AP15: =NETWORKDAYS(AK15,AK15,koszyki!$M$20:$M$89) -> 0 | AQ15: =NETWORKDAYS(AL15,AL15,koszyki!$M$20:$M$89) -> 1 | AR15: =NETWORKDAYS(AM15,AM15,koszyki!$M$20:$M$89) -> 1 | AS15: =NETWORKDAYS(AN15,AN15,koszyki!$M$20:$M$89) -> 1 | AU15: 0 | AV15: 1 | AW15: 2 | AX15: 3 | AZ15: 1
A16: 2025-09-28 | B16: 2025-09-28 | C16: =IF($C$2="GAS_BASE",(B16-A16+1)*koszyki!$A$14+J16,IF($C$2="OFFPEAK",M16*koszyki!$A$14+(N16)*24+J16,IF($C$2="BASE5",M16*koszyki!$A$14+J16,IF($C$2="PEAK7",(B16-A16+1)*koszyki!$A$14,M16*koszyki!$A$14)))) -> 24 | D16: ='Kalkulator Depozytów'!M21 -> 0 | E16: ='Kalkulator Depozytów'!N21 -> 0 | F16: ='Kalkulator Depozytów'!O21 -> 0 | G16: ='Kalkulator Depozytów'!P21 -> 0 | H16: ='Kalkulator Depozytów'!Q21 -> 0 | I16: =ROUND(AVERAGE(INDIRECT("krzywa!C"&MATCH(A16-$A$2,krzywa!A:A,0)&":C"&MATCH(B16-$A$2,krzywa!A:A,0),TRUE)),4) ->  | K16: 365 | L16: GAS_BASE | M16: =NETWORKDAYS(A16,B16,koszyki!$M$20:$M$89) -> 0 | N16: =B16-A16+1- NETWORKDAYS(A16,B16,koszyki!$M$20:$M$89) -> 1 | P16: 0 | R16: =VLOOKUP(A16,krzywa!L:N,3,1) -> 0 | S16: =VLOOKUP(B16,krzywa!L:N,3,1) -> 0 | T16: =IF('Kalkulator Depozytów'!$B$35=TRUE,1,(1+R16/100)*V16+(1+S16/100)*(1-V16)) -> 1 | U16: =IF(R16<>S16,VLOOKUP(A16,krzywa!L:N,2,1)) -> FALSE | V16: =IF(U16<>FALSE,IF($C$2="GAS_BASE",(U16-A16+1)*koszyki!$A$14+J16,IF($C$2="OFFPEAK",M16*koszyki!$A$14+(N16)*24+J16,IF($C$2="BASE5",M16*koszyki!$A$14+J16,IF($C$2="PEAK7",(B16-A16+1)*koszyki!$A$14,M16*koszyki!$A$14))))/B16,1) -> 1 | Z16: -4299 | AA16: -4663 | AC16: 9 | AD16: 2017-03-26 | AE16: -1 | AK16: 2025-09-28 | AL16: =AK16-1 -> 2025-09-27 | AM16: 2025-09-26 | AN16: 2025-09-25 | AP16: =NETWORKDAYS(AK16,AK16,koszyki!$M$20:$M$89) -> 0 | AQ16: =NETWORKDAYS(AL16,AL16,koszyki!$M$20:$M$89) -> 0 | AR16: =NETWORKDAYS(AM16,AM16,koszyki!$M$20:$M$89) -> 1 | AS16: =NETWORKDAYS(AN16,AN16,koszyki!$M$20:$M$89) -> 1 | AU16: 0 | AV16: 0 | AW16: 1 | AX16: 2 | AZ16: 2
A17: 2025-09-29 | B17: 2025-09-29 | C17: =IF($C$2="GAS_BASE",(B17-A17+1)*koszyki!$A$14+J17,IF($C$2="OFFPEAK",M17*koszyki!$A$14+(N17)*24+J17,IF($C$2="BASE5",M17*koszyki!$A$14+J17,IF($C$2="PEAK7",(B17-A17+1)*koszyki!$A$14,M17*koszyki!$A$14)))) -> 24 | D17: ='Kalkulator Depozytów'!M22 -> 0 | E17: ='Kalkulator Depozytów'!N22 -> 0 | F17: ='Kalkulator Depozytów'!O22 -> 0 | G17: ='Kalkulator Depozytów'!P22 -> 0 | H17: ='Kalkulator Depozytów'!Q22 -> 0 | I17: =ROUND(AVERAGE(INDIRECT("krzywa!C"&MATCH(A17-$A$2,krzywa!A:A,0)&":C"&MATCH(B17-$A$2,krzywa!A:A,0),TRUE)),4) ->  | K17: 365 | L17: GAS_BASE | M17: =NETWORKDAYS(A17,B17,koszyki!$M$20:$M$89) -> 1 | N17: =B17-A17+1- NETWORKDAYS(A17,B17,koszyki!$M$20:$M$89) -> 0 | P17: 0 | R17: =VLOOKUP(A17,krzywa!L:N,3,1) -> 0 | S17: =VLOOKUP(B17,krzywa!L:N,3,1) -> 0 | T17: =IF('Kalkulator Depozytów'!$B$35=TRUE,1,(1+R17/100)*V17+(1+S17/100)*(1-V17)) -> 1 | U17: =IF(R17<>S17,VLOOKUP(A17,krzywa!L:N,2,1)) -> FALSE | V17: =IF(U17<>FALSE,IF($C$2="GAS_BASE",(U17-A17+1)*koszyki!$A$14+J17,IF($C$2="OFFPEAK",M17*koszyki!$A$14+(N17)*24+J17,IF($C$2="BASE5",M17*koszyki!$A$14+J17,IF($C$2="PEAK7",(B17-A17+1)*koszyki!$A$14,M17*koszyki!$A$14))))/B17,1) -> 1 | Z17: -4082 | AA17: -4446 | AC17: 10 | AD17: 2017-10-29 | AE17: 1 | AK17: 2025-09-29 | AL17: =AK17-1 -> 2025-09-28 | AM17: 2025-09-27 | AN17: 2025-09-26 | AP17: =NETWORKDAYS(AK17,AK17,koszyki!$M$20:$M$89) -> 1 | AQ17: =NETWORKDAYS(AL17,AL17,koszyki!$M$20:$M$89) -> 0 | AR17: =NETWORKDAYS(AM17,AM17,koszyki!$M$20:$M$89) -> 0 | AS17: =NETWORKDAYS(AN17,AN17,koszyki!$M$20:$M$89) -> 1 | AU17: 1 | AV17: 1 | AW17: 1 | AX17: 2 | AZ17: 0
A18: 2025-09-30 | B18: 2025-09-30 | C18: =IF($C$2="GAS_BASE",(B18-A18+1)*koszyki!$A$14+J18,IF($C$2="OFFPEAK",M18*koszyki!$A$14+(N18)*24+J18,IF($C$2="BASE5",M18*koszyki!$A$14+J18,IF($C$2="PEAK7",(B18-A18+1)*koszyki!$A$14,M18*koszyki!$A$14)))) -> 24 | D18: ='Kalkulator Depozytów'!M23 -> 0 | E18: ='Kalkulator Depozytów'!N23 -> 0 | F18: ='Kalkulator Depozytów'!O23 -> 0 | G18: ='Kalkulator Depozytów'!P23 -> 0 | H18: ='Kalkulator Depozytów'!Q23 -> 0 | I18: =ROUND(AVERAGE(INDIRECT("krzywa!C"&MATCH(A18-$A$2,krzywa!A:A,0)&":C"&MATCH(B18-$A$2,krzywa!A:A,0),TRUE)),4) ->  | K18: 365 | L18: GAS_BASE | M18: =NETWORKDAYS(A18,B18,koszyki!$M$20:$M$89) -> 1 | N18: =B18-A18+1- NETWORKDAYS(A18,B18,koszyki!$M$20:$M$89) -> 0 | P18: 0 | R18: =VLOOKUP(A18,krzywa!L:N,3,1) -> 0 | S18: =VLOOKUP(B18,krzywa!L:N,3,1) -> 0 | T18: =IF('Kalkulator Depozytów'!$B$35=TRUE,1,(1+R18/100)*V18+(1+S18/100)*(1-V18)) -> 1 | U18: =IF(R18<>S18,VLOOKUP(A18,krzywa!L:N,2,1)) -> FALSE | V18: =IF(U18<>FALSE,IF($C$2="GAS_BASE",(U18-A18+1)*koszyki!$A$14+J18,IF($C$2="OFFPEAK",M18*koszyki!$A$14+(N18)*24+J18,IF($C$2="BASE5",M18*koszyki!$A$14+J18,IF($C$2="PEAK7",(B18-A18+1)*koszyki!$A$14,M18*koszyki!$A$14))))/B18,1) -> 1 | Z18: -3935 | AA18: -4299 | AC18: 11 | AD18: 2018-03-25 | AE18: -1 | AK18: 2025-09-30 | AL18: =AK18-1 -> 2025-09-29 | AM18: 2025-09-28 | AN18: 2025-09-27 | AP18: =NETWORKDAYS(AK18,AK18,koszyki!$M$20:$M$89) -> 1 | AQ18: =NETWORKDAYS(AL18,AL18,koszyki!$M$20:$M$89) -> 1 | AR18: =NETWORKDAYS(AM18,AM18,koszyki!$M$20:$M$89) -> 0 | AS18: =NETWORKDAYS(AN18,AN18,koszyki!$M$20:$M$89) -> 0 | AU18: 1 | AV18: 2 | AW18: 2 | AX18: 2 | AZ18: 0
A19: 2025-10-01 | B19: 2025-10-01 | C19: =IF($C$2="GAS_BASE",(B19-A19+1)*koszyki!$A$14+J19,IF($C$2="OFFPEAK",M19*koszyki!$A$14+(N19)*24+J19,IF($C$2="BASE5",M19*koszyki!$A$14+J19,IF($C$2="PEAK7",(B19-A19+1)*koszyki!$A$14,M19*koszyki!$A$14)))) -> 24 | D19: ='Kalkulator Depozytów'!M24 -> 0 | E19: ='Kalkulator Depozytów'!N24 -> 0 | F19: ='Kalkulator Depozytów'!O24 -> 0 | G19: ='Kalkulator Depozytów'!P24 -> 0 | H19: ='Kalkulator Depozytów'!Q24 -> 0 | I19: =ROUND(AVERAGE(INDIRECT("krzywa!C"&MATCH(A19-$A$2,krzywa!A:A,0)&":C"&MATCH(B19-$A$2,krzywa!A:A,0),TRUE)),4) ->  | K19: 365 | L19: GAS_BASE | M19: =NETWORKDAYS(A19,B19,koszyki!$M$20:$M$89) -> 1 | N19: =B19-A19+1- NETWORKDAYS(A19,B19,koszyki!$M$20:$M$89) -> 0 | P19: 0 | R19: =VLOOKUP(A19,krzywa!L:N,3,1) -> 0 | S19: =VLOOKUP(B19,krzywa!L:N,3,1) -> 0 | T19: =IF('Kalkulator Depozytów'!$B$35=TRUE,1,(1+R19/100)*V19+(1+S19/100)*(1-V19)) -> 1 | U19: =IF(R19<>S19,VLOOKUP(A19,krzywa!L:N,2,1)) -> FALSE | V19: =IF(U19<>FALSE,IF($C$2="GAS_BASE",(U19-A19+1)*koszyki!$A$14+J19,IF($C$2="OFFPEAK",M19*koszyki!$A$14+(N19)*24+J19,IF($C$2="BASE5",M19*koszyki!$A$14+J19,IF($C$2="PEAK7",(B19-A19+1)*koszyki!$A$14,M19*koszyki!$A$14))))/B19,1) -> 1 | Z19: -3718 | AA19: -4082 | AC19: 12 | AD19: 2018-10-28 | AE19: 1 | AK19: 2025-10-01 | AL19: =AK19-1 -> 2025-09-30 | AM19: 2025-09-29 | AN19: 2025-09-28 | AP19: =NETWORKDAYS(AK19,AK19,koszyki!$M$20:$M$89) -> 1 | AQ19: =NETWORKDAYS(AL19,AL19,koszyki!$M$20:$M$89) -> 1 | AR19: =NETWORKDAYS(AM19,AM19,koszyki!$M$20:$M$89) -> 1 | AS19: =NETWORKDAYS(AN19,AN19,koszyki!$M$20:$M$89) -> 0 | AU19: 1 | AV19: 2 | AW19: 3 | AX19: 3 | AZ19: 0
A20: 2025-10-02 | B20: 2025-10-02 | C20: =IF($C$2="GAS_BASE",(B20-A20+1)*koszyki!$A$14+J20,IF($C$2="OFFPEAK",M20*koszyki!$A$14+(N20)*24+J20,IF($C$2="BASE5",M20*koszyki!$A$14+J20,IF($C$2="PEAK7",(B20-A20+1)*koszyki!$A$14,M20*koszyki!$A$14)))) -> 24 | D20: ='Kalkulator Depozytów'!M25 -> 0 | E20: ='Kalkulator Depozytów'!N25 -> 0 | F20: ='Kalkulator Depozytów'!O25 -> 0 | G20: ='Kalkulator Depozytów'!P25 -> 0 | H20: ='Kalkulator Depozytów'!Q25 -> 0 | I20: =ROUND(AVERAGE(INDIRECT("krzywa!C"&MATCH(A20-$A$2,krzywa!A:A,0)&":C"&MATCH(B20-$A$2,krzywa!A:A,0),TRUE)),4) ->  | K20: 365 | L20: GAS_BASE | M20: =NETWORKDAYS(A20,B20,koszyki!$M$20:$M$89) -> 1 | N20: =B20-A20+1- NETWORKDAYS(A20,B20,koszyki!$M$20:$M$89) -> 0 | P20: 0 | R20: =VLOOKUP(A20,krzywa!L:N,3,1) -> 0 | S20: =VLOOKUP(B20,krzywa!L:N,3,1) -> 0 | T20: =IF('Kalkulator Depozytów'!$B$35=TRUE,1,(1+R20/100)*V20+(1+S20/100)*(1-V20)) -> 1 | U20: =IF(R20<>S20,VLOOKUP(A20,krzywa!L:N,2,1)) -> FALSE | V20: =IF(U20<>FALSE,IF($C$2="GAS_BASE",(U20-A20+1)*koszyki!$A$14+J20,IF($C$2="OFFPEAK",M20*koszyki!$A$14+(N20)*24+J20,IF($C$2="BASE5",M20*koszyki!$A$14+J20,IF($C$2="PEAK7",(B20-A20+1)*koszyki!$A$14,M20*koszyki!$A$14))))/B20,1) -> 1 | Z20: -3564 | AA20: -3928 | AC20: 13 | AD20: 2019-03-31 | AE20: -1 | AK20: 2025-10-02 | AL20: =AK20-1 -> 2025-10-01 | AM20: 2025-09-30 | AN20: 2025-09-29 | AP20: =NETWORKDAYS(AK20,AK20,koszyki!$M$20:$M$89) -> 1 | AQ20: =NETWORKDAYS(AL20,AL20,koszyki!$M$20:$M$89) -> 1 | AR20: =NETWORKDAYS(AM20,AM20,koszyki!$M$20:$M$89) -> 1 | AS20: =NETWORKDAYS(AN20,AN20,koszyki!$M$20:$M$89) -> 1 | AU20: 1 | AV20: 2 | AW20: 3 | AX20: 4 | AZ20: 0
A21: 2025-10-03 | B21: 2025-10-03 | C21: =IF($C$2="GAS_BASE",(B21-A21+1)*koszyki!$A$14+J21,IF($C$2="OFFPEAK",M21*koszyki!$A$14+(N21)*24+J21,IF($C$2="BASE5",M21*koszyki!$A$14+J21,IF($C$2="PEAK7",(B21-A21+1)*koszyki!$A$14,M21*koszyki!$A$14)))) -> 24 | D21: ='Kalkulator Depozytów'!M26 -> 0 | E21: ='Kalkulator Depozytów'!N26 -> 0 | F21: ='Kalkulator Depozytów'!O26 -> 0 | G21: ='Kalkulator Depozytów'!P26 -> 0 | H21: ='Kalkulator Depozytów'!Q26 -> 0 | I21: =ROUND(AVERAGE(INDIRECT("krzywa!C"&MATCH(A21-$A$2,krzywa!A:A,0)&":C"&MATCH(B21-$A$2,krzywa!A:A,0),TRUE)),4) ->  | K21: 365 | L21: GAS_BASE | M21: =NETWORKDAYS(A21,B21,koszyki!$M$20:$M$89) -> 1 | N21: =B21-A21+1- NETWORKDAYS(A21,B21,koszyki!$M$20:$M$89) -> 0 | P21: 0 | R21: =VLOOKUP(A21,krzywa!L:N,3,1) -> 0 | S21: =VLOOKUP(B21,krzywa!L:N,3,1) -> 0 | T21: =IF('Kalkulator Depozytów'!$B$35=TRUE,1,(1+R21/100)*V21+(1+S21/100)*(1-V21)) -> 1 | U21: =IF(R21<>S21,VLOOKUP(A21,krzywa!L:N,2,1)) -> FALSE | V21: =IF(U21<>FALSE,IF($C$2="GAS_BASE",(U21-A21+1)*koszyki!$A$14+J21,IF($C$2="OFFPEAK",M21*koszyki!$A$14+(N21)*24+J21,IF($C$2="BASE5",M21*koszyki!$A$14+J21,IF($C$2="PEAK7",(B21-A21+1)*koszyki!$A$14,M21*koszyki!$A$14))))/B21,1) -> 1 | Z21: -3354 | AA21: -3718 | AC21: 14 | AD21: 2019-10-27 | AE21: 1 | AK21: 2025-10-03 | AL21: =AK21-1 -> 2025-10-02 | AM21: 2025-10-01 | AN21: 2025-09-30 | AP21: =NETWORKDAYS(AK21,AK21,koszyki!$M$20:$M$89) -> 1 | AQ21: =NETWORKDAYS(AL21,AL21,koszyki!$M$20:$M$89) -> 1 | AR21: =NETWORKDAYS(AM21,AM21,koszyki!$M$20:$M$89) -> 1 | AS21: =NETWORKDAYS(AN21,AN21,koszyki!$M$20:$M$89) -> 1 | AU21: 1 | AV21: 2 | AW21: 3 | AX21: 4 | AZ21: 0
A22: 2025-10-04 | B22: 2025-10-04 | C22: =IF($C$2="GAS_BASE",(B22-A22+1)*koszyki!$A$14+J22,IF($C$2="OFFPEAK",M22*koszyki!$A$14+(N22)*24+J22,IF($C$2="BASE5",M22*koszyki!$A$14+J22,IF($C$2="PEAK7",(B22-A22+1)*koszyki!$A$14,M22*koszyki!$A$14)))) -> 24 | D22: ='Kalkulator Depozytów'!M27 -> 0 | E22: ='Kalkulator Depozytów'!N27 -> 0 | F22: ='Kalkulator Depozytów'!O27 -> 0 | G22: ='Kalkulator Depozytów'!P27 -> 0 | H22: ='Kalkulator Depozytów'!Q27 -> 0 | I22: =ROUND(AVERAGE(INDIRECT("krzywa!C"&MATCH(A22-$A$2,krzywa!A:A,0)&":C"&MATCH(B22-$A$2,krzywa!A:A,0),TRUE)),4) ->  | K22: 365 | L22: GAS_BASE | M22: =NETWORKDAYS(A22,B22,koszyki!$M$20:$M$89) -> 0 | N22: =B22-A22+1- NETWORKDAYS(A22,B22,koszyki!$M$20:$M$89) -> 1 | P22: 0 | R22: =VLOOKUP(A22,krzywa!L:N,3,1) -> 0 | S22: =VLOOKUP(B22,krzywa!L:N,3,1) -> 0 | T22: =IF('Kalkulator Depozytów'!$B$35=TRUE,1,(1+R22/100)*V22+(1+S22/100)*(1-V22)) -> 1 | U22: =IF(R22<>S22,VLOOKUP(A22,krzywa!L:N,2,1)) -> FALSE | V22: =IF(U22<>FALSE,IF($C$2="GAS_BASE",(U22-A22+1)*koszyki!$A$14+J22,IF($C$2="OFFPEAK",M22*koszyki!$A$14+(N22)*24+J22,IF($C$2="BASE5",M22*koszyki!$A$14+J22,IF($C$2="PEAK7",(B22-A22+1)*koszyki!$A$14,M22*koszyki!$A$14))))/B22,1) -> 1 | Z22: -3200 | AA22: -3564 | AC22: 15 | AD22: 2020-03-29 | AE22: -1 | AK22: 2025-10-04 | AL22: =AK22-1 -> 2025-10-03 | AM22: 2025-10-02 | AN22: 2025-10-01 | AP22: =NETWORKDAYS(AK22,AK22,koszyki!$M$20:$M$89) -> 0 | AQ22: =NETWORKDAYS(AL22,AL22,koszyki!$M$20:$M$89) -> 1 | AR22: =NETWORKDAYS(AM22,AM22,koszyki!$M$20:$M$89) -> 1 | AS22: =NETWORKDAYS(AN22,AN22,koszyki!$M$20:$M$89) -> 1 | AU22: 0 | AV22: 1 | AW22: 2 | AX22: 3 | AZ22: 1
A23: 2025-10-05 | B23: 2025-10-05 | C23: =IF($C$2="GAS_BASE",(B23-A23+1)*koszyki!$A$14+J23,IF($C$2="OFFPEAK",M23*koszyki!$A$14+(N23)*24+J23,IF($C$2="BASE5",M23*koszyki!$A$14+J23,IF($C$2="PEAK7",(B23-A23+1)*koszyki!$A$14,M23*koszyki!$A$14)))) -> 24 | D23: ='Kalkulator Depozytów'!M28 -> 0 | E23: ='Kalkulator Depozytów'!N28 -> 0 | F23: ='Kalkulator Depozytów'!O28 -> 0 | G23: ='Kalkulator Depozytów'!P28 -> 0 | H23: ='Kalkulator Depozytów'!Q28 -> 0 | I23: =ROUND(AVERAGE(INDIRECT("krzywa!C"&MATCH(A23-$A$2,krzywa!A:A,0)&":C"&MATCH(B23-$A$2,krzywa!A:A,0),TRUE)),4) ->  | K23: 365 | L23: GAS_BASE | M23: =NETWORKDAYS(A23,B23,koszyki!$M$20:$M$89) -> 0 | N23: =B23-A23+1- NETWORKDAYS(A23,B23,koszyki!$M$20:$M$89) -> 1 | P23: 0 | R23: =VLOOKUP(A23,krzywa!L:N,3,1) -> 0 | S23: =VLOOKUP(B23,krzywa!L:N,3,1) -> 0 | T23: =IF('Kalkulator Depozytów'!$B$35=TRUE,1,(1+R23/100)*V23+(1+S23/100)*(1-V23)) -> 1 | U23: =IF(R23<>S23,VLOOKUP(A23,krzywa!L:N,2,1)) -> FALSE | V23: =IF(U23<>FALSE,IF($C$2="GAS_BASE",(U23-A23+1)*koszyki!$A$14+J23,IF($C$2="OFFPEAK",M23*koszyki!$A$14+(N23)*24+J23,IF($C$2="BASE5",M23*koszyki!$A$14+J23,IF($C$2="PEAK7",(B23-A23+1)*koszyki!$A$14,M23*koszyki!$A$14))))/B23,1) -> 1 | Z23: -2990 | AA23: -3354 | AC23: 16 | AD23: 2020-10-25 | AE23: 1 | AK23: 2025-10-05 | AL23: =AK23-1 -> 2025-10-04 | AM23: 2025-10-03 | AN23: 2025-10-02 | AP23: =NETWORKDAYS(AK23,AK23,koszyki!$M$20:$M$89) -> 0 | AQ23: =NETWORKDAYS(AL23,AL23,koszyki!$M$20:$M$89) -> 0 | AR23: =NETWORKDAYS(AM23,AM23,koszyki!$M$20:$M$89) -> 1 | AS23: =NETWORKDAYS(AN23,AN23,koszyki!$M$20:$M$89) -> 1 | AU23: 0 | AV23: 0 | AW23: 1 | AX23: 2 | AZ23: 2
A24: 2025-10-06 | B24: 2025-10-12 | C24: =IF($C$2="GAS_BASE",(B24-A24+1)*koszyki!$A$14+J24,IF($C$2="OFFPEAK",M24*koszyki!$A$14+(N24)*24+J24,IF($C$2="BASE5",M24*koszyki!$A$14+J24,IF($C$2="PEAK7",(B24-A24+1)*koszyki!$A$14,M24*koszyki!$A$14)))) -> 168 | D24: ='Kalkulator Depozytów'!M29 -> 0 | E24: ='Kalkulator Depozytów'!N29 -> 0 | F24: ='Kalkulator Depozytów'!O29 -> 0 | G24: ='Kalkulator Depozytów'!P29 -> 0 | H24: ='Kalkulator Depozytów'!Q29 -> 0 | I24: =ROUND(AVERAGE(INDIRECT("krzywa!C"&MATCH(A24-$A$2,krzywa!A:A,0)&":C"&MATCH(B24-$A$2,krzywa!A:A,0),TRUE)),4) ->  | K24: 365 | L24: GAS_BASE | M24: =NETWORKDAYS(A24,B24,koszyki!$M$20:$M$89) -> 5 | N24: =B24-A24+1- NETWORKDAYS(A24,B24,koszyki!$M$20:$M$89) -> 2 | P24: 0 | R24: =VLOOKUP(A24,krzywa!L:N,3,1) -> 0 | S24: =VLOOKUP(B24,krzywa!L:N,3,1) -> 0 | T24: =IF('Kalkulator Depozytów'!$B$35=TRUE,1,(1+R24/100)*V24+(1+S24/100)*(1-V24)) -> 1 | U24: =IF(R24<>S24,VLOOKUP(A24,krzywa!L:N,2,1)) -> FALSE | V24: =IF(U24<>FALSE,IF($C$2="GAS_BASE",(U24-A24+1)*koszyki!$A$14+J24,IF($C$2="OFFPEAK",M24*koszyki!$A$14+(N24)*24+J24,IF($C$2="BASE5",M24*koszyki!$A$14+J24,IF($C$2="PEAK7",(B24-A24+1)*koszyki!$A$14,M24*koszyki!$A$14))))/B24,1) -> 1 | Z24: =AD24-$Z$7 -> -2836 | AA24: =AD24-$AA$7 -> -3200 | AC24: 17 | AD24: 2021-03-28 | AE24: -1 | AK24: 2025-10-12 | AL24: =AK24-1 -> 2025-10-11 | AM24: 2025-10-10 | AN24: 2025-10-09 | AP24: =NETWORKDAYS(AK24,AK24,koszyki!$M$20:$M$89) -> 0 | AQ24: =NETWORKDAYS(AL24,AL24,koszyki!$M$20:$M$89) -> 0 | AR24: =NETWORKDAYS(AM24,AM24,koszyki!$M$20:$M$89) -> 1 | AS24: =NETWORKDAYS(AN24,AN24,koszyki!$M$20:$M$89) -> 1 | AU24: 0 | AV24: 0 | AW24: 1 | AX24: 2 | AZ24: 2
A25: 2025-10-13 | B25: 2025-10-19 | C25: =IF($C$2="GAS_BASE",(B25-A25+1)*koszyki!$A$14+J25,IF($C$2="OFFPEAK",M25*koszyki!$A$14+(N25)*24+J25,IF($C$2="BASE5",M25*koszyki!$A$14+J25,IF($C$2="PEAK7",(B25-A25+1)*koszyki!$A$14,M25*koszyki!$A$14)))) -> 168 | D25: ='Kalkulator Depozytów'!M30 -> 0 | E25: ='Kalkulator Depozytów'!N30 -> 0 | F25: ='Kalkulator Depozytów'!O30 -> 0 | G25: ='Kalkulator Depozytów'!P30 -> 0 | H25: ='Kalkulator Depozytów'!Q30 -> 0 | I25: =ROUND(AVERAGE(INDIRECT("krzywa!C"&MATCH(A25-$A$2,krzywa!A:A,0)&":C"&MATCH(B25-$A$2,krzywa!A:A,0),TRUE)),4) ->  | K25: 365 | L25: GAS_BASE | M25: =NETWORKDAYS(A25,B25,koszyki!$M$20:$M$89) -> 5 | N25: =B25-A25+1- NETWORKDAYS(A25,B25,koszyki!$M$20:$M$89) -> 2 | P25: 0 | Q25: =-C25*ABS(D25-F25)*H25*I25*T25 ->  | R25: =VLOOKUP(A25,krzywa!L:N,3,1) -> 0 | S25: =VLOOKUP(B25,krzywa!L:N,3,1) -> 0 | T25: =IF('Kalkulator Depozytów'!$B$35=TRUE,1,(1+R25/100)*V25+(1+S25/100)*(1-V25)) -> 1 | U25: =IF(R25<>S25,VLOOKUP(A25,krzywa!L:N,2,1)) -> FALSE | V25: =IF(U25<>FALSE,IF($C$2="GAS_BASE",(U25-A25+1)*koszyki!$A$14+J25,IF($C$2="OFFPEAK",M25*koszyki!$A$14+(N25)*24+J25,IF($C$2="BASE5",M25*koszyki!$A$14+J25,IF($C$2="PEAK7",(B25-A25+1)*koszyki!$A$14,M25*koszyki!$A$14))))/B25,1) -> 1 | Z25: -2619 | AA25: -2983 | AC25: 18 | AD25: 2021-10-31 | AE25: 1 | AK25: 2025-10-19 | AL25: =AK25-1 -> 2025-10-18 | AM25: 2025-10-17 | AN25: 2025-10-16 | AP25: =NETWORKDAYS(AK25,AK25,koszyki!$M$20:$M$89) -> 0 | AQ25: =NETWORKDAYS(AL25,AL25,koszyki!$M$20:$M$89) -> 0 | AR25: =NETWORKDAYS(AM25,AM25,koszyki!$M$20:$M$89) -> 1 | AS25: =NETWORKDAYS(AN25,AN25,koszyki!$M$20:$M$89) -> 1 | AU25: 0 | AV25: 0 | AW25: 1 | AX25: 2 | AZ25: 2
A26: 2025-10-20 | B26: 2025-10-31 | C26: =IF($C$2="GAS_BASE",(B26-A26+1)*koszyki!$A$14+J26,IF($C$2="OFFPEAK",M26*koszyki!$A$14+(N26)*24+J26,IF($C$2="BASE5",M26*koszyki!$A$14+J26,IF($C$2="PEAK7",(B26-A26+1)*koszyki!$A$14,M26*koszyki!$A$14)))) -> 289 | D26: ='Kalkulator Depozytów'!M31 -> 0 | E26: ='Kalkulator Depozytów'!N31 -> 0 | F26: ='Kalkulator Depozytów'!O31 -> 0 | G26: ='Kalkulator Depozytów'!P31 -> 0 | H26: ='Kalkulator Depozytów'!Q31 -> 0 | I26: =ROUND(AVERAGE(INDIRECT("krzywa!C"&MATCH(A26-$A$2,krzywa!A:A,0)&":C"&MATCH(B26-$A$2,krzywa!A:A,0),TRUE)),4) ->  | J26: 1 | K26: 365 | L26: GAS_BASE | M26: =NETWORKDAYS(A26,B26,koszyki!$M$20:$M$89) -> 10 | N26: =B26-A26+1- NETWORKDAYS(A26,B26,koszyki!$M$20:$M$89) -> 2 | P26: 0 | R26: =VLOOKUP(A26,krzywa!L:N,3,1) -> 0 | S26: =VLOOKUP(B26,krzywa!L:N,3,1) -> 0 | T26: =IF('Kalkulator Depozytów'!$B$35=TRUE,1,(1+R26/100)*V26+(1+S26/100)*(1-V26)) -> 1 | U26: =IF(R26<>S26,VLOOKUP(A26,krzywa!L:N,2,1)) -> FALSE | V26: =IF(U26<>FALSE,IF($C$2="GAS_BASE",(U26-A26+1)*koszyki!$A$14+J26,IF($C$2="OFFPEAK",M26*koszyki!$A$14+(N26)*24+J26,IF($C$2="BASE5",M26*koszyki!$A$14+J26,IF($C$2="PEAK7",(B26-A26+1)*koszyki!$A$14,M26*koszyki!$A$14))))/B26,1) -> 1 | Z26: -2473 | AA26: -2837 | AC26: 19 | AD26: 2022-03-26 | AE26: -1 | AK26: 2025-10-31 | AL26: =AK26-1 -> 2025-10-30 | AM26: 2025-10-29 | AN26: 2025-10-28 | AP26: =NETWORKDAYS(AK26,AK26,koszyki!$M$20:$M$89) -> 1 | AQ26: =NETWORKDAYS(AL26,AL26,koszyki!$M$20:$M$89) -> 1 | AR26: =NETWORKDAYS(AM26,AM26,koszyki!$M$20:$M$89) -> 1 | AS26: =NETWORKDAYS(AN26,AN26,koszyki!$M$20:$M$89) -> 1 | AU26: 1 | AV26: 2 | AW26: 3 | AX26: 4 | AZ26: 0
A27: 2025-11-01 | B27: 2025-11-30 | C27: =IF($C$2="GAS_BASE",(B27-A27+1)*koszyki!$A$14+J27,IF($C$2="OFFPEAK",M27*koszyki!$A$14+(N27)*24+J27,IF($C$2="BASE5",M27*koszyki!$A$14+J27,IF($C$2="PEAK7",(B27-A27+1)*koszyki!$A$14,M27*koszyki!$A$14)))) -> 720 | D27: ='Kalkulator Depozytów'!M32 -> 0 | E27: ='Kalkulator Depozytów'!N32 -> 0 | F27: ='Kalkulator Depozytów'!O32 -> 0 | G27: ='Kalkulator Depozytów'!P32 -> 0 | H27: ='Kalkulator Depozytów'!Q32 -> 0 | I27: =ROUND(AVERAGE(INDIRECT("krzywa!C"&MATCH(A27-$A$2,krzywa!A:A,0)&":C"&MATCH(B27-$A$2,krzywa!A:A,0),TRUE)),4) ->  | K27: 365 | L27: GAS_BASE | M27: =NETWORKDAYS(A27,B27,koszyki!$M$20:$M$89) -> 20 | N27: =B27-A27+1- NETWORKDAYS(A27,B27,koszyki!$M$20:$M$89) -> 10 | P27: 0 | R27: =VLOOKUP(A27,krzywa!L:N,3,1) -> 0 | S27: =VLOOKUP(B27,krzywa!L:N,3,1) -> 0 | T27: =IF('Kalkulator Depozytów'!$B$35=TRUE,1,(1+R27/100)*V27+(1+S27/100)*(1-V27)) -> 1 | U27: =IF(R27<>S27,VLOOKUP(A27,krzywa!L:N,2,1)) -> FALSE | V27: =IF(U27<>FALSE,IF($C$2="GAS_BASE",(U27-A27+1)*koszyki!$A$14+J27,IF($C$2="OFFPEAK",M27*koszyki!$A$14+(N27)*24+J27,IF($C$2="BASE5",M27*koszyki!$A$14+J27,IF($C$2="PEAK7",(B27-A27+1)*koszyki!$A$14,M27*koszyki!$A$14))))/B27,1) -> 1 | Z27: -2256 | AA27: -2620 | AC27: 20 | AD27: 2022-10-29 | AE27: 1 | AK27: 2025-11-30 | AL27: =AK27-1 -> 2025-11-29 | AM27: 2025-11-28 | AN27: 2025-11-27 | AP27: =NETWORKDAYS(AK27,AK27,koszyki!$M$20:$M$89) -> 0 | AQ27: =NETWORKDAYS(AL27,AL27,koszyki!$M$20:$M$89) -> 0 | AR27: =NETWORKDAYS(AM27,AM27,koszyki!$M$20:$M$89) -> 1 | AS27: =NETWORKDAYS(AN27,AN27,koszyki!$M$20:$M$89) -> 1 | AU27: 0 | AV27: 0 | AW27: 1 | AX27: 2 | AZ27: 2
A28: 2025-12-01 | B28: 2025-12-31 | C28: =IF($C$2="GAS_BASE",(B28-A28+1)*koszyki!$A$14+J28,IF($C$2="OFFPEAK",M28*koszyki!$A$14+(N28)*24+J28,IF($C$2="BASE5",M28*koszyki!$A$14+J28,IF($C$2="PEAK7",(B28-A28+1)*koszyki!$A$14,M28*koszyki!$A$14)))) -> 744 | D28: ='Kalkulator Depozytów'!M33 -> 0 | E28: ='Kalkulator Depozytów'!N33 -> 0 | F28: ='Kalkulator Depozytów'!O33 -> 0 | G28: ='Kalkulator Depozytów'!P33 -> 0 | H28: ='Kalkulator Depozytów'!Q33 -> 0 | I28: =ROUND(AVERAGE(INDIRECT("krzywa!C"&MATCH(A28-$A$2,krzywa!A:A,0)&":C"&MATCH(B28-$A$2,krzywa!A:A,0),TRUE)),4) ->  | K28: 365 | L28: GAS_BASE | M28: =NETWORKDAYS(A28,B28,koszyki!$M$20:$M$89) -> 23 | N28: =B28-A28+1- NETWORKDAYS(A28,B28,koszyki!$M$20:$M$89) -> 8 | P28: 0 | R28: =VLOOKUP(A28,krzywa!L:N,3,1) -> 0 | S28: =VLOOKUP(B28,krzywa!L:N,3,1) -> 0 | T28: =IF('Kalkulator Depozytów'!$B$35=TRUE,1,(1+R28/100)*V28+(1+S28/100)*(1-V28)) -> 1 | U28: =IF(R28<>S28,VLOOKUP(A28,krzywa!L:N,2,1)) -> FALSE | V28: =IF(U28<>FALSE,IF($C$2="GAS_BASE",(U28-A28+1)*koszyki!$A$14+J28,IF($C$2="OFFPEAK",M28*koszyki!$A$14+(N28)*24+J28,IF($C$2="BASE5",M28*koszyki!$A$14+J28,IF($C$2="PEAK7",(B28-A28+1)*koszyki!$A$14,M28*koszyki!$A$14))))/B28,1) -> 1 | Z28: -2109 | AA28: -2473 | AC28: 21 | AD28: 2023-03-25 | AE28: -1 | AK28: 2025-12-31 | AL28: =AK28-1 -> 2025-12-30 | AM28: 2025-12-29 | AN28: 2025-12-28 | AP28: =NETWORKDAYS(AK28,AK28,koszyki!$M$20:$M$89) -> 1 | AQ28: =NETWORKDAYS(AL28,AL28,koszyki!$M$20:$M$89) -> 1 | AR28: =NETWORKDAYS(AM28,AM28,koszyki!$M$20:$M$89) -> 1 | AS28: =NETWORKDAYS(AN28,AN28,koszyki!$M$20:$M$89) -> 0 | AU28: 1 | AV28: 2 | AW28: 3 | AX28: 3 | AZ28: 0
A29: 2026-01-01 | B29: 2026-01-31 | C29: =IF($C$2="GAS_BASE",(B29-A29+1)*koszyki!$A$14+J29,IF($C$2="OFFPEAK",M29*koszyki!$A$14+(N29)*24+J29,IF($C$2="BASE5",M29*koszyki!$A$14+J29,IF($C$2="PEAK7",(B29-A29+1)*koszyki!$A$14,M29*koszyki!$A$14)))) -> 744 | D29: ='Kalkulator Depozytów'!M34 -> 0 | E29: ='Kalkulator Depozytów'!N34 -> 0 | F29: ='Kalkulator Depozytów'!O34 -> 0 | G29: ='Kalkulator Depozytów'!P34 -> 0 | H29: ='Kalkulator Depozytów'!Q34 -> 0 | I29: =ROUND(AVERAGE(INDIRECT("krzywa!C"&MATCH(A29-$A$2,krzywa!A:A,0)&":C"&MATCH(B29-$A$2,krzywa!A:A,0),TRUE)),4) ->  | K29: 365 | L29: GAS_BASE | M29: =NETWORKDAYS(A29,B29,koszyki!$M$20:$M$89) -> 22 | N29: =B29-A29+1- NETWORKDAYS(A29,B29,koszyki!$M$20:$M$89) -> 9 | P29: 0 | R29: =VLOOKUP(A29,krzywa!L:N,3,1) -> 0 | S29: =VLOOKUP(B29,krzywa!L:N,3,1) -> 0 | T29: =IF('Kalkulator Depozytów'!$B$35=TRUE,1,(1+R29/100)*V29+(1+S29/100)*(1-V29)) -> 1 | U29: =IF(R29<>S29,VLOOKUP(A29,krzywa!L:N,2,1)) -> FALSE | V29: =IF(U29<>FALSE,IF($C$2="GAS_BASE",(U29-A29+1)*koszyki!$A$14+J29,IF($C$2="OFFPEAK",M29*koszyki!$A$14+(N29)*24+J29,IF($C$2="BASE5",M29*koszyki!$A$14+J29,IF($C$2="PEAK7",(B29-A29+1)*koszyki!$A$14,M29*koszyki!$A$14))))/B29,1) -> 1 | Z29: -1892 | AA29: -2256 | AC29: 22 | AD29: 2023-10-28 | AE29: 1 | AK29: 2026-01-31 | AL29: =AK29-1 -> 2026-01-30 | AM29: 2026-01-29 | AN29: 2026-01-28 | AP29: =NETWORKDAYS(AK29,AK29,koszyki!$M$20:$M$89) -> 0 | AQ29: =NETWORKDAYS(AL29,AL29,koszyki!$M$20:$M$89) -> 1 | AR29: =NETWORKDAYS(AM29,AM29,koszyki!$M$20:$M$89) -> 1 | AS29: =NETWORKDAYS(AN29,AN29,koszyki!$M$20:$M$89) -> 1 | AU29: 0 | AV29: 1 | AW29: 2 | AX29: 3 | AZ29: 1
A30: 2026-02-01 | B30: 2026-02-28 | C30: =IF($C$2="GAS_BASE",(B30-A30+1)*koszyki!$A$14+J30,IF($C$2="OFFPEAK",M30*koszyki!$A$14+(N30)*24+J30,IF($C$2="BASE5",M30*koszyki!$A$14+J30,IF($C$2="PEAK7",(B30-A30+1)*koszyki!$A$14,M30*koszyki!$A$14)))) -> 672 | D30: ='Kalkulator Depozytów'!M35 -> 0 | E30: ='Kalkulator Depozytów'!N35 -> 0 | F30: ='Kalkulator Depozytów'!O35 -> 0 | G30: ='Kalkulator Depozytów'!P35 -> 0 | H30: ='Kalkulator Depozytów'!Q35 -> 0 | I30: =ROUND(AVERAGE(INDIRECT("krzywa!C"&MATCH(A30-$A$2,krzywa!A:A,0)&":C"&MATCH(B30-$A$2,krzywa!A:A,0),TRUE)),4) ->  | K30: 365 | L30: GAS_BASE | M30: =NETWORKDAYS(A30,B30,koszyki!$M$20:$M$89) -> 20 | N30: =B30-A30+1- NETWORKDAYS(A30,B30,koszyki!$M$20:$M$89) -> 8 | P30: 0 | R30: =VLOOKUP(A30,krzywa!L:N,3,1) -> 0 | S30: =VLOOKUP(B30,krzywa!L:N,3,1) -> 0 | T30: =IF('Kalkulator Depozytów'!$B$35=TRUE,1,(1+R30/100)*V30+(1+S30/100)*(1-V30)) -> 1 | U30: =IF(R30<>S30,VLOOKUP(A30,krzywa!L:N,2,1)) -> FALSE | V30: =IF(U30<>FALSE,IF($C$2="GAS_BASE",(U30-A30+1)*koszyki!$A$14+J30,IF($C$2="OFFPEAK",M30*koszyki!$A$14+(N30)*24+J30,IF($C$2="BASE5",M30*koszyki!$A$14+J30,IF($C$2="PEAK7",(B30-A30+1)*koszyki!$A$14,M30*koszyki!$A$14))))/B30,1) -> 1 | Z30: -1737 | AA30: -2101 | AC30: 23 | AD30: 2024-03-31 | AE30: -1 | AK30: 2026-02-28 | AL30: =AK30-1 -> 2026-02-27 | AM30: 2026-02-26 | AN30: 2026-02-25 | AP30: =NETWORKDAYS(AK30,AK30,koszyki!$M$20:$M$89) -> 0 | AQ30: =NETWORKDAYS(AL30,AL30,koszyki!$M$20:$M$89) -> 1 | AR30: =NETWORKDAYS(AM30,AM30,koszyki!$M$20:$M$89) -> 1 | AS30: =NETWORKDAYS(AN30,AN30,koszyki!$M$20:$M$89) -> 1 | AU30: 0 | AV30: 1 | AW30: 2 | AX30: 3 | AZ30: 1
A31: 2026-03-01 | B31: 2026-03-31 | C31: =IF($C$2="GAS_BASE",(B31-A31+1)*koszyki!$A$14+J31,IF($C$2="OFFPEAK",M31*koszyki!$A$14+(N31)*24+J31,IF($C$2="BASE5",M31*koszyki!$A$14+J31,IF($C$2="PEAK7",(B31-A31+1)*koszyki!$A$14,M31*koszyki!$A$14)))) -> 743 | D31: ='Kalkulator Depozytów'!M36 -> 0 | E31: ='Kalkulator Depozytów'!N36 -> 0 | F31: ='Kalkulator Depozytów'!O36 -> 0 | G31: ='Kalkulator Depozytów'!P36 -> 0 | H31: ='Kalkulator Depozytów'!Q36 -> 0 | I31: =ROUND(AVERAGE(INDIRECT("krzywa!C"&MATCH(A31-$A$2,krzywa!A:A,0)&":C"&MATCH(B31-$A$2,krzywa!A:A,0),TRUE)),4) ->  | J31: -1 | K31: 365 | L31: GAS_BASE | M31: =NETWORKDAYS(A31,B31,koszyki!$M$20:$M$89) -> 22 | N31: =B31-A31+1- NETWORKDAYS(A31,B31,koszyki!$M$20:$M$89) -> 9 | P31: 0 | R31: =VLOOKUP(A31,krzywa!L:N,3,1) -> 0 | S31: =VLOOKUP(B31,krzywa!L:N,3,1) -> 0 | T31: =IF('Kalkulator Depozytów'!$B$35=TRUE,1,(1+R31/100)*V31+(1+S31/100)*(1-V31)) -> 1 | U31: =IF(R31<>S31,VLOOKUP(A31,krzywa!L:N,2,1)) -> FALSE | V31: =IF(U31<>FALSE,IF($C$2="GAS_BASE",(U31-A31+1)*koszyki!$A$14+J31,IF($C$2="OFFPEAK",M31*koszyki!$A$14+(N31)*24+J31,IF($C$2="BASE5",M31*koszyki!$A$14+J31,IF($C$2="PEAK7",(B31-A31+1)*koszyki!$A$14,M31*koszyki!$A$14))))/B31,1) -> 1 | Z31: -1527 | AA31: -1891 | AC31: 24 | AD31: 2024-10-27 | AE31: 1 | AK31: 2026-03-31 | AL31: =AK31-1 -> 2026-03-30 | AM31: 2026-03-29 | AN31: 2026-03-28 | AP31: =NETWORKDAYS(AK31,AK31,koszyki!$M$20:$M$89) -> 1 | AQ31: =NETWORKDAYS(AL31,AL31,koszyki!$M$20:$M$89) -> 1 | AR31: =NETWORKDAYS(AM31,AM31,koszyki!$M$20:$M$89) -> 0 | AS31: =NETWORKDAYS(AN31,AN31,koszyki!$M$20:$M$89) -> 0 | AU31: 1 | AV31: 2 | AW31: 2 | AX31: 2 | AZ31: 0
A32: 2026-04-01 | B32: 2026-04-30 | C32: =IF($C$2="GAS_BASE",(B32-A32+1)*koszyki!$A$14+J32,IF($C$2="OFFPEAK",M32*koszyki!$A$14+(N32)*24+J32,IF($C$2="BASE5",M32*koszyki!$A$14+J32,IF($C$2="PEAK7",(B32-A32+1)*koszyki!$A$14,M32*koszyki!$A$14)))) -> 720 | D32: ='Kalkulator Depozytów'!M37 -> 0 | E32: ='Kalkulator Depozytów'!N37 -> 0 | F32: ='Kalkulator Depozytów'!O37 -> 0 | G32: ='Kalkulator Depozytów'!P37 -> 0 | H32: ='Kalkulator Depozytów'!Q37 -> 0 | I32: =ROUND(AVERAGE(INDIRECT("krzywa!C"&MATCH(A32-$A$2,krzywa!A:A,0)&":C"&MATCH(B32-$A$2,krzywa!A:A,0),TRUE)),4) ->  | K32: 365 | L32: GAS_BASE | M32: =NETWORKDAYS(A32,B32,koszyki!$M$20:$M$89) -> 22 | N32: =B32-A32+1- NETWORKDAYS(A32,B32,koszyki!$M$20:$M$89) -> 8 | P32: 0 | R32: =VLOOKUP(A32,krzywa!L:N,3,1) -> 0 | S32: =VLOOKUP(B32,krzywa!L:N,3,1) -> 0 | T32: =IF('Kalkulator Depozytów'!$B$35=TRUE,1,(1+R32/100)*V32+(1+S32/100)*(1-V32)) -> 1 | U32: =IF(R32<>S32,VLOOKUP(A32,krzywa!L:N,2,1)) -> FALSE | V32: =IF(U32<>FALSE,IF($C$2="GAS_BASE",(U32-A32+1)*koszyki!$A$14+J32,IF($C$2="OFFPEAK",M32*koszyki!$A$14+(N32)*24+J32,IF($C$2="BASE5",M32*koszyki!$A$14+J32,IF($C$2="PEAK7",(B32-A32+1)*koszyki!$A$14,M32*koszyki!$A$14))))/B32,1) -> 1 | Z32: =AD32-$Z$7 -> -1373 | AA32: -1737 | AC32: 25 | AD32: 2025-03-30 | AE32: -1 | AK32: 2026-04-30 | AL32: =AK32-1 -> 2026-04-29 | AM32: 2026-04-28 | AN32: 2026-04-27 | AP32: =NETWORKDAYS(AK32,AK32,koszyki!$M$20:$M$89) -> 1 | AQ32: =NETWORKDAYS(AL32,AL32,koszyki!$M$20:$M$89) -> 1 | AR32: =NETWORKDAYS(AM32,AM32,koszyki!$M$20:$M$89) -> 1 | AS32: =NETWORKDAYS(AN32,AN32,koszyki!$M$20:$M$89) -> 1 | AU32: 1 | AV32: 2 | AW32: 3 | AX32: 4 | AZ32: 0
A33: 2026-05-01 | B33: 2026-05-31 | C33: =IF($C$2="GAS_BASE",(B33-A33+1)*koszyki!$A$14+J33,IF($C$2="OFFPEAK",M33*koszyki!$A$14+(N33)*24+J33,IF($C$2="BASE5",M33*koszyki!$A$14+J33,IF($C$2="PEAK7",(B33-A33+1)*koszyki!$A$14,M33*koszyki!$A$14)))) -> 744 | D33: ='Kalkulator Depozytów'!M38 -> 0 | E33: ='Kalkulator Depozytów'!N38 -> 0 | F33: ='Kalkulator Depozytów'!O38 -> 0 | G33: ='Kalkulator Depozytów'!P38 -> 0 | H33: ='Kalkulator Depozytów'!Q38 -> 0 | I33: =ROUND(AVERAGE(INDIRECT("krzywa!C"&MATCH(A33-$A$2,krzywa!A:A,0)&":C"&MATCH(B33-$A$2,krzywa!A:A,0),TRUE)),4) ->  | K33: 365 | L33: GAS_BASE | M33: =NETWORKDAYS(A33,B33,koszyki!$M$20:$M$89) -> 21 | N33: =B33-A33+1- NETWORKDAYS(A33,B33,koszyki!$M$20:$M$89) -> 10 | P33: 0 | R33: =VLOOKUP(A33,krzywa!L:N,3,1) -> 0 | S33: =VLOOKUP(B33,krzywa!L:N,3,1) -> 0 | T33: =IF('Kalkulator Depozytów'!$B$35=TRUE,1,(1+R33/100)*V33+(1+S33/100)*(1-V33)) -> 1 | U33: =IF(R33<>S33,VLOOKUP(A33,krzywa!L:N,2,1)) -> FALSE | V33: =IF(U33<>FALSE,IF($C$2="GAS_BASE",(U33-A33+1)*koszyki!$A$14+J33,IF($C$2="OFFPEAK",M33*koszyki!$A$14+(N33)*24+J33,IF($C$2="BASE5",M33*koszyki!$A$14+J33,IF($C$2="PEAK7",(B33-A33+1)*koszyki!$A$14,M33*koszyki!$A$14))))/B33,1) -> 1 | Z33: -1163 | AA33: -1527 | AC33: 26 | AD33: 2025-10-26 | AE33: 1 | AK33: 2026-05-31 | AL33: =AK33-1 -> 2026-05-30 | AM33: 2026-05-29 | AN33: 2026-05-28 | AP33: =NETWORKDAYS(AK33,AK33,koszyki!$M$20:$M$89) -> 0 | AQ33: =NETWORKDAYS(AL33,AL33,koszyki!$M$20:$M$89) -> 0 | AR33: =NETWORKDAYS(AM33,AM33,koszyki!$M$20:$M$89) -> 1 | AS33: =NETWORKDAYS(AN33,AN33,koszyki!$M$20:$M$89) -> 1 | AU33: 0 | AV33: 0 | AW33: 1 | AX33: 2 | AZ33: 2
A34: 2026-06-01 | B34: 2026-06-30 | C34: =IF($C$2="GAS_BASE",(B34-A34+1)*koszyki!$A$14+J34,IF($C$2="OFFPEAK",M34*koszyki!$A$14+(N34)*24+J34,IF($C$2="BASE5",M34*koszyki!$A$14+J34,IF($C$2="PEAK7",(B34-A34+1)*koszyki!$A$14,M34*koszyki!$A$14)))) -> 720 | D34: ='Kalkulator Depozytów'!M39 -> 0 | E34: ='Kalkulator Depozytów'!N39 -> 0 | F34: ='Kalkulator Depozytów'!O39 -> 0 | G34: ='Kalkulator Depozytów'!P39 -> 0 | H34: ='Kalkulator Depozytów'!Q39 -> 0 | I34: =ROUND(AVERAGE(INDIRECT("krzywa!C"&MATCH(A34-$A$2,krzywa!A:A,0)&":C"&MATCH(B34-$A$2,krzywa!A:A,0),TRUE)),4) ->  | K34: 365 | L34: GAS_BASE | M34: =NETWORKDAYS(A34,B34,koszyki!$M$20:$M$89) -> 22 | N34: =B34-A34+1- NETWORKDAYS(A34,B34,koszyki!$M$20:$M$89) -> 8 | P34: 0 | R34: =VLOOKUP(A34,krzywa!L:N,3,1) -> 0 | S34: =VLOOKUP(B34,krzywa!L:N,3,1) -> 0 | T34: =IF('Kalkulator Depozytów'!$B$35=TRUE,1,(1+R34/100)*V34+(1+S34/100)*(1-V34)) -> 1 | U34: =IF(R34<>S34,VLOOKUP(A34,krzywa!L:N,2,1)) -> FALSE | V34: =IF(U34<>FALSE,IF($C$2="GAS_BASE",(U34-A34+1)*koszyki!$A$14+J34,IF($C$2="OFFPEAK",M34*koszyki!$A$14+(N34)*24+J34,IF($C$2="BASE5",M34*koszyki!$A$14+J34,IF($C$2="PEAK7",(B34-A34+1)*koszyki!$A$14,M34*koszyki!$A$14))))/B34,1) -> 1 | Z34: -1009 | AA34: -1373 | AC34: 27 | AD34: 2026-03-29 | AE34: -1 | AK34: 2026-06-30 | AL34: =AK34-1 -> 2026-06-29 | AM34: 2026-06-28 | AN34: 2026-06-27 | AP34: =NETWORKDAYS(AK34,AK34,koszyki!$M$20:$M$89) -> 1 | AQ34: =NETWORKDAYS(AL34,AL34,koszyki!$M$20:$M$89) -> 1 | AR34: =NETWORKDAYS(AM34,AM34,koszyki!$M$20:$M$89) -> 0 | AS34: =NETWORKDAYS(AN34,AN34,koszyki!$M$20:$M$89) -> 0 | AU34: 1 | AV34: 2 | AW34: 2 | AX34: 2 | AZ34: 0
A35: 2026-07-01 | B35: 2026-07-31 | C35: =IF($C$2="GAS_BASE",(B35-A35+1)*koszyki!$A$14+J35,IF($C$2="OFFPEAK",M35*koszyki!$A$14+(N35)*24+J35,IF($C$2="BASE5",M35*koszyki!$A$14+J35,IF($C$2="PEAK7",(B35-A35+1)*koszyki!$A$14,M35*koszyki!$A$14)))) -> 744 | D35: ='Kalkulator Depozytów'!M40 -> 0 | E35: ='Kalkulator Depozytów'!N40 -> 0 | F35: ='Kalkulator Depozytów'!O40 -> 0 | G35: ='Kalkulator Depozytów'!P40 -> 0 | H35: ='Kalkulator Depozytów'!Q40 -> 0 | I35: =ROUND(AVERAGE(INDIRECT("krzywa!C"&MATCH(A35-$A$2,krzywa!A:A,0)&":C"&MATCH(B35-$A$2,krzywa!A:A,0),TRUE)),4) ->  | K35: 365 | L35: GAS_BASE | M35: =NETWORKDAYS(A35,B35,koszyki!$M$20:$M$89) -> 23 | N35: =B35-A35+1- NETWORKDAYS(A35,B35,koszyki!$M$20:$M$89) -> 8 | P35: 0 | R35: =VLOOKUP(A35,krzywa!L:N,3,1) -> 0 | S35: =VLOOKUP(B35,krzywa!L:N,3,1) -> 0 | T35: =IF('Kalkulator Depozytów'!$B$35=TRUE,1,(1+R35/100)*V35+(1+S35/100)*(1-V35)) -> 1 | U35: =IF(R35<>S35,VLOOKUP(A35,krzywa!L:N,2,1)) -> FALSE | V35: =IF(U35<>FALSE,IF($C$2="GAS_BASE",(U35-A35+1)*koszyki!$A$14+J35,IF($C$2="OFFPEAK",M35*koszyki!$A$14+(N35)*24+J35,IF($C$2="BASE5",M35*koszyki!$A$14+J35,IF($C$2="PEAK7",(B35-A35+1)*koszyki!$A$14,M35*koszyki!$A$14))))/B35,1) -> 1 | Z35: -799 | AA35: -1163 | AC35: 28 | AD35: 2026-10-25 | AE35: 1 | AK35: 2026-07-31 | AL35: =AK35-1 -> 2026-07-30 | AM35: 2026-07-29 | AN35: 2026-07-28 | AP35: =NETWORKDAYS(AK35,AK35,koszyki!$M$20:$M$89) -> 1 | AQ35: =NETWORKDAYS(AL35,AL35,koszyki!$M$20:$M$89) -> 1 | AR35: =NETWORKDAYS(AM35,AM35,koszyki!$M$20:$M$89) -> 1 | AS35: =NETWORKDAYS(AN35,AN35,koszyki!$M$20:$M$89) -> 1 | AU35: 1 | AV35: 2 | AW35: 3 | AX35: 4 | AZ35: 0
A36: 2026-08-01 | B36: 2026-08-31 | C36: =IF($C$2="GAS_BASE",(B36-A36+1)*koszyki!$A$14+J36,IF($C$2="OFFPEAK",M36*koszyki!$A$14+(N36)*24+J36,IF($C$2="BASE5",M36*koszyki!$A$14+J36,IF($C$2="PEAK7",(B36-A36+1)*koszyki!$A$14,M36*koszyki!$A$14)))) -> 744 | D36: ='Kalkulator Depozytów'!M41 -> 0 | E36: ='Kalkulator Depozytów'!N41 -> 0 | F36: ='Kalkulator Depozytów'!O41 -> 0 | G36: ='Kalkulator Depozytów'!P41 -> 0 | H36: ='Kalkulator Depozytów'!Q41 -> 0 | I36: =ROUND(AVERAGE(INDIRECT("krzywa!C"&MATCH(A36-$A$2,krzywa!A:A,0)&":C"&MATCH(B36-$A$2,krzywa!A:A,0),TRUE)),4) ->  | K36: 365 | L36: GAS_BASE | M36: =NETWORKDAYS(A36,B36,koszyki!$M$20:$M$89) -> 21 | N36: =B36-A36+1- NETWORKDAYS(A36,B36,koszyki!$M$20:$M$89) -> 10 | P36: 0 | R36: =VLOOKUP(A36,krzywa!L:N,3,1) -> 0 | S36: =VLOOKUP(B36,krzywa!L:N,3,1) -> 0 | T36: =IF('Kalkulator Depozytów'!$B$35=TRUE,1,(1+R36/100)*V36+(1+S36/100)*(1-V36)) -> 1 | U36: =IF(R36<>S36,VLOOKUP(A36,krzywa!L:N,2,1)) -> FALSE | V36: =IF(U36<>FALSE,IF($C$2="GAS_BASE",(U36-A36+1)*koszyki!$A$14+J36,IF($C$2="OFFPEAK",M36*koszyki!$A$14+(N36)*24+J36,IF($C$2="BASE5",M36*koszyki!$A$14+J36,IF($C$2="PEAK7",(B36-A36+1)*koszyki!$A$14,M36*koszyki!$A$14))))/B36,1) -> 1 | Z36: -645 | AA36: -1009 | AC36: 29 | AD36: 2027-03-28 | AE36: -1 | AK36: 2026-08-31 | AL36: =AK36-1 -> 2026-08-30 | AM36: =AL36-1 -> 2026-08-29 | AN36: 2026-08-28 | AP36: =NETWORKDAYS(AK36,AK36,koszyki!$M$20:$M$89) -> 1 | AQ36: =NETWORKDAYS(AL36,AL36,koszyki!$M$20:$M$89) -> 0 | AR36: =NETWORKDAYS(AM36,AM36,koszyki!$M$20:$M$89) -> 0 | AS36: =NETWORKDAYS(AN36,AN36,koszyki!$M$20:$M$89) -> 1 | AU36: 1 | AV36: 1 | AW36: 1 | AX36: 2 | AZ36: 0
A37: 2026-09-01 | B37: 2026-09-30 | C37: =IF($C$2="GAS_BASE",(B37-A37+1)*koszyki!$A$14+J37,IF($C$2="OFFPEAK",M37*koszyki!$A$14+(N37)*24+J37,IF($C$2="BASE5",M37*koszyki!$A$14+J37,IF($C$2="PEAK7",(B37-A37+1)*koszyki!$A$14,M37*koszyki!$A$14)))) -> 720 | D37: ='Kalkulator Depozytów'!M42 -> 0 | E37: ='Kalkulator Depozytów'!N42 -> 0 | F37: ='Kalkulator Depozytów'!O42 -> 0 | G37: ='Kalkulator Depozytów'!P42 -> 0 | H37: ='Kalkulator Depozytów'!Q42 -> 0 | I37: =ROUND(AVERAGE(INDIRECT("krzywa!C"&MATCH(A37-$A$2,krzywa!A:A,0)&":C"&MATCH(B37-$A$2,krzywa!A:A,0),TRUE)),4) ->  | K37: 365 | L37: GAS_BASE | M37: =NETWORKDAYS(A37,B37,koszyki!$M$20:$M$89) -> 22 | N37: =B37-A37+1- NETWORKDAYS(A37,B37,koszyki!$M$20:$M$89) -> 8 | P37: 0 | R37: =VLOOKUP(A37,krzywa!L:N,3,1) -> 0 | S37: =VLOOKUP(B37,krzywa!L:N,3,1) -> 0 | T37: =IF('Kalkulator Depozytów'!$B$35=TRUE,1,(1+R37/100)*V37+(1+S37/100)*(1-V37)) -> 1 | U37: =IF(R37<>S37,VLOOKUP(A37,krzywa!L:N,2,1)) -> FALSE | V37: =IF(U37<>FALSE,IF($C$2="GAS_BASE",(U37-A37+1)*koszyki!$A$14+J37,IF($C$2="OFFPEAK",M37*koszyki!$A$14+(N37)*24+J37,IF($C$2="BASE5",M37*koszyki!$A$14+J37,IF($C$2="PEAK7",(B37-A37+1)*koszyki!$A$14,M37*koszyki!$A$14))))/B37,1) -> 1 | Z37: -428 | AA37: -792 | AC37: 30 | AD37: 2027-10-31 | AE37: 1 | AK37: 2026-09-30 | AL37: =AK37-1 -> 2026-09-29 | AM37: 2026-09-28 | AN37: 2026-09-27 | AP37: =NETWORKDAYS(AK37,AK37,koszyki!$M$20:$M$89) -> 1 | AQ37: =NETWORKDAYS(AL37,AL37,koszyki!$M$20:$M$89) -> 1 | AR37: =NETWORKDAYS(AM37,AM37,koszyki!$M$20:$M$89) -> 1 | AS37: =NETWORKDAYS(AN37,AN37,koszyki!$M$20:$M$89) -> 0 | AU37: 1 | AV37: 2 | AW37: 3 | AX37: 3 | AZ37: 0
A38: 2026-10-01 | B38: 2026-12-31 | C38: =IF($C$2="GAS_BASE",(B38-A38+1)*koszyki!$A$14+J38,IF($C$2="OFFPEAK",M38*koszyki!$A$14+(N38)*24+J38,IF($C$2="BASE5",M38*koszyki!$A$14+J38,IF($C$2="PEAK7",(B38-A38+1)*koszyki!$A$14,M38*koszyki!$A$14)))) -> 2209 | D38: ='Kalkulator Depozytów'!M43 -> 0 | E38: ='Kalkulator Depozytów'!N43 -> 0 | F38: ='Kalkulator Depozytów'!O43 -> 0 | G38: ='Kalkulator Depozytów'!P43 -> 0 | H38: ='Kalkulator Depozytów'!Q43 -> 0 | I38: =ROUND(AVERAGE(INDIRECT("krzywa!C"&MATCH(A38-$A$2,krzywa!A:A,0)&":C"&MATCH(B38-$A$2,krzywa!A:A,0),TRUE)),4) ->  | J38: 1 | K38: 365 | L38: GAS_BASE | M38: =NETWORKDAYS(A38,B38,koszyki!$M$20:$M$89) -> 66 | N38: =B38-A38+1- NETWORKDAYS(A38,B38,koszyki!$M$20:$M$89) -> 26 | P38: 0 | R38: =VLOOKUP(A38,krzywa!L:N,3,1) -> 0 | S38: =VLOOKUP(B38,krzywa!L:N,3,1) -> 0 | T38: =IF('Kalkulator Depozytów'!$B$35=TRUE,1,(1+R38/100)*V38+(1+S38/100)*(1-V38)) -> 1 | U38: =IF(R38<>S38,VLOOKUP(A38,krzywa!L:N,2,1)) -> FALSE | V38: =IF(U38<>FALSE,IF($C$2="GAS_BASE",(U38-A38+1)*koszyki!$A$14+J38,IF($C$2="OFFPEAK",M38*koszyki!$A$14+(N38)*24+J38,IF($C$2="BASE5",M38*koszyki!$A$14+J38,IF($C$2="PEAK7",(B38-A38+1)*koszyki!$A$14,M38*koszyki!$A$14))))/B38,1) -> 1 | Z38: -281 | AA38: -645 | AC38: 31 | AD38: 2028-03-26 | AE38: -1 | AK38: 2026-12-31 | AL38: =AK38-1 -> 2026-12-30 | AM38: 2026-12-29 | AN38: 2026-12-28 | AP38: =NETWORKDAYS(AK38,AK38,koszyki!$M$20:$M$89) -> 1 | AQ38: =NETWORKDAYS(AL38,AL38,koszyki!$M$20:$M$89) -> 1 | AR38: =NETWORKDAYS(AM38,AM38,koszyki!$M$20:$M$89) -> 1 | AS38: =NETWORKDAYS(AN38,AN38,koszyki!$M$20:$M$89) -> 1 | AU38: 1 | AV38: 2 | AW38: 3 | AX38: 4 | AZ38: 0
A39: 2027-01-01 | B39: 2027-03-31 | C39: =IF($C$2="GAS_BASE",(B39-A39+1)*koszyki!$A$14+J39,IF($C$2="OFFPEAK",M39*koszyki!$A$14+(N39)*24+J39,IF($C$2="BASE5",M39*koszyki!$A$14+J39,IF($C$2="PEAK7",(B39-A39+1)*koszyki!$A$14,M39*koszyki!$A$14)))) -> 2159 | D39: ='Kalkulator Depozytów'!M44 -> 0 | E39: ='Kalkulator Depozytów'!N44 -> 0 | F39: ='Kalkulator Depozytów'!O44 -> 0 | G39: ='Kalkulator Depozytów'!P44 -> 0 | H39: ='Kalkulator Depozytów'!Q44 -> 0 | I39: =ROUND(AVERAGE(INDIRECT("krzywa!C"&MATCH(A39-$A$2,krzywa!A:A,0)&":C"&MATCH(B39-$A$2,krzywa!A:A,0),TRUE)),4) ->  | J39: -1 | K39: 365 | L39: GAS_BASE | M39: =NETWORKDAYS(A39,B39,koszyki!$M$20:$M$89) -> 64 | N39: =B39-A39+1- NETWORKDAYS(A39,B39,koszyki!$M$20:$M$89) -> 26 | P39: 0 | R39: =VLOOKUP(A39,krzywa!L:N,3,1) -> 23 | S39: =VLOOKUP(B39,krzywa!L:N,3,1) -> 23 | T39: =IF('Kalkulator Depozytów'!$B$35=TRUE,1,(1+R39/100)*V39+(1+S39/100)*(1-V39)) -> 1.23 | U39: =IF(R39<>S39,VLOOKUP(A39,krzywa!L:N,2,1)) -> FALSE | V39: =IF(U39<>FALSE,IF($C$2="GAS_BASE",(U39-A39+1)*koszyki!$A$14+J39,IF($C$2="OFFPEAK",M39*koszyki!$A$14+(N39)*24+J39,IF($C$2="BASE5",M39*koszyki!$A$14+J39,IF($C$2="PEAK7",(B39-A39+1)*koszyki!$A$14,M39*koszyki!$A$14))))/B39,1) -> 1 | Z39: -64 | AA39: -428 | AC39: 32 | AD39: 2028-10-29 | AE39: 1 | AK39: 2027-03-31 | AL39: =AK39-1 -> 2027-03-30 | AM39: 2027-03-29 | AN39: 2027-03-28 | AP39: =NETWORKDAYS(AK39,AK39,koszyki!$M$20:$M$89) -> 1 | AQ39: =NETWORKDAYS(AL39,AL39,koszyki!$M$20:$M$89) -> 1 | AR39: =NETWORKDAYS(AM39,AM39,koszyki!$M$20:$M$89) -> 1 | AS39: =NETWORKDAYS(AN39,AN39,koszyki!$M$20:$M$89) -> 0 | AU39: 1 | AV39: 2 | AW39: 3 | AX39: 3 | AZ39: 0
A40: 2027-04-01 | B40: 2027-09-30 | C40: =IF($C$2="GAS_BASE",(B40-A40+1)*koszyki!$A$14+J40,IF($C$2="OFFPEAK",M40*koszyki!$A$14+(N40)*24+J40,IF($C$2="BASE5",M40*koszyki!$A$14+J40,IF($C$2="PEAK7",(B40-A40+1)*koszyki!$A$14,M40*koszyki!$A$14)))) -> 4392 | D40: ='Kalkulator Depozytów'!M45 -> 0 | E40: ='Kalkulator Depozytów'!N45 -> 0 | F40: ='Kalkulator Depozytów'!O45 -> 0 | G40: ='Kalkulator Depozytów'!P45 -> 0 | H40: ='Kalkulator Depozytów'!Q45 -> 0 | I40: =ROUND(AVERAGE(INDIRECT("krzywa!C"&MATCH(A40-$A$2,krzywa!A:A,0)&":C"&MATCH(B40-$A$2,krzywa!A:A,0),TRUE)),4) ->  | K40: 365 | L40: GAS_BASE | M40: =NETWORKDAYS(A40,B40,koszyki!$M$20:$M$89) -> 131 | N40: =B40-A40+1- NETWORKDAYS(A40,B40,koszyki!$M$20:$M$89) -> 52 | P40: 0 | R40: =VLOOKUP(A40,krzywa!L:N,3,1) -> 23 | S40: =VLOOKUP(B40,krzywa!L:N,3,1) -> 23 | T40: =IF('Kalkulator Depozytów'!$B$35=TRUE,1,(1+R40/100)*V40+(1+S40/100)*(1-V40)) -> 1.23 | U40: =IF(R40<>S40,VLOOKUP(A40,krzywa!L:N,2,1)) -> FALSE | V40: =IF(U40<>FALSE,IF($C$2="GAS_BASE",(U40-A40+1)*koszyki!$A$14+J40,IF($C$2="OFFPEAK",M40*koszyki!$A$14+(N40)*24+J40,IF($C$2="BASE5",M40*koszyki!$A$14+J40,IF($C$2="PEAK7",(B40-A40+1)*koszyki!$A$14,M40*koszyki!$A$14))))/B40,1) -> 1 | AK40: 2027-09-30 | AL40: =AK40-1 -> 2027-09-29 | AM40: 2027-09-28 | AN40: 2027-09-27 | AP40: =NETWORKDAYS(AK40,AK40,koszyki!$M$20:$M$89) -> 1 | AQ40: =NETWORKDAYS(AL40,AL40,koszyki!$M$20:$M$89) -> 1 | AR40: =NETWORKDAYS(AM40,AM40,koszyki!$M$20:$M$89) -> 1 | AS40: =NETWORKDAYS(AN40,AN40,koszyki!$M$20:$M$89) -> 1 | AU40: 1 | AV40: 2 | AW40: 3 | AX40: 4 | AZ40: 0
A41: 2027-10-01 | B41: 2027-12-31 | C41: =IF($C$2="GAS_BASE",(B41-A41+1)*koszyki!$A$14+J41,IF($C$2="OFFPEAK",M41*koszyki!$A$14+(N41)*24+J41,IF($C$2="BASE5",M41*koszyki!$A$14+J41,IF($C$2="PEAK7",(B41-A41+1)*koszyki!$A$14,M41*koszyki!$A$14)))) -> 2209 | D41: ='Kalkulator Depozytów'!M46 -> 0 | E41: ='Kalkulator Depozytów'!N46 -> 0 | F41: ='Kalkulator Depozytów'!O46 -> 0 | G41: ='Kalkulator Depozytów'!P46 -> 0 | H41: ='Kalkulator Depozytów'!Q46 -> 0 | I41: =ROUND(AVERAGE(INDIRECT("krzywa!C"&MATCH(A41-$A$2,krzywa!A:A,0)&":C"&MATCH(B41-$A$2,krzywa!A:A,0),TRUE)),4) ->  | J41: 1 | K41: 365 | L41: GAS_BASE | M41: =NETWORKDAYS(A41,B41,koszyki!$M$20:$M$89) -> 66 | N41: =B41-A41+1- NETWORKDAYS(A41,B41,koszyki!$M$20:$M$89) -> 26 | P41: 0 | R41: =VLOOKUP(A41,krzywa!L:N,3,1) -> 23 | S41: =VLOOKUP(B41,krzywa!L:N,3,1) -> 23 | T41: =IF('Kalkulator Depozytów'!$B$35=TRUE,1,(1+R41/100)*V41+(1+S41/100)*(1-V41)) -> 1.23 | U41: =IF(R41<>S41,VLOOKUP(A41,krzywa!L:N,2,1)) -> FALSE | V41: =IF(U41<>FALSE,IF($C$2="GAS_BASE",(U41-A41+1)*koszyki!$A$14+J41,IF($C$2="OFFPEAK",M41*koszyki!$A$14+(N41)*24+J41,IF($C$2="BASE5",M41*koszyki!$A$14+J41,IF($C$2="PEAK7",(B41-A41+1)*koszyki!$A$14,M41*koszyki!$A$14))))/B41,1) -> 1 | AK41: 2027-12-31 | AL41: =AK41-1 -> 2027-12-30 | AM41: 2027-12-29 | AN41: 2027-12-28 | AP41: =NETWORKDAYS(AK41,AK41,koszyki!$M$20:$M$89) -> 1 | AQ41: =NETWORKDAYS(AL41,AL41,koszyki!$M$20:$M$89) -> 1 | AR41: =NETWORKDAYS(AM41,AM41,koszyki!$M$20:$M$89) -> 1 | AS41: =NETWORKDAYS(AN41,AN41,koszyki!$M$20:$M$89) -> 1 | AU41: 1 | AV41: 2 | AW41: 3 | AX41: 4 | AZ41: 0
A42: 2028-01-01 | B42: 2028-12-31 | C42: =IF($C$2="GAS_BASE",(B42-A42+1)*koszyki!$A$14+J42,IF($C$2="OFFPEAK",M42*koszyki!$A$14+(N42)*24+J42,IF($C$2="BASE5",M42*koszyki!$A$14+J42,IF($C$2="PEAK7",(B42-A42+1)*koszyki!$A$14,M42*koszyki!$A$14)))) -> 8784 | D42: ='Kalkulator Depozytów'!M47 -> 0 | E42: ='Kalkulator Depozytów'!N47 -> 0 | F42: ='Kalkulator Depozytów'!O47 -> 0 | G42: ='Kalkulator Depozytów'!P47 -> 0 | H42: ='Kalkulator Depozytów'!Q47 -> 0 | I42: =ROUND(AVERAGE(INDIRECT("krzywa!C"&MATCH(A42-$A$2,krzywa!A:A,0)&":C"&MATCH(B42-$A$2,krzywa!A:A,0),TRUE)),4) ->  | J42: 0 | K42: 365 | L42: GAS_BASE | M42: =NETWORKDAYS(A42,B42,koszyki!$M$20:$M$89) -> 260 | N42: =B42-A42+1- NETWORKDAYS(A42,B42,koszyki!$M$20:$M$89) -> 106 | P42: 0 | R42: =VLOOKUP(A42,krzywa!L:N,3,1) -> 23 | S42: =VLOOKUP(B42,krzywa!L:N,3,1) -> 23 | T42: =IF('Kalkulator Depozytów'!$B$35=TRUE,1,(1+R42/100)*V42+(1+S42/100)*(1-V42)) -> 1.23 | U42: =IF(R42<>S42,VLOOKUP(A42,krzywa!L:N,2,1)) -> FALSE | V42: =IF(U42<>FALSE,IF($C$2="GAS_BASE",(U42-A42+1)*koszyki!$A$14+J42,IF($C$2="OFFPEAK",M42*koszyki!$A$14+(N42)*24+J42,IF($C$2="BASE5",M42*koszyki!$A$14+J42,IF($C$2="PEAK7",(B42-A42+1)*koszyki!$A$14,M42*koszyki!$A$14))))/B42,1) -> 1 | AK42: 2028-12-31 | AL42: =AK42-1 -> 2028-12-30 | AM42: 2028-12-29 | AN42: 2028-12-28 | AP42: =NETWORKDAYS(AK42,AK42,koszyki!$M$20:$M$89) -> 0 | AQ42: =NETWORKDAYS(AL42,AL42,koszyki!$M$20:$M$89) -> 0 | AR42: =NETWORKDAYS(AM42,AM42,koszyki!$M$20:$M$89) -> 1 | AS42: =NETWORKDAYS(AN42,AN42,koszyki!$M$20:$M$89) -> 1 | AU42: 0 | AV42: 0 | AW42: 1 | AX42: 2 | AZ42: 2
A43: 2029-01-01 | B43: 2029-12-31 | C43: =IF($C$2="GAS_BASE",(B43-A43+1)*koszyki!$A$14+J43,IF($C$2="OFFPEAK",M43*koszyki!$A$14+(N43)*24+J43,IF($C$2="BASE5",M43*koszyki!$A$14+J43,IF($C$2="PEAK7",(B43-A43+1)*koszyki!$A$14,M43*koszyki!$A$14)))) -> 8760 | D43: ='Kalkulator Depozytów'!M48 -> 0 | E43: ='Kalkulator Depozytów'!N48 -> 0 | F43: ='Kalkulator Depozytów'!O48 -> 0 | G43: ='Kalkulator Depozytów'!P48 -> 0 | H43: ='Kalkulator Depozytów'!Q48 -> 0 | I43: =ROUND(AVERAGE(INDIRECT("krzywa!C"&MATCH(A43-$A$2,krzywa!A:A,0)&":C"&MATCH(B43-$A$2,krzywa!A:A,0),TRUE)),4) ->  | K43: 365 | L43: GAS_BASE | M43: =NETWORKDAYS(A43,B43,koszyki!$M$20:$M$89) -> 261 | N43: =B43-A43+1- NETWORKDAYS(A43,B43,koszyki!$M$20:$M$89) -> 104 | P43: 0 | R43: =VLOOKUP(A43,krzywa!L:N,3,1) -> 23 | S43: =VLOOKUP(B43,krzywa!L:N,3,1) -> 23 | T43: =IF('Kalkulator Depozytów'!$B$35=TRUE,1,(1+R43/100)*V43+(1+S43/100)*(1-V43)) -> 1.23 | U43: =IF(R43<>S43,VLOOKUP(A43,krzywa!L:N,2,1)) -> FALSE | V43: =IF(U43<>FALSE,IF($C$2="GAS_BASE",(U43-A43+1)*koszyki!$A$14+J43,IF($C$2="OFFPEAK",M43*koszyki!$A$14+(N43)*24+J43,IF($C$2="BASE5",M43*koszyki!$A$14+J43,IF($C$2="PEAK7",(B43-A43+1)*koszyki!$A$14,M43*koszyki!$A$14))))/B43,1) -> 1 | AK43: 2029-12-31 | AL43: =AK43-1 -> 2029-12-30 | AM43: 2029-12-29 | AN43: 2029-12-28 | AP43: =NETWORKDAYS(AK43,AK43,koszyki!$M$20:$M$89) -> 1 | AQ43: =NETWORKDAYS(AL43,AL43,koszyki!$M$20:$M$89) -> 0 | AR43: =NETWORKDAYS(AM43,AM43,koszyki!$M$20:$M$89) -> 0 | AS43: =NETWORKDAYS(AN43,AN43,koszyki!$M$20:$M$89) -> 1 | AU43: 1 | AV43: 1 | AW43: 1 | AX43: 2 | AZ43: 0
C44: =IF($C$2="GAS_BASE",(B44-A44+1)*koszyki!$A$14+J44,IF($C$2="OFFPEAK",M44*koszyki!$A$14+(N44)*24+J44,IF($C$2="BASE5",M44*koszyki!$A$14+J44,IF($C$2="PEAK7",(B44-A44+1)*koszyki!$A$14,M44*koszyki!$A$14)))) -> 24 | D44: ='Kalkulator Depozytów'!M49 -> 0 | E44: ='Kalkulator Depozytów'!N49 -> 0 | F44: ='Kalkulator Depozytów'!O49 -> 0 | G44: ='Kalkulator Depozytów'!P49 -> 0 | H44: ='Kalkulator Depozytów'!Q49 -> 0 | I44: =ROUND(AVERAGE(INDIRECT("krzywa!C"&MATCH(A44-$A$2,krzywa!A:A,0)&":C"&MATCH(B44-$A$2,krzywa!A:A,0),TRUE)),4) ->  | K44: 0 | M44: =NETWORKDAYS(A44,B44,koszyki!$M$20:$M$89) -> 0 | N44: =B44-A44+1- NETWORKDAYS(A44,B44,koszyki!$M$20:$M$89) -> 1 | R44: =VLOOKUP(A44,krzywa!L:N,3,1) ->  | S44: =VLOOKUP(B44,krzywa!L:N,3,1) ->  | T44: =IF('Kalkulator Depozytów'!$B$35=TRUE,1,(1+R44/100)*V44+(1+S44/100)*(1-V44)) ->  | U44: =IF(R44<>S44,VLOOKUP(A44,krzywa!L:N,2,1)) ->  | V44: =IF(U44<>FALSE,IF($C$2="GAS_BASE",(U44-A44+1)*koszyki!$A$14+J44,IF($C$2="OFFPEAK",M44*koszyki!$A$14+(N44)*24+J44,IF($C$2="BASE5",M44*koszyki!$A$14+J44,IF($C$2="PEAK7",(B44-A44+1)*koszyki!$A$14,M44*koszyki!$A$14))))/B44,1) ->  | AK44: 00:00:00 | AL44: =AK44-1 -> -1 | AM44: -2 | AN44: -3 | AP44: =NETWORKDAYS(AK44,AK44,koszyki!$M$20:$M$89) -> 0 | AQ44: =NETWORKDAYS(AL44,AL44,koszyki!$M$20:$M$89) ->  | AR44: =NETWORKDAYS(AM44,AM44,koszyki!$M$20:$M$89) ->  | AS44: =NETWORKDAYS(AN44,AN44,koszyki!$M$20:$M$89) ->  | AU44: 0 | AZ44: 1
C45: =IF($C$2="GAS_BASE",(B45-A45+1)*koszyki!$A$14+J45,IF($C$2="OFFPEAK",M45*koszyki!$A$14+(N45)*24+J45,IF($C$2="BASE5",M45*koszyki!$A$14+J45,IF($C$2="PEAK7",(B45-A45+1)*koszyki!$A$14,M45*koszyki!$A$14)))) -> 24 | D45: ='Kalkulator Depozytów'!M50 -> 0 | E45: ='Kalkulator Depozytów'!N50 -> 0 | F45: ='Kalkulator Depozytów'!O50 -> 0 | G45: ='Kalkulator Depozytów'!P50 -> 0 | H45: ='Kalkulator Depozytów'!Q50 -> 0 | I45: =ROUND(AVERAGE(INDIRECT("krzywa!C"&MATCH(A45-$A$2,krzywa!A:A,0)&":C"&MATCH(B45-$A$2,krzywa!A:A,0),TRUE)),4) ->  | K45: 0 | M45: =NETWORKDAYS(A45,B45,koszyki!$M$20:$M$89) -> 0 | N45: =B45-A45+1- NETWORKDAYS(A45,B45,koszyki!$M$20:$M$89) -> 1 | R45: =VLOOKUP(A45,krzywa!L:N,3,1) ->  | S45: =VLOOKUP(B45,krzywa!L:N,3,1) ->  | T45: =IF('Kalkulator Depozytów'!$B$35=TRUE,1,(1+R45/100)*V45+(1+S45/100)*(1-V45)) ->  | U45: =IF(R45<>S45,VLOOKUP(A45,krzywa!L:N,2,1)) ->  | V45: =IF(U45<>FALSE,IF($C$2="GAS_BASE",(U45-A45+1)*koszyki!$A$14+J45,IF($C$2="OFFPEAK",M45*koszyki!$A$14+(N45)*24+J45,IF($C$2="BASE5",M45*koszyki!$A$14+J45,IF($C$2="PEAK7",(B45-A45+1)*koszyki!$A$14,M45*koszyki!$A$14))))/B45,1) ->  | AK45: 00:00:00 | AL45: =AK45-1 -> -1 | AM45: -2 | AN45: -3 | AP45: =NETWORKDAYS(AK45,AK45,koszyki!$M$20:$M$89) -> 0 | AQ45: =NETWORKDAYS(AL45,AL45,koszyki!$M$20:$M$89) ->  | AR45: =NETWORKDAYS(AM45,AM45,koszyki!$M$20:$M$89) ->  | AS45: =NETWORKDAYS(AN45,AN45,koszyki!$M$20:$M$89) ->  | AU45: 0 | AZ45: 1
C46: =IF($C$2="GAS_BASE",(B46-A46+1)*koszyki!$A$14+J46,IF($C$2="OFFPEAK",M46*koszyki!$A$14+(N46)*24+J46,IF($C$2="BASE5",M46*koszyki!$A$14+J46,IF($C$2="PEAK7",(B46-A46+1)*koszyki!$A$14,M46*koszyki!$A$14)))) -> 24 | D46: ='Kalkulator Depozytów'!M51 -> 0 | E46: ='Kalkulator Depozytów'!N51 -> 0 | F46: ='Kalkulator Depozytów'!O51 -> 0 | G46: ='Kalkulator Depozytów'!P51 -> 0 | H46: ='Kalkulator Depozytów'!Q51 -> 0 | I46: =ROUND(AVERAGE(INDIRECT("krzywa!C"&MATCH(A46-$A$2,krzywa!A:A,0)&":C"&MATCH(B46-$A$2,krzywa!A:A,0),TRUE)),4) ->  | K46: 0 | M46: =NETWORKDAYS(A46,B46,koszyki!$M$20:$M$89) -> 0 | N46: =B46-A46+1- NETWORKDAYS(A46,B46,koszyki!$M$20:$M$89) -> 1 | R46: =VLOOKUP(A46,krzywa!L:N,3,1) ->  | S46: =VLOOKUP(B46,krzywa!L:N,3,1) ->  | T46: =IF('Kalkulator Depozytów'!$B$35=TRUE,1,(1+R46/100)*V46+(1+S46/100)*(1-V46)) ->  | U46: =IF(R46<>S46,VLOOKUP(A46,krzywa!L:N,2,1)) ->  | V46: =IF(U46<>FALSE,IF($C$2="GAS_BASE",(U46-A46+1)*koszyki!$A$14+J46,IF($C$2="OFFPEAK",M46*koszyki!$A$14+(N46)*24+J46,IF($C$2="BASE5",M46*koszyki!$A$14+J46,IF($C$2="PEAK7",(B46-A46+1)*koszyki!$A$14,M46*koszyki!$A$14))))/B46,1) ->  | AK46: 00:00:00 | AL46: =AK46-1 -> -1 | AM46: -2 | AN46: -3 | AP46: =NETWORKDAYS(AK46,AK46,koszyki!$M$20:$M$89) -> 0 | AQ46: =NETWORKDAYS(AL46,AL46,koszyki!$M$20:$M$89) ->  | AR46: =NETWORKDAYS(AM46,AM46,koszyki!$M$20:$M$89) ->  | AS46: =NETWORKDAYS(AN46,AN46,koszyki!$M$20:$M$89) ->  | AU46: 0 | AZ46: 1
C47: =IF($C$2="GAS_BASE",(B47-A47+1)*koszyki!$A$14+J47,IF($C$2="OFFPEAK",M47*koszyki!$A$14+(N47)*24+J47,IF($C$2="BASE5",M47*koszyki!$A$14+J47,IF($C$2="PEAK7",(B47-A47+1)*koszyki!$A$14,M47*koszyki!$A$14)))) -> 24 | D47: ='Kalkulator Depozytów'!M52 -> 0 | E47: ='Kalkulator Depozytów'!N52 -> 0 | F47: ='Kalkulator Depozytów'!O52 -> 0 | G47: ='Kalkulator Depozytów'!P52 -> 0 | H47: ='Kalkulator Depozytów'!Q52 -> 0 | I47: =ROUND(AVERAGE(INDIRECT("krzywa!C"&MATCH(A47-$A$2,krzywa!A:A,0)&":C"&MATCH(B47-$A$2,krzywa!A:A,0),TRUE)),4) ->  | K47: 0 | M47: =NETWORKDAYS(A47,B47,koszyki!$M$20:$M$89) -> 0 | N47: =B47-A47+1- NETWORKDAYS(A47,B47,koszyki!$M$20:$M$89) -> 1 | R47: =VLOOKUP(A47,krzywa!L:N,3,1) ->  | S47: =VLOOKUP(B47,krzywa!L:N,3,1) ->  | T47: =IF('Kalkulator Depozytów'!$B$35=TRUE,1,(1+R47/100)*V47+(1+S47/100)*(1-V47)) ->  | U47: =IF(R47<>S47,VLOOKUP(A47,krzywa!L:N,2,1)) ->  | V47: =IF(U47<>FALSE,IF($C$2="GAS_BASE",(U47-A47+1)*koszyki!$A$14+J47,IF($C$2="OFFPEAK",M47*koszyki!$A$14+(N47)*24+J47,IF($C$2="BASE5",M47*koszyki!$A$14+J47,IF($C$2="PEAK7",(B47-A47+1)*koszyki!$A$14,M47*koszyki!$A$14))))/B47,1) ->  | AK47: 00:00:00 | AL47: =AK47-1 -> -1 | AM47: -2 | AN47: -3 | AP47: =NETWORKDAYS(AK47,AK47,koszyki!$M$20:$M$89) -> 0 | AQ47: =NETWORKDAYS(AL47,AL47,koszyki!$M$20:$M$89) ->  | AR47: =NETWORKDAYS(AM47,AM47,koszyki!$M$20:$M$89) ->  | AS47: =NETWORKDAYS(AN47,AN47,koszyki!$M$20:$M$89) ->  | AU47: 0 | AZ47: 1
C48: =IF($C$2="GAS_BASE",(B48-A48+1)*koszyki!$A$14+J48,IF($C$2="OFFPEAK",M48*koszyki!$A$14+(N48)*24+J48,IF($C$2="BASE5",M48*koszyki!$A$14+J48,IF($C$2="PEAK7",(B48-A48+1)*koszyki!$A$14,M48*koszyki!$A$14)))) -> 24 | D48: ='Kalkulator Depozytów'!M53 -> 0 | E48: ='Kalkulator Depozytów'!N53 -> 0 | F48: ='Kalkulator Depozytów'!O53 -> 0 | G48: ='Kalkulator Depozytów'!P53 -> 0 | H48: ='Kalkulator Depozytów'!Q53 -> 0 | I48: =ROUND(AVERAGE(INDIRECT("krzywa!C"&MATCH(A48-$A$2,krzywa!A:A,0)&":C"&MATCH(B48-$A$2,krzywa!A:A,0),TRUE)),4) ->  | K48: 0 | M48: =NETWORKDAYS(A48,B48,koszyki!$M$20:$M$89) -> 0 | N48: =B48-A48+1- NETWORKDAYS(A48,B48,koszyki!$M$20:$M$89) -> 1 | R48: =VLOOKUP(A48,krzywa!L:N,3,1) ->  | S48: =VLOOKUP(B48,krzywa!L:N,3,1) ->  | T48: =IF('Kalkulator Depozytów'!$B$35=TRUE,1,(1+R48/100)*V48+(1+S48/100)*(1-V48)) ->  | U48: =IF(R48<>S48,VLOOKUP(A48,krzywa!L:N,2,1)) ->  | V48: =IF(U48<>FALSE,IF($C$2="GAS_BASE",(U48-A48+1)*koszyki!$A$14+J48,IF($C$2="OFFPEAK",M48*koszyki!$A$14+(N48)*24+J48,IF($C$2="BASE5",M48*koszyki!$A$14+J48,IF($C$2="PEAK7",(B48-A48+1)*koszyki!$A$14,M48*koszyki!$A$14))))/B48,1) ->  | AK48: 00:00:00 | AL48: =AK48-1 -> -1 | AM48: -2 | AN48: -3 | AP48: =NETWORKDAYS(AK48,AK48,koszyki!$M$20:$M$89) -> 0 | AQ48: =NETWORKDAYS(AL48,AL48,koszyki!$M$20:$M$89) ->  | AR48: =NETWORKDAYS(AM48,AM48,koszyki!$M$20:$M$89) ->  | AS48: =NETWORKDAYS(AN48,AN48,koszyki!$M$20:$M$89) ->  | AU48: 0 | AZ48: 1
C49: =IF($C$2="GAS_BASE",(B49-A49+1)*koszyki!$A$14+J49,IF($C$2="OFFPEAK",M49*koszyki!$A$14+(N49)*24+J49,IF($C$2="BASE5",M49*koszyki!$A$14+J49,IF($C$2="PEAK7",(B49-A49+1)*koszyki!$A$14,M49*koszyki!$A$14)))) -> 24 | D49: ='Kalkulator Depozytów'!M54 -> 0 | E49: ='Kalkulator Depozytów'!N54 -> 0 | F49: ='Kalkulator Depozytów'!O54 -> 0 | G49: ='Kalkulator Depozytów'!P54 -> 0 | H49: ='Kalkulator Depozytów'!Q54 -> 0 | I49: =ROUND(AVERAGE(INDIRECT("krzywa!C"&MATCH(A49-$A$2,krzywa!A:A,0)&":C"&MATCH(B49-$A$2,krzywa!A:A,0),TRUE)),4) ->  | K49: 0 | M49: =NETWORKDAYS(A49,B49,koszyki!$M$20:$M$89) -> 0 | N49: =B49-A49+1- NETWORKDAYS(A49,B49,koszyki!$M$20:$M$89) -> 1 | R49: =VLOOKUP(A49,krzywa!L:N,3,1) ->  | S49: =VLOOKUP(B49,krzywa!L:N,3,1) ->  | T49: =IF('Kalkulator Depozytów'!$B$35=TRUE,1,(1+R49/100)*V49+(1+S49/100)*(1-V49)) ->  | U49: =IF(R49<>S49,VLOOKUP(A49,krzywa!L:N,2,1)) ->  | V49: =IF(U49<>FALSE,IF($C$2="GAS_BASE",(U49-A49+1)*koszyki!$A$14+J49,IF($C$2="OFFPEAK",M49*koszyki!$A$14+(N49)*24+J49,IF($C$2="BASE5",M49*koszyki!$A$14+J49,IF($C$2="PEAK7",(B49-A49+1)*koszyki!$A$14,M49*koszyki!$A$14))))/B49,1) ->  | AK49: 00:00:00 | AL49: =AK49-1 -> -1 | AM49: -2 | AN49: -3 | AP49: =NETWORKDAYS(AK49,AK49,koszyki!$M$20:$M$89) -> 0 | AQ49: =NETWORKDAYS(AL49,AL49,koszyki!$M$20:$M$89) ->  | AR49: =NETWORKDAYS(AM49,AM49,koszyki!$M$20:$M$89) ->  | AS49: =NETWORKDAYS(AN49,AN49,koszyki!$M$20:$M$89) ->  | AU49: 0 | AZ49: 1
C50: =IF($C$2="GAS_BASE",(B50-A50+1)*koszyki!$A$14+J50,IF($C$2="OFFPEAK",M50*koszyki!$A$14+(N50)*24+J50,IF($C$2="BASE5",M50*koszyki!$A$14+J50,IF($C$2="PEAK7",(B50-A50+1)*koszyki!$A$14,M50*koszyki!$A$14)))) -> 24 | D50: ='Kalkulator Depozytów'!M55 -> 0 | E50: ='Kalkulator Depozytów'!N55 -> 0 | F50: ='Kalkulator Depozytów'!O55 -> 0 | G50: ='Kalkulator Depozytów'!P55 -> 0 | H50: ='Kalkulator Depozytów'!Q55 -> 0 | I50: =ROUND(AVERAGE(INDIRECT("krzywa!C"&MATCH(A50-$A$2,krzywa!A:A,0)&":C"&MATCH(B50-$A$2,krzywa!A:A,0),TRUE)),4) ->  | K50: 0 | M50: =NETWORKDAYS(A50,B50,koszyki!$M$20:$M$89) -> 0 | N50: =B50-A50+1- NETWORKDAYS(A50,B50,koszyki!$M$20:$M$89) -> 1 | R50: =VLOOKUP(A50,krzywa!L:N,3,1) ->  | S50: =VLOOKUP(B50,krzywa!L:N,3,1) ->  | T50: =IF('Kalkulator Depozytów'!$B$35=TRUE,1,(1+R50/100)*V50+(1+S50/100)*(1-V50)) ->  | U50: =IF(R50<>S50,VLOOKUP(A50,krzywa!L:N,2,1)) ->  | V50: =IF(U50<>FALSE,IF($C$2="GAS_BASE",(U50-A50+1)*koszyki!$A$14+J50,IF($C$2="OFFPEAK",M50*koszyki!$A$14+(N50)*24+J50,IF($C$2="BASE5",M50*koszyki!$A$14+J50,IF($C$2="PEAK7",(B50-A50+1)*koszyki!$A$14,M50*koszyki!$A$14))))/B50,1) ->  | AK50: 00:00:00 | AL50: =AK50-1 -> -1 | AM50: -2 | AN50: -3 | AP50: =NETWORKDAYS(AK50,AK50,koszyki!$M$20:$M$89) -> 0 | AQ50: =NETWORKDAYS(AL50,AL50,koszyki!$M$20:$M$89) ->  | AR50: =NETWORKDAYS(AM50,AM50,koszyki!$M$20:$M$89) ->  | AS50: =NETWORKDAYS(AN50,AN50,koszyki!$M$20:$M$89) ->  | AU50: 0 | AZ50: 1
C51: =IF($C$2="GAS_BASE",(B51-A51+1)*koszyki!$A$14+J51,IF($C$2="OFFPEAK",M51*koszyki!$A$14+(N51)*24+J51,IF($C$2="BASE5",M51*koszyki!$A$14+J51,IF($C$2="PEAK7",(B51-A51+1)*koszyki!$A$14,M51*koszyki!$A$14)))) -> 24 | D51: ='Kalkulator Depozytów'!M56 -> 0 | E51: ='Kalkulator Depozytów'!N56 -> 0 | F51: ='Kalkulator Depozytów'!O56 -> 0 | G51: ='Kalkulator Depozytów'!P56 -> 0 | H51: ='Kalkulator Depozytów'!Q56 -> 0 | I51: =ROUND(AVERAGE(INDIRECT("krzywa!C"&MATCH(A51-$A$2,krzywa!A:A,0)&":C"&MATCH(B51-$A$2,krzywa!A:A,0),TRUE)),4) ->  | K51: 0 | M51: =NETWORKDAYS(A51,B51,koszyki!$M$20:$M$89) -> 0 | N51: =B51-A51+1- NETWORKDAYS(A51,B51,koszyki!$M$20:$M$89) -> 1 | R51: =VLOOKUP(A51,krzywa!L:N,3,1) ->  | S51: =VLOOKUP(B51,krzywa!L:N,3,1) ->  | T51: =IF('Kalkulator Depozytów'!$B$35=TRUE,1,(1+R51/100)*V51+(1+S51/100)*(1-V51)) ->  | U51: =IF(R51<>S51,VLOOKUP(A51,krzywa!L:N,2,1)) ->  | V51: =IF(U51<>FALSE,IF($C$2="GAS_BASE",(U51-A51+1)*koszyki!$A$14+J51,IF($C$2="OFFPEAK",M51*koszyki!$A$14+(N51)*24+J51,IF($C$2="BASE5",M51*koszyki!$A$14+J51,IF($C$2="PEAK7",(B51-A51+1)*koszyki!$A$14,M51*koszyki!$A$14))))/B51,1) ->  | AK51: 00:00:00 | AL51: =AK51-1 -> -1 | AM51: -2 | AN51: -3 | AP51: =NETWORKDAYS(AK51,AK51,koszyki!$M$20:$M$89) -> 0 | AQ51: =NETWORKDAYS(AL51,AL51,koszyki!$M$20:$M$89) ->  | AR51: =NETWORKDAYS(AM51,AM51,koszyki!$M$20:$M$89) ->  | AS51: =NETWORKDAYS(AN51,AN51,koszyki!$M$20:$M$89) ->  | AU51: 0 | AZ51: 1
C52: =IF($C$2="GAS_BASE",(B52-A52+1)*koszyki!$A$14+J52,IF($C$2="OFFPEAK",M52*koszyki!$A$14+(N52)*24+J52,IF($C$2="BASE5",M52*koszyki!$A$14+J52,IF($C$2="PEAK7",(B52-A52+1)*koszyki!$A$14,M52*koszyki!$A$14)))) -> 24 | D52: ='Kalkulator Depozytów'!M57 -> 0 | E52: ='Kalkulator Depozytów'!N57 -> 0 | F52: ='Kalkulator Depozytów'!O57 -> 0 | G52: ='Kalkulator Depozytów'!P57 -> 0 | H52: ='Kalkulator Depozytów'!Q57 -> 0 | I52: =ROUND(AVERAGE(INDIRECT("krzywa!C"&MATCH(A52-$A$2,krzywa!A:A,0)&":C"&MATCH(B52-$A$2,krzywa!A:A,0),TRUE)),4) ->  | K52: 0 | M52: =NETWORKDAYS(A52,B52,koszyki!$M$20:$M$89) -> 0 | N52: =B52-A52+1- NETWORKDAYS(A52,B52,koszyki!$M$20:$M$89) -> 1 | R52: =VLOOKUP(A52,krzywa!L:N,3,1) ->  | S52: =VLOOKUP(B52,krzywa!L:N,3,1) ->  | T52: =IF('Kalkulator Depozytów'!$B$35=TRUE,1,(1+R52/100)*V52+(1+S52/100)*(1-V52)) ->  | U52: =IF(R52<>S52,VLOOKUP(A52,krzywa!L:N,2,1)) ->  | V52: =IF(U52<>FALSE,IF($C$2="GAS_BASE",(U52-A52+1)*koszyki!$A$14+J52,IF($C$2="OFFPEAK",M52*koszyki!$A$14+(N52)*24+J52,IF($C$2="BASE5",M52*koszyki!$A$14+J52,IF($C$2="PEAK7",(B52-A52+1)*koszyki!$A$14,M52*koszyki!$A$14))))/B52,1) ->  | AK52: 00:00:00 | AL52: =AK52-1 -> -1 | AM52: -2 | AN52: -3 | AP52: =NETWORKDAYS(AK52,AK52,koszyki!$M$20:$M$89) -> 0 | AQ52: =NETWORKDAYS(AL52,AL52,koszyki!$M$20:$M$89) ->  | AR52: =NETWORKDAYS(AM52,AM52,koszyki!$M$20:$M$89) ->  | AS52: =NETWORKDAYS(AN52,AN52,koszyki!$M$20:$M$89) ->  | AU52: 0 | AZ52: 1
C53: =IF($C$2="GAS_BASE",(B53-A53+1)*koszyki!$A$14+J53,IF($C$2="OFFPEAK",M53*koszyki!$A$14+(N53)*24+J53,IF($C$2="BASE5",M53*koszyki!$A$14+J53,IF($C$2="PEAK7",(B53-A53+1)*koszyki!$A$14,M53*koszyki!$A$14)))) -> 24 | D53: ='Kalkulator Depozytów'!M58 -> 0 | E53: ='Kalkulator Depozytów'!N58 -> 0 | F53: ='Kalkulator Depozytów'!O58 -> 0 | G53: ='Kalkulator Depozytów'!P58 -> 0 | H53: ='Kalkulator Depozytów'!Q58 -> 0 | I53: =ROUND(AVERAGE(INDIRECT("krzywa!C"&MATCH(A53-$A$2,krzywa!A:A,0)&":C"&MATCH(B53-$A$2,krzywa!A:A,0),TRUE)),4) ->  | K53: 0 | M53: =NETWORKDAYS(A53,B53,koszyki!$M$20:$M$89) -> 0 | N53: =B53-A53+1- NETWORKDAYS(A53,B53,koszyki!$M$20:$M$89) -> 1 | R53: =VLOOKUP(A53,krzywa!L:N,3,1) ->  | S53: =VLOOKUP(B53,krzywa!L:N,3,1) ->  | T53: =IF('Kalkulator Depozytów'!$B$35=TRUE,1,(1+R53/100)*V53+(1+S53/100)*(1-V53)) ->  | U53: =IF(R53<>S53,VLOOKUP(A53,krzywa!L:N,2,1)) ->  | V53: =IF(U53<>FALSE,IF($C$2="GAS_BASE",(U53-A53+1)*koszyki!$A$14+J53,IF($C$2="OFFPEAK",M53*koszyki!$A$14+(N53)*24+J53,IF($C$2="BASE5",M53*koszyki!$A$14+J53,IF($C$2="PEAK7",(B53-A53+1)*koszyki!$A$14,M53*koszyki!$A$14))))/B53,1) ->  | AK53: 00:00:00 | AL53: =AK53-1 -> -1 | AM53: -2 | AN53: -3 | AP53: =NETWORKDAYS(AK53,AK53,koszyki!$M$20:$M$89) -> 0 | AQ53: =NETWORKDAYS(AL53,AL53,koszyki!$M$20:$M$89) ->  | AR53: =NETWORKDAYS(AM53,AM53,koszyki!$M$20:$M$89) ->  | AS53: =NETWORKDAYS(AN53,AN53,koszyki!$M$20:$M$89) ->  | AU53: 0 | AZ53: 1
C54: =IF($C$2="GAS_BASE",(B54-A54+1)*koszyki!$A$14+J54,IF($C$2="OFFPEAK",M54*koszyki!$A$14+(N54)*24+J54,IF($C$2="BASE5",M54*koszyki!$A$14+J54,IF($C$2="PEAK7",(B54-A54+1)*koszyki!$A$14,M54*koszyki!$A$14)))) -> 24 | D54: ='Kalkulator Depozytów'!M59 -> 0 | E54: ='Kalkulator Depozytów'!N59 -> 0 | F54: ='Kalkulator Depozytów'!O59 -> 0 | G54: ='Kalkulator Depozytów'!P59 -> 0 | H54: ='Kalkulator Depozytów'!Q59 -> 0 | I54: =ROUND(AVERAGE(INDIRECT("krzywa!C"&MATCH(A54-$A$2,krzywa!A:A,0)&":C"&MATCH(B54-$A$2,krzywa!A:A,0),TRUE)),4) ->  | K54: 0 | M54: =NETWORKDAYS(A54,B54,koszyki!$M$20:$M$89) -> 0 | N54: =B54-A54+1- NETWORKDAYS(A54,B54,koszyki!$M$20:$M$89) -> 1 | R54: =VLOOKUP(A54,krzywa!L:N,3,1) ->  | S54: =VLOOKUP(B54,krzywa!L:N,3,1) ->  | T54: =IF('Kalkulator Depozytów'!$B$35=TRUE,1,(1+R54/100)*V54+(1+S54/100)*(1-V54)) ->  | U54: =IF(R54<>S54,VLOOKUP(A54,krzywa!L:N,2,1)) ->  | V54: =IF(U54<>FALSE,IF($C$2="GAS_BASE",(U54-A54+1)*koszyki!$A$14+J54,IF($C$2="OFFPEAK",M54*koszyki!$A$14+(N54)*24+J54,IF($C$2="BASE5",M54*koszyki!$A$14+J54,IF($C$2="PEAK7",(B54-A54+1)*koszyki!$A$14,M54*koszyki!$A$14))))/B54,1) ->  | AK54: 00:00:00 | AL54: =AK54-1 -> -1 | AM54: -2 | AN54: -3 | AP54: =NETWORKDAYS(AK54,AK54,koszyki!$M$20:$M$89) -> 0 | AQ54: =NETWORKDAYS(AL54,AL54,koszyki!$M$20:$M$89) ->  | AR54: =NETWORKDAYS(AM54,AM54,koszyki!$M$20:$M$89) ->  | AS54: =NETWORKDAYS(AN54,AN54,koszyki!$M$20:$M$89) ->  | AU54: 0 | AZ54: 1
C55: =IF($C$2="GAS_BASE",(B55-A55+1)*koszyki!$A$14+J55,IF($C$2="OFFPEAK",M55*koszyki!$A$14+(N55)*24+J55,IF($C$2="BASE5",M55*koszyki!$A$14+J55,IF($C$2="PEAK7",(B55-A55+1)*koszyki!$A$14,M55*koszyki!$A$14)))) -> 24 | D55: ='Kalkulator Depozytów'!M60 -> 0 | E55: ='Kalkulator Depozytów'!N60 -> 0 | F55: ='Kalkulator Depozytów'!O60 -> 0 | G55: ='Kalkulator Depozytów'!P60 -> 0 | H55: ='Kalkulator Depozytów'!Q60 -> 0 | I55: =ROUND(AVERAGE(INDIRECT("krzywa!C"&MATCH(A55-$A$2,krzywa!A:A,0)&":C"&MATCH(B55-$A$2,krzywa!A:A,0),TRUE)),4) ->  | K55: 0 | M55: =NETWORKDAYS(A55,B55,koszyki!$M$20:$M$89) -> 0 | N55: =B55-A55+1- NETWORKDAYS(A55,B55,koszyki!$M$20:$M$89) -> 1 | R55: =VLOOKUP(A55,krzywa!L:N,3,1) ->  | S55: =VLOOKUP(B55,krzywa!L:N,3,1) ->  | T55: =IF('Kalkulator Depozytów'!$B$35=TRUE,1,(1+R55/100)*V55+(1+S55/100)*(1-V55)) ->  | U55: =IF(R55<>S55,VLOOKUP(A55,krzywa!L:N,2,1)) ->  | V55: =IF(U55<>FALSE,IF($C$2="GAS_BASE",(U55-A55+1)*koszyki!$A$14+J55,IF($C$2="OFFPEAK",M55*koszyki!$A$14+(N55)*24+J55,IF($C$2="BASE5",M55*koszyki!$A$14+J55,IF($C$2="PEAK7",(B55-A55+1)*koszyki!$A$14,M55*koszyki!$A$14))))/B55,1) ->  | AK55: 00:00:00 | AL55: =AK55-1 -> -1 | AM55: -2 | AN55: -3 | AP55: =NETWORKDAYS(AK55,AK55,koszyki!$M$20:$M$89) -> 0 | AQ55: =NETWORKDAYS(AL55,AL55,koszyki!$M$20:$M$89) ->  | AR55: =NETWORKDAYS(AM55,AM55,koszyki!$M$20:$M$89) ->  | AS55: =NETWORKDAYS(AN55,AN55,koszyki!$M$20:$M$89) ->  | AU55: 0 | AZ55: 1
C56: =IF($C$2="GAS_BASE",(B56-A56+1)*koszyki!$A$14+J56,IF($C$2="OFFPEAK",M56*koszyki!$A$14+(N56)*24+J56,IF($C$2="BASE5",M56*koszyki!$A$14+J56,IF($C$2="PEAK7",(B56-A56+1)*koszyki!$A$14,M56*koszyki!$A$14)))) -> 24 | D56: ='Kalkulator Depozytów'!M61 -> 0 | E56: ='Kalkulator Depozytów'!N61 -> 0 | F56: ='Kalkulator Depozytów'!O61 -> 0 | G56: ='Kalkulator Depozytów'!P61 -> 0 | H56: ='Kalkulator Depozytów'!Q61 -> 0 | I56: =ROUND(AVERAGE(INDIRECT("krzywa!C"&MATCH(A56-$A$2,krzywa!A:A,0)&":C"&MATCH(B56-$A$2,krzywa!A:A,0),TRUE)),4) ->  | K56: 0 | M56: =NETWORKDAYS(A56,B56,koszyki!$M$20:$M$89) -> 0 | N56: =B56-A56+1- NETWORKDAYS(A56,B56,koszyki!$M$20:$M$89) -> 1 | R56: =VLOOKUP(A56,krzywa!L:N,3,1) ->  | S56: =VLOOKUP(B56,krzywa!L:N,3,1) ->  | T56: =IF('Kalkulator Depozytów'!$B$35=TRUE,1,(1+R56/100)*V56+(1+S56/100)*(1-V56)) ->  | U56: =IF(R56<>S56,VLOOKUP(A56,krzywa!L:N,2,1)) ->  | V56: =IF(U56<>FALSE,IF($C$2="GAS_BASE",(U56-A56+1)*koszyki!$A$14+J56,IF($C$2="OFFPEAK",M56*koszyki!$A$14+(N56)*24+J56,IF($C$2="BASE5",M56*koszyki!$A$14+J56,IF($C$2="PEAK7",(B56-A56+1)*koszyki!$A$14,M56*koszyki!$A$14))))/B56,1) ->  | AK56: 00:00:00 | AL56: =AK56-1 -> -1 | AM56: -2 | AN56: -3 | AP56: =NETWORKDAYS(AK56,AK56,koszyki!$M$20:$M$89) -> 0 | AQ56: =NETWORKDAYS(AL56,AL56,koszyki!$M$20:$M$89) ->  | AR56: =NETWORKDAYS(AM56,AM56,koszyki!$M$20:$M$89) ->  | AS56: =NETWORKDAYS(AN56,AN56,koszyki!$M$20:$M$89) ->  | AU56: 0 | AZ56: 1
C57: =IF($C$2="GAS_BASE",(B57-A57+1)*koszyki!$A$14+J57,IF($C$2="OFFPEAK",M57*koszyki!$A$14+(N57)*24+J57,IF($C$2="BASE5",M57*koszyki!$A$14+J57,IF($C$2="PEAK7",(B57-A57+1)*koszyki!$A$14,M57*koszyki!$A$14)))) -> 24 | D57: ='Kalkulator Depozytów'!M62 -> 0 | E57: ='Kalkulator Depozytów'!N62 -> 0 | F57: ='Kalkulator Depozytów'!O62 -> 0 | G57: ='Kalkulator Depozytów'!P62 -> 0 | H57: ='Kalkulator Depozytów'!Q62 -> 0 | I57: =ROUND(AVERAGE(INDIRECT("krzywa!C"&MATCH(A57-$A$2,krzywa!A:A,0)&":C"&MATCH(B57-$A$2,krzywa!A:A,0),TRUE)),4) ->  | K57: 0 | M57: =NETWORKDAYS(A57,B57,koszyki!$M$20:$M$89) -> 0 | N57: =B57-A57+1- NETWORKDAYS(A57,B57,koszyki!$M$20:$M$89) -> 1 | R57: =VLOOKUP(A57,krzywa!L:N,3,1) ->  | S57: =VLOOKUP(B57,krzywa!L:N,3,1) ->  | T57: =IF('Kalkulator Depozytów'!$B$35=TRUE,1,(1+R57/100)*V57+(1+S57/100)*(1-V57)) ->  | U57: =IF(R57<>S57,VLOOKUP(A57,krzywa!L:N,2,1)) ->  | V57: =IF(U57<>FALSE,IF($C$2="GAS_BASE",(U57-A57+1)*koszyki!$A$14+J57,IF($C$2="OFFPEAK",M57*koszyki!$A$14+(N57)*24+J57,IF($C$2="BASE5",M57*koszyki!$A$14+J57,IF($C$2="PEAK7",(B57-A57+1)*koszyki!$A$14,M57*koszyki!$A$14))))/B57,1) ->  | AK57: 00:00:00 | AL57: =AK57-1 -> -1 | AM57: -2 | AN57: -3 | AP57: =NETWORKDAYS(AK57,AK57,koszyki!$M$20:$M$89) -> 0 | AQ57: =NETWORKDAYS(AL57,AL57,koszyki!$M$20:$M$89) ->  | AR57: =NETWORKDAYS(AM57,AM57,koszyki!$M$20:$M$89) ->  | AS57: =NETWORKDAYS(AN57,AN57,koszyki!$M$20:$M$89) ->  | AU57: 0 | AZ57: 1
C58: =IF($C$2="GAS_BASE",(B58-A58+1)*koszyki!$A$14+J58,IF($C$2="OFFPEAK",M58*koszyki!$A$14+(N58)*24+J58,IF($C$2="BASE5",M58*koszyki!$A$14+J58,IF($C$2="PEAK7",(B58-A58+1)*koszyki!$A$14,M58*koszyki!$A$14)))) -> 24 | D58: ='Kalkulator Depozytów'!M63 -> 0 | E58: ='Kalkulator Depozytów'!N63 -> 0 | F58: ='Kalkulator Depozytów'!O63 -> 0 | G58: ='Kalkulator Depozytów'!P63 -> 0 | H58: ='Kalkulator Depozytów'!Q63 -> 0 | I58: =ROUND(AVERAGE(INDIRECT("krzywa!C"&MATCH(A58-$A$2,krzywa!A:A,0)&":C"&MATCH(B58-$A$2,krzywa!A:A,0),TRUE)),4) ->  | K58: 0 | M58: =NETWORKDAYS(A58,B58,koszyki!$M$20:$M$89) -> 0 | N58: =B58-A58+1- NETWORKDAYS(A58,B58,koszyki!$M$20:$M$89) -> 1 | R58: =VLOOKUP(A58,krzywa!L:N,3,1) ->  | S58: =VLOOKUP(B58,krzywa!L:N,3,1) ->  | T58: =IF('Kalkulator Depozytów'!$B$35=TRUE,1,(1+R58/100)*V58+(1+S58/100)*(1-V58)) ->  | U58: =IF(R58<>S58,VLOOKUP(A58,krzywa!L:N,2,1)) ->  | V58: =IF(U58<>FALSE,IF($C$2="GAS_BASE",(U58-A58+1)*koszyki!$A$14+J58,IF($C$2="OFFPEAK",M58*koszyki!$A$14+(N58)*24+J58,IF($C$2="BASE5",M58*koszyki!$A$14+J58,IF($C$2="PEAK7",(B58-A58+1)*koszyki!$A$14,M58*koszyki!$A$14))))/B58,1) ->  | AK58: 00:00:00 | AL58: =AK58-1 -> -1 | AM58: -2 | AN58: -3 | AP58: =NETWORKDAYS(AK58,AK58,koszyki!$M$20:$M$89) -> 0 | AQ58: =NETWORKDAYS(AL58,AL58,koszyki!$M$20:$M$89) ->  | AR58: =NETWORKDAYS(AM58,AM58,koszyki!$M$20:$M$89) ->  | AS58: =NETWORKDAYS(AN58,AN58,koszyki!$M$20:$M$89) ->  | AU58: 0 | AZ58: 1
C59: =IF($C$2="GAS_BASE",(B59-A59+1)*koszyki!$A$14+J59,IF($C$2="OFFPEAK",M59*koszyki!$A$14+(N59)*24+J59,IF($C$2="BASE5",M59*koszyki!$A$14+J59,IF($C$2="PEAK7",(B59-A59+1)*koszyki!$A$14,M59*koszyki!$A$14)))) -> 24 | D59: ='Kalkulator Depozytów'!M64 -> 0 | E59: ='Kalkulator Depozytów'!N64 -> 0 | F59: ='Kalkulator Depozytów'!O64 -> 0 | G59: ='Kalkulator Depozytów'!P64 -> 0 | H59: ='Kalkulator Depozytów'!Q64 -> 0 | I59: =ROUND(AVERAGE(INDIRECT("krzywa!C"&MATCH(A59-$A$2,krzywa!A:A,0)&":C"&MATCH(B59-$A$2,krzywa!A:A,0),TRUE)),4) ->  | K59: 0 | M59: =NETWORKDAYS(A59,B59,koszyki!$M$20:$M$89) -> 0 | N59: =B59-A59+1- NETWORKDAYS(A59,B59,koszyki!$M$20:$M$89) -> 1 | R59: =VLOOKUP(A59,krzywa!L:N,3,1) ->  | S59: =VLOOKUP(B59,krzywa!L:N,3,1) ->  | T59: =IF('Kalkulator Depozytów'!$B$35=TRUE,1,(1+R59/100)*V59+(1+S59/100)*(1-V59)) ->  | U59: =IF(R59<>S59,VLOOKUP(A59,krzywa!L:N,2,1)) ->  | V59: =IF(U59<>FALSE,IF($C$2="GAS_BASE",(U59-A59+1)*koszyki!$A$14+J59,IF($C$2="OFFPEAK",M59*koszyki!$A$14+(N59)*24+J59,IF($C$2="BASE5",M59*koszyki!$A$14+J59,IF($C$2="PEAK7",(B59-A59+1)*koszyki!$A$14,M59*koszyki!$A$14))))/B59,1) ->  | AK59: 00:00:00 | AL59: =AK59-1 -> -1 | AM59: -2 | AN59: -3 | AP59: =NETWORKDAYS(AK59,AK59,koszyki!$M$20:$M$89) -> 0 | AQ59: =NETWORKDAYS(AL59,AL59,koszyki!$M$20:$M$89) ->  | AR59: =NETWORKDAYS(AM59,AM59,koszyki!$M$20:$M$89) ->  | AS59: =NETWORKDAYS(AN59,AN59,koszyki!$M$20:$M$89) ->  | AU59: 0 | AZ59: 1
C60: =IF($C$2="GAS_BASE",(B60-A60+1)*koszyki!$A$14+J60,IF($C$2="OFFPEAK",M60*koszyki!$A$14+(N60)*24+J60,IF($C$2="BASE5",M60*koszyki!$A$14+J60,IF($C$2="PEAK7",(B60-A60+1)*koszyki!$A$14,M60*koszyki!$A$14)))) -> 24 | D60: ='Kalkulator Depozytów'!M65 -> 0 | E60: ='Kalkulator Depozytów'!N65 -> 0 | F60: ='Kalkulator Depozytów'!O65 -> 0 | G60: ='Kalkulator Depozytów'!P65 -> 0 | H60: ='Kalkulator Depozytów'!Q65 -> 0 | I60: =ROUND(AVERAGE(INDIRECT("krzywa!C"&MATCH(A60-$A$2,krzywa!A:A,0)&":C"&MATCH(B60-$A$2,krzywa!A:A,0),TRUE)),4) ->  | K60: 0 | M60: =NETWORKDAYS(A60,B60,koszyki!$M$20:$M$89) -> 0 | N60: =B60-A60+1- NETWORKDAYS(A60,B60,koszyki!$M$20:$M$89) -> 1 | R60: =VLOOKUP(A60,krzywa!L:N,3,1) ->  | S60: =VLOOKUP(B60,krzywa!L:N,3,1) ->  | T60: =IF('Kalkulator Depozytów'!$B$35=TRUE,1,(1+R60/100)*V60+(1+S60/100)*(1-V60)) ->  | U60: =IF(R60<>S60,VLOOKUP(A60,krzywa!L:N,2,1)) ->  | V60: =IF(U60<>FALSE,IF($C$2="GAS_BASE",(U60-A60+1)*koszyki!$A$14+J60,IF($C$2="OFFPEAK",M60*koszyki!$A$14+(N60)*24+J60,IF($C$2="BASE5",M60*koszyki!$A$14+J60,IF($C$2="PEAK7",(B60-A60+1)*koszyki!$A$14,M60*koszyki!$A$14))))/B60,1) ->  | AK60: 00:00:00 | AL60: =AK60-1 -> -1 | AM60: -2 | AN60: -3 | AP60: =NETWORKDAYS(AK60,AK60,koszyki!$M$20:$M$89) -> 0 | AQ60: =NETWORKDAYS(AL60,AL60,koszyki!$M$20:$M$89) ->  | AR60: =NETWORKDAYS(AM60,AM60,koszyki!$M$20:$M$89) ->  | AS60: =NETWORKDAYS(AN60,AN60,koszyki!$M$20:$M$89) ->  | AU60: 0 | AZ60: 1
C61: =IF($C$2="GAS_BASE",(B61-A61+1)*koszyki!$A$14+J61,IF($C$2="OFFPEAK",M61*koszyki!$A$14+(N61)*24+J61,IF($C$2="BASE5",M61*koszyki!$A$14+J61,IF($C$2="PEAK7",(B61-A61+1)*koszyki!$A$14,M61*koszyki!$A$14)))) -> 24 | D61: ='Kalkulator Depozytów'!M66 -> 0 | E61: ='Kalkulator Depozytów'!N66 -> 0 | F61: ='Kalkulator Depozytów'!O66 -> 0 | G61: ='Kalkulator Depozytów'!P66 -> 0 | H61: ='Kalkulator Depozytów'!Q66 -> 0 | I61: =ROUND(AVERAGE(INDIRECT("krzywa!C"&MATCH(A61-$A$2,krzywa!A:A,0)&":C"&MATCH(B61-$A$2,krzywa!A:A,0),TRUE)),4) ->  | K61: 0 | M61: =NETWORKDAYS(A61,B61,koszyki!$M$20:$M$89) -> 0 | N61: =B61-A61+1- NETWORKDAYS(A61,B61,koszyki!$M$20:$M$89) -> 1 | R61: =VLOOKUP(A61,krzywa!L:N,3,1) ->  | S61: =VLOOKUP(B61,krzywa!L:N,3,1) ->  | T61: =IF('Kalkulator Depozytów'!$B$35=TRUE,1,(1+R61/100)*V61+(1+S61/100)*(1-V61)) ->  | U61: =IF(R61<>S61,VLOOKUP(A61,krzywa!L:N,2,1)) ->  | V61: =IF(U61<>FALSE,IF($C$2="GAS_BASE",(U61-A61+1)*koszyki!$A$14+J61,IF($C$2="OFFPEAK",M61*koszyki!$A$14+(N61)*24+J61,IF($C$2="BASE5",M61*koszyki!$A$14+J61,IF($C$2="PEAK7",(B61-A61+1)*koszyki!$A$14,M61*koszyki!$A$14))))/B61,1) ->  | AK61: 00:00:00 | AL61: =AK61-1 -> -1 | AM61: -2 | AN61: -3 | AP61: =NETWORKDAYS(AK61,AK61,koszyki!$M$20:$M$89) -> 0 | AQ61: =NETWORKDAYS(AL61,AL61,koszyki!$M$20:$M$89) ->  | AR61: =NETWORKDAYS(AM61,AM61,koszyki!$M$20:$M$89) ->  | AS61: =NETWORKDAYS(AN61,AN61,koszyki!$M$20:$M$89) ->  | AU61: 0 | AZ61: 1
C62: =IF($C$2="GAS_BASE",(B62-A62+1)*koszyki!$A$14+J62,IF($C$2="OFFPEAK",M62*koszyki!$A$14+(N62)*24+J62,IF($C$2="BASE5",M62*koszyki!$A$14+J62,IF($C$2="PEAK7",(B62-A62+1)*koszyki!$A$14,M62*koszyki!$A$14)))) -> 24 | D62: ='Kalkulator Depozytów'!M67 -> 0 | E62: ='Kalkulator Depozytów'!N67 -> 0 | F62: ='Kalkulator Depozytów'!O67 -> 0 | G62: ='Kalkulator Depozytów'!P67 -> 0 | H62: ='Kalkulator Depozytów'!Q67 -> 0 | I62: =ROUND(AVERAGE(INDIRECT("krzywa!C"&MATCH(A62-$A$2,krzywa!A:A,0)&":C"&MATCH(B62-$A$2,krzywa!A:A,0),TRUE)),4) ->  | K62: 0 | M62: =NETWORKDAYS(A62,B62,koszyki!$M$20:$M$89) -> 0 | N62: =B62-A62+1- NETWORKDAYS(A62,B62,koszyki!$M$20:$M$89) -> 1 | R62: =VLOOKUP(A62,krzywa!L:N,3,1) ->  | S62: =VLOOKUP(B62,krzywa!L:N,3,1) ->  | T62: =IF('Kalkulator Depozytów'!$B$35=TRUE,1,(1+R62/100)*V62+(1+S62/100)*(1-V62)) ->  | U62: =IF(R62<>S62,VLOOKUP(A62,krzywa!L:N,2,1)) ->  | V62: =IF(U62<>FALSE,IF($C$2="GAS_BASE",(U62-A62+1)*koszyki!$A$14+J62,IF($C$2="OFFPEAK",M62*koszyki!$A$14+(N62)*24+J62,IF($C$2="BASE5",M62*koszyki!$A$14+J62,IF($C$2="PEAK7",(B62-A62+1)*koszyki!$A$14,M62*koszyki!$A$14))))/B62,1) ->  | AK62: 00:00:00 | AL62: =AK62-1 -> -1 | AM62: -2 | AN62: -3 | AP62: =NETWORKDAYS(AK62,AK62,koszyki!$M$20:$M$89) -> 0 | AQ62: =NETWORKDAYS(AL62,AL62,koszyki!$M$20:$M$89) ->  | AR62: =NETWORKDAYS(AM62,AM62,koszyki!$M$20:$M$89) ->  | AS62: =NETWORKDAYS(AN62,AN62,koszyki!$M$20:$M$89) ->  | AU62: 0 | AZ62: 1
C63: =IF($C$2="GAS_BASE",(B63-A63+1)*koszyki!$A$14+J63,IF($C$2="OFFPEAK",M63*koszyki!$A$14+(N63)*24+J63,IF($C$2="BASE5",M63*koszyki!$A$14+J63,IF($C$2="PEAK7",(B63-A63+1)*koszyki!$A$14,M63*koszyki!$A$14)))) -> 24 | D63: ='Kalkulator Depozytów'!M68 -> 0 | E63: ='Kalkulator Depozytów'!N68 -> 0 | F63: ='Kalkulator Depozytów'!O68 -> 0 | G63: ='Kalkulator Depozytów'!P68 -> 0 | H63: ='Kalkulator Depozytów'!Q68 -> 0 | I63: =ROUND(AVERAGE(INDIRECT("krzywa!C"&MATCH(A63-$A$2,krzywa!A:A,0)&":C"&MATCH(B63-$A$2,krzywa!A:A,0),TRUE)),4) ->  | K63: 0 | M63: =NETWORKDAYS(A63,B63,koszyki!$M$20:$M$89) -> 0 | N63: =B63-A63+1- NETWORKDAYS(A63,B63,koszyki!$M$20:$M$89) -> 1 | R63: =VLOOKUP(A63,krzywa!L:N,3,1) ->  | S63: =VLOOKUP(B63,krzywa!L:N,3,1) ->  | T63: =IF('Kalkulator Depozytów'!$B$35=TRUE,1,(1+R63/100)*V63+(1+S63/100)*(1-V63)) ->  | U63: =IF(R63<>S63,VLOOKUP(A63,krzywa!L:N,2,1)) ->  | V63: =IF(U63<>FALSE,IF($C$2="GAS_BASE",(U63-A63+1)*koszyki!$A$14+J63,IF($C$2="OFFPEAK",M63*koszyki!$A$14+(N63)*24+J63,IF($C$2="BASE5",M63*koszyki!$A$14+J63,IF($C$2="PEAK7",(B63-A63+1)*koszyki!$A$14,M63*koszyki!$A$14))))/B63,1) ->  | AK63: 00:00:00 | AL63: =AK63-1 -> -1 | AM63: -2 | AN63: -3 | AP63: =NETWORKDAYS(AK63,AK63,koszyki!$M$20:$M$89) -> 0 | AQ63: =NETWORKDAYS(AL63,AL63,koszyki!$M$20:$M$89) ->  | AR63: =NETWORKDAYS(AM63,AM63,koszyki!$M$20:$M$89) ->  | AS63: =NETWORKDAYS(AN63,AN63,koszyki!$M$20:$M$89) ->  | AU63: 0 | AZ63: 1
C64: =IF($C$2="GAS_BASE",(B64-A64+1)*koszyki!$A$14+J64,IF($C$2="OFFPEAK",M64*koszyki!$A$14+(N64)*24+J64,IF($C$2="BASE5",M64*koszyki!$A$14+J64,IF($C$2="PEAK7",(B64-A64+1)*koszyki!$A$14,M64*koszyki!$A$14)))) -> 24 | D64: ='Kalkulator Depozytów'!M69 -> 0 | E64: ='Kalkulator Depozytów'!N69 -> 0 | F64: ='Kalkulator Depozytów'!O69 -> 0 | G64: ='Kalkulator Depozytów'!P69 -> 0 | H64: ='Kalkulator Depozytów'!Q69 -> 0 | I64: =ROUND(AVERAGE(INDIRECT("krzywa!C"&MATCH(A64-$A$2,krzywa!A:A,0)&":C"&MATCH(B64-$A$2,krzywa!A:A,0),TRUE)),4) ->  | K64: 0 | M64: =NETWORKDAYS(A64,B64,koszyki!$M$20:$M$89) -> 0 | N64: =B64-A64+1- NETWORKDAYS(A64,B64,koszyki!$M$20:$M$89) -> 1 | R64: =VLOOKUP(A64,krzywa!L:N,3,1) ->  | S64: =VLOOKUP(B64,krzywa!L:N,3,1) ->  | T64: =IF('Kalkulator Depozytów'!$B$35=TRUE,1,(1+R64/100)*V64+(1+S64/100)*(1-V64)) ->  | U64: =IF(R64<>S64,VLOOKUP(A64,krzywa!L:N,2,1)) ->  | V64: =IF(U64<>FALSE,IF($C$2="GAS_BASE",(U64-A64+1)*koszyki!$A$14+J64,IF($C$2="OFFPEAK",M64*koszyki!$A$14+(N64)*24+J64,IF($C$2="BASE5",M64*koszyki!$A$14+J64,IF($C$2="PEAK7",(B64-A64+1)*koszyki!$A$14,M64*koszyki!$A$14))))/B64,1) ->  | AK64: 00:00:00 | AL64: =AK64-1 -> -1 | AM64: -2 | AN64: -3 | AP64: =NETWORKDAYS(AK64,AK64,koszyki!$M$20:$M$89) -> 0 | AQ64: =NETWORKDAYS(AL64,AL64,koszyki!$M$20:$M$89) ->  | AR64: =NETWORKDAYS(AM64,AM64,koszyki!$M$20:$M$89) ->  | AS64: =NETWORKDAYS(AN64,AN64,koszyki!$M$20:$M$89) ->  | AU64: 0 | AZ64: 1
C65: =IF($C$2="GAS_BASE",(B65-A65+1)*koszyki!$A$14+J65,IF($C$2="OFFPEAK",M65*koszyki!$A$14+(N65)*24+J65,IF($C$2="BASE5",M65*koszyki!$A$14+J65,IF($C$2="PEAK7",(B65-A65+1)*koszyki!$A$14,M65*koszyki!$A$14)))) -> 24 | D65: ='Kalkulator Depozytów'!M70 -> 0 | E65: ='Kalkulator Depozytów'!N70 -> 0 | F65: ='Kalkulator Depozytów'!O70 -> 0 | G65: ='Kalkulator Depozytów'!P70 -> 0 | H65: ='Kalkulator Depozytów'!Q70 -> 0 | I65: =ROUND(AVERAGE(INDIRECT("krzywa!C"&MATCH(A65-$A$2,krzywa!A:A,0)&":C"&MATCH(B65-$A$2,krzywa!A:A,0),TRUE)),4) ->  | K65: 0 | M65: =NETWORKDAYS(A65,B65,koszyki!$M$20:$M$89) -> 0 | N65: =B65-A65+1- NETWORKDAYS(A65,B65,koszyki!$M$20:$M$89) -> 1 | R65: =VLOOKUP(A65,krzywa!L:N,3,1) ->  | S65: =VLOOKUP(B65,krzywa!L:N,3,1) ->  | T65: =IF('Kalkulator Depozytów'!$B$35=TRUE,1,(1+R65/100)*V65+(1+S65/100)*(1-V65)) ->  | U65: =IF(R65<>S65,VLOOKUP(A65,krzywa!L:N,2,1)) ->  | V65: =IF(U65<>FALSE,IF($C$2="GAS_BASE",(U65-A65+1)*koszyki!$A$14+J65,IF($C$2="OFFPEAK",M65*koszyki!$A$14+(N65)*24+J65,IF($C$2="BASE5",M65*koszyki!$A$14+J65,IF($C$2="PEAK7",(B65-A65+1)*koszyki!$A$14,M65*koszyki!$A$14))))/B65,1) ->  | AK65: 00:00:00 | AL65: =AK65-1 -> -1 | AM65: -2 | AN65: -3 | AP65: =NETWORKDAYS(AK65,AK65,koszyki!$M$20:$M$89) -> 0 | AQ65: =NETWORKDAYS(AL65,AL65,koszyki!$M$20:$M$89) ->  | AR65: =NETWORKDAYS(AM65,AM65,koszyki!$M$20:$M$89) ->  | AS65: =NETWORKDAYS(AN65,AN65,koszyki!$M$20:$M$89) ->  | AU65: 0 | AZ65: 1
C66: =IF($C$2="GAS_BASE",(B66-A66+1)*koszyki!$A$14+J66,IF($C$2="OFFPEAK",M66*koszyki!$A$14+(N66)*24+J66,IF($C$2="BASE5",M66*koszyki!$A$14+J66,IF($C$2="PEAK7",(B66-A66+1)*koszyki!$A$14,M66*koszyki!$A$14)))) -> 24 | D66: ='Kalkulator Depozytów'!M71 -> 0 | E66: ='Kalkulator Depozytów'!N71 -> 0 | F66: ='Kalkulator Depozytów'!O71 -> 0 | G66: ='Kalkulator Depozytów'!P71 -> 0 | H66: ='Kalkulator Depozytów'!Q71 -> 0 | I66: =ROUND(AVERAGE(INDIRECT("krzywa!C"&MATCH(A66-$A$2,krzywa!A:A,0)&":C"&MATCH(B66-$A$2,krzywa!A:A,0),TRUE)),4) ->  | K66: 0 | M66: =NETWORKDAYS(A66,B66,koszyki!$M$20:$M$89) -> 0 | N66: =B66-A66+1- NETWORKDAYS(A66,B66,koszyki!$M$20:$M$89) -> 1 | R66: =VLOOKUP(A66,krzywa!L:N,3,1) ->  | S66: =VLOOKUP(B66,krzywa!L:N,3,1) ->  | T66: =IF('Kalkulator Depozytów'!$B$35=TRUE,1,(1+R66/100)*V66+(1+S66/100)*(1-V66)) ->  | U66: =IF(R66<>S66,VLOOKUP(A66,krzywa!L:N,2,1)) ->  | V66: =IF(U66<>FALSE,IF($C$2="GAS_BASE",(U66-A66+1)*koszyki!$A$14+J66,IF($C$2="OFFPEAK",M66*koszyki!$A$14+(N66)*24+J66,IF($C$2="BASE5",M66*koszyki!$A$14+J66,IF($C$2="PEAK7",(B66-A66+1)*koszyki!$A$14,M66*koszyki!$A$14))))/B66,1) ->  | AK66: 00:00:00 | AL66: =AK66-1 -> -1 | AM66: -2 | AN66: -3 | AP66: =NETWORKDAYS(AK66,AK66,koszyki!$M$20:$M$89) -> 0 | AQ66: =NETWORKDAYS(AL66,AL66,koszyki!$M$20:$M$89) ->  | AR66: =NETWORKDAYS(AM66,AM66,koszyki!$M$20:$M$89) ->  | AS66: =NETWORKDAYS(AN66,AN66,koszyki!$M$20:$M$89) ->  | AU66: 0 | AZ66: 1
C67: =IF($C$2="GAS_BASE",(B67-A67+1)*koszyki!$A$14+J67,IF($C$2="OFFPEAK",M67*koszyki!$A$14+(N67)*24+J67,IF($C$2="BASE5",M67*koszyki!$A$14+J67,IF($C$2="PEAK7",(B67-A67+1)*koszyki!$A$14,M67*koszyki!$A$14)))) -> 24 | D67: ='Kalkulator Depozytów'!M72 -> 0 | E67: ='Kalkulator Depozytów'!N72 -> 0 | F67: ='Kalkulator Depozytów'!O72 -> 0 | G67: ='Kalkulator Depozytów'!P72 -> 0 | H67: ='Kalkulator Depozytów'!Q72 -> 0 | I67: =ROUND(AVERAGE(INDIRECT("krzywa!C"&MATCH(A67-$A$2,krzywa!A:A,0)&":C"&MATCH(B67-$A$2,krzywa!A:A,0),TRUE)),4) ->  | K67: 0 | M67: =NETWORKDAYS(A67,B67,koszyki!$M$20:$M$89) -> 0 | N67: =B67-A67+1- NETWORKDAYS(A67,B67,koszyki!$M$20:$M$89) -> 1 | R67: =VLOOKUP(A67,krzywa!L:N,3,1) ->  | S67: =VLOOKUP(B67,krzywa!L:N,3,1) ->  | T67: =IF('Kalkulator Depozytów'!$B$35=TRUE,1,(1+R67/100)*V67+(1+S67/100)*(1-V67)) ->  | U67: =IF(R67<>S67,VLOOKUP(A67,krzywa!L:N,2,1)) ->  | V67: =IF(U67<>FALSE,IF($C$2="GAS_BASE",(U67-A67+1)*koszyki!$A$14+J67,IF($C$2="OFFPEAK",M67*koszyki!$A$14+(N67)*24+J67,IF($C$2="BASE5",M67*koszyki!$A$14+J67,IF($C$2="PEAK7",(B67-A67+1)*koszyki!$A$14,M67*koszyki!$A$14))))/B67,1) ->  | AK67: 00:00:00 | AL67: =AK67-1 -> -1 | AM67: -2 | AN67: -3 | AP67: =NETWORKDAYS(AK67,AK67,koszyki!$M$20:$M$89) -> 0 | AQ67: =NETWORKDAYS(AL67,AL67,koszyki!$M$20:$M$89) ->  | AR67: =NETWORKDAYS(AM67,AM67,koszyki!$M$20:$M$89) ->  | AS67: =NETWORKDAYS(AN67,AN67,koszyki!$M$20:$M$89) ->  | AU67: 0 | AZ67: 1
C68: =IF($C$2="GAS_BASE",(B68-A68+1)*koszyki!$A$14+J68,IF($C$2="OFFPEAK",M68*koszyki!$A$14+(N68)*24+J68,IF($C$2="BASE5",M68*koszyki!$A$14+J68,IF($C$2="PEAK7",(B68-A68+1)*koszyki!$A$14,M68*koszyki!$A$14)))) -> 24 | D68: ='Kalkulator Depozytów'!M73 -> 0 | E68: ='Kalkulator Depozytów'!N73 -> 0 | F68: ='Kalkulator Depozytów'!O73 -> 0 | G68: ='Kalkulator Depozytów'!P73 -> 0 | H68: ='Kalkulator Depozytów'!Q73 -> 0 | I68: =ROUND(AVERAGE(INDIRECT("krzywa!C"&MATCH(A68-$A$2,krzywa!A:A,0)&":C"&MATCH(B68-$A$2,krzywa!A:A,0),TRUE)),4) ->  | K68: 0 | M68: =NETWORKDAYS(A68,B68,koszyki!$M$20:$M$89) -> 0 | N68: =B68-A68+1- NETWORKDAYS(A68,B68,koszyki!$M$20:$M$89) -> 1 | R68: =VLOOKUP(A68,krzywa!L:N,3,1) ->  | S68: =VLOOKUP(B68,krzywa!L:N,3,1) ->  | T68: =IF('Kalkulator Depozytów'!$B$35=TRUE,1,(1+R68/100)*V68+(1+S68/100)*(1-V68)) ->  | U68: =IF(R68<>S68,VLOOKUP(A68,krzywa!L:N,2,1)) ->  | V68: =IF(U68<>FALSE,IF($C$2="GAS_BASE",(U68-A68+1)*koszyki!$A$14+J68,IF($C$2="OFFPEAK",M68*koszyki!$A$14+(N68)*24+J68,IF($C$2="BASE5",M68*koszyki!$A$14+J68,IF($C$2="PEAK7",(B68-A68+1)*koszyki!$A$14,M68*koszyki!$A$14))))/B68,1) ->  | AK68: 00:00:00 | AL68: =AK68-1 -> -1 | AM68: -2 | AN68: -3 | AP68: =NETWORKDAYS(AK68,AK68,koszyki!$M$20:$M$89) -> 0 | AQ68: =NETWORKDAYS(AL68,AL68,koszyki!$M$20:$M$89) ->  | AR68: =NETWORKDAYS(AM68,AM68,koszyki!$M$20:$M$89) ->  | AS68: =NETWORKDAYS(AN68,AN68,koszyki!$M$20:$M$89) ->  | AU68: 0 | AZ68: 1
C69: =IF($C$2="GAS_BASE",(B69-A69+1)*koszyki!$A$14+J69,IF($C$2="OFFPEAK",M69*koszyki!$A$14+(N69)*24+J69,IF($C$2="BASE5",M69*koszyki!$A$14+J69,IF($C$2="PEAK7",(B69-A69+1)*koszyki!$A$14,M69*koszyki!$A$14)))) -> 24 | D69: ='Kalkulator Depozytów'!M74 -> 0 | E69: ='Kalkulator Depozytów'!N74 -> 0 | F69: ='Kalkulator Depozytów'!O74 -> 0 | G69: ='Kalkulator Depozytów'!P74 -> 0 | H69: ='Kalkulator Depozytów'!Q74 -> 0 | I69: =ROUND(AVERAGE(INDIRECT("krzywa!C"&MATCH(A69-$A$2,krzywa!A:A,0)&":C"&MATCH(B69-$A$2,krzywa!A:A,0),TRUE)),4) ->  | K69: 0 | M69: =NETWORKDAYS(A69,B69,koszyki!$M$20:$M$89) -> 0 | N69: =B69-A69+1- NETWORKDAYS(A69,B69,koszyki!$M$20:$M$89) -> 1 | R69: =VLOOKUP(A69,krzywa!L:N,3,1) ->  | S69: =VLOOKUP(B69,krzywa!L:N,3,1) ->  | T69: =IF('Kalkulator Depozytów'!$B$35=TRUE,1,(1+R69/100)*V69+(1+S69/100)*(1-V69)) ->  | U69: =IF(R69<>S69,VLOOKUP(A69,krzywa!L:N,2,1)) ->  | V69: =IF(U69<>FALSE,IF($C$2="GAS_BASE",(U69-A69+1)*koszyki!$A$14+J69,IF($C$2="OFFPEAK",M69*koszyki!$A$14+(N69)*24+J69,IF($C$2="BASE5",M69*koszyki!$A$14+J69,IF($C$2="PEAK7",(B69-A69+1)*koszyki!$A$14,M69*koszyki!$A$14))))/B69,1) ->  | AK69: 00:00:00 | AL69: =AK69-1 -> -1 | AM69: -2 | AN69: -3 | AP69: =NETWORKDAYS(AK69,AK69,koszyki!$M$20:$M$89) -> 0 | AQ69: =NETWORKDAYS(AL69,AL69,koszyki!$M$20:$M$89) ->  | AR69: =NETWORKDAYS(AM69,AM69,koszyki!$M$20:$M$89) ->  | AS69: =NETWORKDAYS(AN69,AN69,koszyki!$M$20:$M$89) ->  | AU69: 0 | AZ69: 1
C70: =IF($C$2="GAS_BASE",(B70-A70+1)*koszyki!$A$14+J70,IF($C$2="OFFPEAK",M70*koszyki!$A$14+(N70)*24+J70,IF($C$2="BASE5",M70*koszyki!$A$14+J70,IF($C$2="PEAK7",(B70-A70+1)*koszyki!$A$14,M70*koszyki!$A$14)))) -> 24 | D70: ='Kalkulator Depozytów'!M75 -> 0 | E70: ='Kalkulator Depozytów'!N75 -> 0 | F70: ='Kalkulator Depozytów'!O75 -> 0 | G70: ='Kalkulator Depozytów'!P75 -> 0 | H70: ='Kalkulator Depozytów'!Q75 -> 0 | I70: =ROUND(AVERAGE(INDIRECT("krzywa!C"&MATCH(A70-$A$2,krzywa!A:A,0)&":C"&MATCH(B70-$A$2,krzywa!A:A,0),TRUE)),4) ->  | K70: 0 | M70: =NETWORKDAYS(A70,B70,koszyki!$M$20:$M$89) -> 0 | N70: =B70-A70+1- NETWORKDAYS(A70,B70,koszyki!$M$20:$M$89) -> 1 | R70: =VLOOKUP(A70,krzywa!L:N,3,1) ->  | S70: =VLOOKUP(B70,krzywa!L:N,3,1) ->  | T70: =IF('Kalkulator Depozytów'!$B$35=TRUE,1,(1+R70/100)*V70+(1+S70/100)*(1-V70)) ->  | U70: =IF(R70<>S70,VLOOKUP(A70,krzywa!L:N,2,1)) ->  | V70: =IF(U70<>FALSE,IF($C$2="GAS_BASE",(U70-A70+1)*koszyki!$A$14+J70,IF($C$2="OFFPEAK",M70*koszyki!$A$14+(N70)*24+J70,IF($C$2="BASE5",M70*koszyki!$A$14+J70,IF($C$2="PEAK7",(B70-A70+1)*koszyki!$A$14,M70*koszyki!$A$14))))/B70,1) ->  | AK70: 00:00:00 | AL70: =AK70-1 -> -1 | AM70: -2 | AN70: -3 | AP70: =NETWORKDAYS(AK70,AK70,koszyki!$M$20:$M$89) -> 0 | AQ70: =NETWORKDAYS(AL70,AL70,koszyki!$M$20:$M$89) ->  | AR70: =NETWORKDAYS(AM70,AM70,koszyki!$M$20:$M$89) ->  | AS70: =NETWORKDAYS(AN70,AN70,koszyki!$M$20:$M$89) ->  | AU70: 0 | AZ70: 1
C71: =IF($C$2="GAS_BASE",(B71-A71+1)*koszyki!$A$14+J71,IF($C$2="OFFPEAK",M71*koszyki!$A$14+(N71)*24+J71,IF($C$2="BASE5",M71*koszyki!$A$14+J71,IF($C$2="PEAK7",(B71-A71+1)*koszyki!$A$14,M71*koszyki!$A$14)))) -> 24 | D71: ='Kalkulator Depozytów'!M76 -> 0 | E71: ='Kalkulator Depozytów'!N76 -> 0 | F71: ='Kalkulator Depozytów'!O76 -> 0 | G71: ='Kalkulator Depozytów'!P76 -> 0 | H71: ='Kalkulator Depozytów'!Q76 -> 0 | I71: =ROUND(AVERAGE(INDIRECT("krzywa!C"&MATCH(A71-$A$2,krzywa!A:A,0)&":C"&MATCH(B71-$A$2,krzywa!A:A,0),TRUE)),4) ->  | K71: 0 | M71: =NETWORKDAYS(A71,B71,koszyki!$M$20:$M$89) -> 0 | N71: =B71-A71+1- NETWORKDAYS(A71,B71,koszyki!$M$20:$M$89) -> 1 | R71: =VLOOKUP(A71,krzywa!L:N,3,1) ->  | S71: =VLOOKUP(B71,krzywa!L:N,3,1) ->  | T71: =IF('Kalkulator Depozytów'!$B$35=TRUE,1,(1+R71/100)*V71+(1+S71/100)*(1-V71)) ->  | U71: =IF(R71<>S71,VLOOKUP(A71,krzywa!L:N,2,1)) ->  | V71: =IF(U71<>FALSE,IF($C$2="GAS_BASE",(U71-A71+1)*koszyki!$A$14+J71,IF($C$2="OFFPEAK",M71*koszyki!$A$14+(N71)*24+J71,IF($C$2="BASE5",M71*koszyki!$A$14+J71,IF($C$2="PEAK7",(B71-A71+1)*koszyki!$A$14,M71*koszyki!$A$14))))/B71,1) ->  | AK71: 00:00:00 | AL71: =AK71-1 -> -1 | AM71: -2 | AN71: -3 | AP71: =NETWORKDAYS(AK71,AK71,koszyki!$M$20:$M$89) -> 0 | AQ71: =NETWORKDAYS(AL71,AL71,koszyki!$M$20:$M$89) ->  | AR71: =NETWORKDAYS(AM71,AM71,koszyki!$M$20:$M$89) ->  | AS71: =NETWORKDAYS(AN71,AN71,koszyki!$M$20:$M$89) ->  | AU71: 0 | AZ71: 1
C72: =IF($C$2="GAS_BASE",(B72-A72+1)*koszyki!$A$14+J72,IF($C$2="OFFPEAK",M72*koszyki!$A$14+(N72)*24+J72,IF($C$2="BASE5",M72*koszyki!$A$14+J72,IF($C$2="PEAK7",(B72-A72+1)*koszyki!$A$14,M72*koszyki!$A$14)))) -> 24 | D72: ='Kalkulator Depozytów'!M77 -> 0 | E72: ='Kalkulator Depozytów'!N77 -> 0 | F72: ='Kalkulator Depozytów'!O77 -> 0 | G72: ='Kalkulator Depozytów'!P77 -> 0 | H72: ='Kalkulator Depozytów'!Q77 -> 0 | I72: =ROUND(AVERAGE(INDIRECT("krzywa!C"&MATCH(A72-$A$2,krzywa!A:A,0)&":C"&MATCH(B72-$A$2,krzywa!A:A,0),TRUE)),4) ->  | K72: 0 | M72: =NETWORKDAYS(A72,B72,koszyki!$M$20:$M$89) -> 0 | N72: =B72-A72+1- NETWORKDAYS(A72,B72,koszyki!$M$20:$M$89) -> 1 | R72: =VLOOKUP(A72,krzywa!L:N,3,1) ->  | S72: =VLOOKUP(B72,krzywa!L:N,3,1) ->  | T72: =IF('Kalkulator Depozytów'!$B$35=TRUE,1,(1+R72/100)*V72+(1+S72/100)*(1-V72)) ->  | U72: =IF(R72<>S72,VLOOKUP(A72,krzywa!L:N,2,1)) ->  | V72: =IF(U72<>FALSE,IF($C$2="GAS_BASE",(U72-A72+1)*koszyki!$A$14+J72,IF($C$2="OFFPEAK",M72*koszyki!$A$14+(N72)*24+J72,IF($C$2="BASE5",M72*koszyki!$A$14+J72,IF($C$2="PEAK7",(B72-A72+1)*koszyki!$A$14,M72*koszyki!$A$14))))/B72,1) ->  | AK72: 00:00:00 | AL72: =AK72-1 -> -1 | AM72: -2 | AN72: -3 | AP72: =NETWORKDAYS(AK72,AK72,koszyki!$M$20:$M$89) -> 0 | AQ72: =NETWORKDAYS(AL72,AL72,koszyki!$M$20:$M$89) ->  | AR72: =NETWORKDAYS(AM72,AM72,koszyki!$M$20:$M$89) ->  | AS72: =NETWORKDAYS(AN72,AN72,koszyki!$M$20:$M$89) ->  | AU72: 0 | AZ72: 1
C73: =IF($C$2="GAS_BASE",(B73-A73+1)*koszyki!$A$14+J73,IF($C$2="OFFPEAK",M73*koszyki!$A$14+(N73)*24+J73,IF($C$2="BASE5",M73*koszyki!$A$14+J73,IF($C$2="PEAK7",(B73-A73+1)*koszyki!$A$14,M73*koszyki!$A$14)))) -> 24 | D73: ='Kalkulator Depozytów'!M78 -> 0 | E73: ='Kalkulator Depozytów'!N78 -> 0 | F73: ='Kalkulator Depozytów'!O78 -> 0 | G73: ='Kalkulator Depozytów'!P78 -> 0 | H73: ='Kalkulator Depozytów'!Q78 -> 0 | I73: =ROUND(AVERAGE(INDIRECT("krzywa!C"&MATCH(A73-$A$2,krzywa!A:A,0)&":C"&MATCH(B73-$A$2,krzywa!A:A,0),TRUE)),4) ->  | K73: =IF(-($A$2-B73)<364,-($A$2-B73),365) -> 0 | M73: =NETWORKDAYS(A73,B73,koszyki!$M$20:$M$89) -> 0 | N73: =B73-A73+1- NETWORKDAYS(A73,B73,koszyki!$M$20:$M$89) -> 1 | P73: =C73*(D73*(H73-E73)-F73*(H73-G73))*T73 ->  | Q73: =-C73*ABS(D73-F73)*H73*I73*T73 ->  | R73: =VLOOKUP(A73,krzywa!L:N,3,1) ->  | S73: =VLOOKUP(B73,krzywa!L:N,3,1) ->  | T73: =IF('Kalkulator Depozytów'!$B$35=TRUE,1,(1+R73/100)*V73+(1+S73/100)*(1-V73)) ->  | U73: =IF(R73<>S73,VLOOKUP(A73,krzywa!L:N,2,1)) ->  | V73: =IF(U73<>FALSE,IF($C$2="GAS_BASE",(U73-A73+1)*koszyki!$A$14+J73,IF($C$2="OFFPEAK",M73*koszyki!$A$14+(N73)*24+J73,IF($C$2="BASE5",M73*koszyki!$A$14+J73,IF($C$2="PEAK7",(B73-A73+1)*koszyki!$A$14,M73*koszyki!$A$14))))/B73,1) ->  | AK73: =B73 -> 00:00:00 | AL73: =AK73-1 -> -1 | AM73: -2 | AN73: -3 | AP73: =NETWORKDAYS(AK73,AK73,koszyki!$M$20:$M$89) -> 0 | AQ73: =NETWORKDAYS(AL73,AL73,koszyki!$M$20:$M$89) ->  | AR73: =NETWORKDAYS(AM73,AM73,koszyki!$M$20:$M$89) ->  | AS73: =NETWORKDAYS(AN73,AN73,koszyki!$M$20:$M$89) ->  | AU73: =SUM(AP73) -> 0 | AV73: =SUM(AP73:AQ73) ->  | AW73: =SUM(AP73:AR73) ->  | AX73: =SUM(AP73:AS73) ->  | AZ73: =COUNTIF(AU73:AX73,"=0") -> 1
C74: =IF($C$2="GAS_BASE",(B74-A74+1)*koszyki!$A$14+J74,IF($C$2="OFFPEAK",M74*koszyki!$A$14+(N74)*24+J74,IF($C$2="BASE5",M74*koszyki!$A$14+J74,IF($C$2="PEAK7",(B74-A74+1)*koszyki!$A$14,M74*koszyki!$A$14)))) -> 24 | D74: ='Kalkulator Depozytów'!M79 -> 0 | E74: ='Kalkulator Depozytów'!N79 -> 0 | F74: ='Kalkulator Depozytów'!O79 -> 0 | G74: ='Kalkulator Depozytów'!P79 -> 0 | H74: ='Kalkulator Depozytów'!Q79 -> 0 | I74: =ROUND(AVERAGE(INDIRECT("krzywa!C"&MATCH(A74-$A$2,krzywa!A:A,0)&":C"&MATCH(B74-$A$2,krzywa!A:A,0),TRUE)),4) ->  | K74: 0 | M74: =NETWORKDAYS(A74,B74,koszyki!$M$20:$M$89) -> 0 | N74: =B74-A74+1- NETWORKDAYS(A74,B74,koszyki!$M$20:$M$89) -> 1 | R74: =VLOOKUP(A74,krzywa!L:N,3,1) ->  | S74: =VLOOKUP(B74,krzywa!L:N,3,1) ->  | T74: =IF('Kalkulator Depozytów'!$B$35=TRUE,1,(1+R74/100)*V74+(1+S74/100)*(1-V74)) ->  | U74: =IF(R74<>S74,VLOOKUP(A74,krzywa!L:N,2,1)) ->  | V74: =IF(U74<>FALSE,IF($C$2="GAS_BASE",(U74-A74+1)*koszyki!$A$14+J74,IF($C$2="OFFPEAK",M74*koszyki!$A$14+(N74)*24+J74,IF($C$2="BASE5",M74*koszyki!$A$14+J74,IF($C$2="PEAK7",(B74-A74+1)*koszyki!$A$14,M74*koszyki!$A$14))))/B74,1) ->  | AK74: 00:00:00 | AL74: =AK74-1 -> -1 | AM74: -2 | AN74: -3 | AP74: =NETWORKDAYS(AK74,AK74,koszyki!$M$20:$M$89) -> 0 | AQ74: =NETWORKDAYS(AL74,AL74,koszyki!$M$20:$M$89) ->  | AR74: =NETWORKDAYS(AM74,AM74,koszyki!$M$20:$M$89) ->  | AS74: =NETWORKDAYS(AN74,AN74,koszyki!$M$20:$M$89) ->  | AU74: 0 | AZ74: 1
C75: =IF($C$2="GAS_BASE",(B75-A75+1)*koszyki!$A$14+J75,IF($C$2="OFFPEAK",M75*koszyki!$A$14+(N75)*24+J75,IF($C$2="BASE5",M75*koszyki!$A$14+J75,IF($C$2="PEAK7",(B75-A75+1)*koszyki!$A$14,M75*koszyki!$A$14)))) -> 24 | D75: ='Kalkulator Depozytów'!M80 -> 0 | E75: ='Kalkulator Depozytów'!N80 -> 0 | F75: ='Kalkulator Depozytów'!O80 -> 0 | G75: ='Kalkulator Depozytów'!P80 -> 0 | H75: ='Kalkulator Depozytów'!Q80 -> 0 | I75: =ROUND(AVERAGE(INDIRECT("krzywa!C"&MATCH(A75-$A$2,krzywa!A:A,0)&":C"&MATCH(B75-$A$2,krzywa!A:A,0),TRUE)),4) ->  | K75: 0 | M75: =NETWORKDAYS(A75,B75,koszyki!$M$20:$M$89) -> 0 | N75: =B75-A75+1- NETWORKDAYS(A75,B75,koszyki!$M$20:$M$89) -> 1 | R75: =VLOOKUP(A75,krzywa!L:N,3,1) ->  | S75: =VLOOKUP(B75,krzywa!L:N,3,1) ->  | T75: =IF('Kalkulator Depozytów'!$B$35=TRUE,1,(1+R75/100)*V75+(1+S75/100)*(1-V75)) ->  | U75: =IF(R75<>S75,VLOOKUP(A75,krzywa!L:N,2,1)) ->  | V75: =IF(U75<>FALSE,IF($C$2="GAS_BASE",(U75-A75+1)*koszyki!$A$14+J75,IF($C$2="OFFPEAK",M75*koszyki!$A$14+(N75)*24+J75,IF($C$2="BASE5",M75*koszyki!$A$14+J75,IF($C$2="PEAK7",(B75-A75+1)*koszyki!$A$14,M75*koszyki!$A$14))))/B75,1) ->  | AK75: 00:00:00 | AL75: =AK75-1 -> -1 | AM75: -2 | AN75: -3 | AP75: =NETWORKDAYS(AK75,AK75,koszyki!$M$20:$M$89) -> 0 | AQ75: =NETWORKDAYS(AL75,AL75,koszyki!$M$20:$M$89) ->  | AR75: =NETWORKDAYS(AM75,AM75,koszyki!$M$20:$M$89) ->  | AS75: =NETWORKDAYS(AN75,AN75,koszyki!$M$20:$M$89) ->  | AU75: 0 | AZ75: 1
C76: =IF($C$2="GAS_BASE",(B76-A76+1)*koszyki!$A$14+J76,IF($C$2="OFFPEAK",M76*koszyki!$A$14+(N76)*24+J76,IF($C$2="BASE5",M76*koszyki!$A$14+J76,IF($C$2="PEAK7",(B76-A76+1)*koszyki!$A$14,M76*koszyki!$A$14)))) -> 24 | D76: ='Kalkulator Depozytów'!M81 -> 0 | E76: ='Kalkulator Depozytów'!N81 -> 0 | F76: ='Kalkulator Depozytów'!O81 -> 0 | G76: ='Kalkulator Depozytów'!P81 -> 0 | H76: ='Kalkulator Depozytów'!Q81 -> 0 | I76: =ROUND(AVERAGE(INDIRECT("krzywa!C"&MATCH(A76-$A$2,krzywa!A:A,0)&":C"&MATCH(B76-$A$2,krzywa!A:A,0),TRUE)),4) ->  | K76: 0 | M76: =NETWORKDAYS(A76,B76,koszyki!$M$20:$M$89) -> 0 | N76: =B76-A76+1- NETWORKDAYS(A76,B76,koszyki!$M$20:$M$89) -> 1 | R76: =VLOOKUP(A76,krzywa!L:N,3,1) ->  | S76: =VLOOKUP(B76,krzywa!L:N,3,1) ->  | T76: =IF('Kalkulator Depozytów'!$B$35=TRUE,1,(1+R76/100)*V76+(1+S76/100)*(1-V76)) ->  | U76: =IF(R76<>S76,VLOOKUP(A76,krzywa!L:N,2,1)) ->  | V76: =IF(U76<>FALSE,IF($C$2="GAS_BASE",(U76-A76+1)*koszyki!$A$14+J76,IF($C$2="OFFPEAK",M76*koszyki!$A$14+(N76)*24+J76,IF($C$2="BASE5",M76*koszyki!$A$14+J76,IF($C$2="PEAK7",(B76-A76+1)*koszyki!$A$14,M76*koszyki!$A$14))))/B76,1) ->  | AK76: 00:00:00 | AL76: =AK76-1 -> -1 | AM76: -2 | AN76: -3 | AP76: =NETWORKDAYS(AK76,AK76,koszyki!$M$20:$M$89) -> 0 | AQ76: =NETWORKDAYS(AL76,AL76,koszyki!$M$20:$M$89) ->  | AR76: =NETWORKDAYS(AM76,AM76,koszyki!$M$20:$M$89) ->  | AS76: =NETWORKDAYS(AN76,AN76,koszyki!$M$20:$M$89) ->  | AU76: 0 | AZ76: 1
C77: =IF($C$2="GAS_BASE",(B77-A77+1)*koszyki!$A$14+J77,IF($C$2="OFFPEAK",M77*koszyki!$A$14+(N77)*24+J77,IF($C$2="BASE5",M77*koszyki!$A$14+J77,IF($C$2="PEAK7",(B77-A77+1)*koszyki!$A$14,M77*koszyki!$A$14)))) -> 24 | D77: ='Kalkulator Depozytów'!M82 -> 0 | E77: ='Kalkulator Depozytów'!N82 -> 0 | F77: ='Kalkulator Depozytów'!O82 -> 0 | G77: ='Kalkulator Depozytów'!P82 -> 0 | H77: ='Kalkulator Depozytów'!Q82 -> 0 | I77: =ROUND(AVERAGE(INDIRECT("krzywa!C"&MATCH(A77-$A$2,krzywa!A:A,0)&":C"&MATCH(B77-$A$2,krzywa!A:A,0),TRUE)),4) ->  | K77: 0 | M77: =NETWORKDAYS(A77,B77,koszyki!$M$20:$M$89) -> 0 | N77: =B77-A77+1- NETWORKDAYS(A77,B77,koszyki!$M$20:$M$89) -> 1 | R77: =VLOOKUP(A77,krzywa!L:N,3,1) ->  | S77: =VLOOKUP(B77,krzywa!L:N,3,1) ->  | T77: =IF('Kalkulator Depozytów'!$B$35=TRUE,1,(1+R77/100)*V77+(1+S77/100)*(1-V77)) ->  | U77: =IF(R77<>S77,VLOOKUP(A77,krzywa!L:N,2,1)) ->  | V77: =IF(U77<>FALSE,IF($C$2="GAS_BASE",(U77-A77+1)*koszyki!$A$14+J77,IF($C$2="OFFPEAK",M77*koszyki!$A$14+(N77)*24+J77,IF($C$2="BASE5",M77*koszyki!$A$14+J77,IF($C$2="PEAK7",(B77-A77+1)*koszyki!$A$14,M77*koszyki!$A$14))))/B77,1) ->  | AK77: 00:00:00 | AL77: =AK77-1 -> -1 | AM77: -2 | AN77: -3 | AP77: =NETWORKDAYS(AK77,AK77,koszyki!$M$20:$M$89) -> 0 | AQ77: =NETWORKDAYS(AL77,AL77,koszyki!$M$20:$M$89) ->  | AR77: =NETWORKDAYS(AM77,AM77,koszyki!$M$20:$M$89) ->  | AS77: =NETWORKDAYS(AN77,AN77,koszyki!$M$20:$M$89) ->  | AU77: 0 | AZ77: 1
C78: =IF($C$2="GAS_BASE",(B78-A78+1)*koszyki!$A$14+J78,IF($C$2="OFFPEAK",M78*koszyki!$A$14+(N78)*24+J78,IF($C$2="BASE5",M78*koszyki!$A$14+J78,IF($C$2="PEAK7",(B78-A78+1)*koszyki!$A$14,M78*koszyki!$A$14)))) -> 24 | D78: ='Kalkulator Depozytów'!M83 -> 0 | E78: ='Kalkulator Depozytów'!N83 -> 0 | F78: ='Kalkulator Depozytów'!O83 -> 0 | G78: ='Kalkulator Depozytów'!P83 -> 0 | H78: ='Kalkulator Depozytów'!Q83 -> 0 | I78: =ROUND(AVERAGE(INDIRECT("krzywa!C"&MATCH(A78-$A$2,krzywa!A:A,0)&":C"&MATCH(B78-$A$2,krzywa!A:A,0),TRUE)),4) ->  | K78: 0 | M78: =NETWORKDAYS(A78,B78,koszyki!$M$20:$M$89) -> 0 | N78: =B78-A78+1- NETWORKDAYS(A78,B78,koszyki!$M$20:$M$89) -> 1 | R78: =VLOOKUP(A78,krzywa!L:N,3,1) ->  | S78: =VLOOKUP(B78,krzywa!L:N,3,1) ->  | T78: =IF('Kalkulator Depozytów'!$B$35=TRUE,1,(1+R78/100)*V78+(1+S78/100)*(1-V78)) ->  | U78: =IF(R78<>S78,VLOOKUP(A78,krzywa!L:N,2,1)) ->  | V78: =IF(U78<>FALSE,IF($C$2="GAS_BASE",(U78-A78+1)*koszyki!$A$14+J78,IF($C$2="OFFPEAK",M78*koszyki!$A$14+(N78)*24+J78,IF($C$2="BASE5",M78*koszyki!$A$14+J78,IF($C$2="PEAK7",(B78-A78+1)*koszyki!$A$14,M78*koszyki!$A$14))))/B78,1) ->  | AK78: 00:00:00 | AL78: =AK78-1 -> -1 | AM78: -2 | AN78: -3 | AP78: =NETWORKDAYS(AK78,AK78,koszyki!$M$20:$M$89) -> 0 | AQ78: =NETWORKDAYS(AL78,AL78,koszyki!$M$20:$M$89) ->  | AR78: =NETWORKDAYS(AM78,AM78,koszyki!$M$20:$M$89) ->  | AS78: =NETWORKDAYS(AN78,AN78,koszyki!$M$20:$M$89) ->  | AU78: 0 | AZ78: 1
C79: =IF($C$2="GAS_BASE",(B79-A79+1)*koszyki!$A$14+J79,IF($C$2="OFFPEAK",M79*koszyki!$A$14+(N79)*24+J79,IF($C$2="BASE5",M79*koszyki!$A$14+J79,IF($C$2="PEAK7",(B79-A79+1)*koszyki!$A$14,M79*koszyki!$A$14)))) -> 24 | D79: ='Kalkulator Depozytów'!M84 -> 0 | E79: ='Kalkulator Depozytów'!N84 -> 0 | F79: ='Kalkulator Depozytów'!O84 -> 0 | G79: ='Kalkulator Depozytów'!P84 -> 0 | H79: ='Kalkulator Depozytów'!Q84 -> 0 | I79: =ROUND(AVERAGE(INDIRECT("krzywa!C"&MATCH(A79-$A$2,krzywa!A:A,0)&":C"&MATCH(B79-$A$2,krzywa!A:A,0),TRUE)),4) ->  | K79: 0 | M79: =NETWORKDAYS(A79,B79,koszyki!$M$20:$M$89) -> 0 | N79: =B79-A79+1- NETWORKDAYS(A79,B79,koszyki!$M$20:$M$89) -> 1 | R79: =VLOOKUP(A79,krzywa!L:N,3,1) ->  | S79: =VLOOKUP(B79,krzywa!L:N,3,1) ->  | T79: =IF('Kalkulator Depozytów'!$B$35=TRUE,1,(1+R79/100)*V79+(1+S79/100)*(1-V79)) ->  | U79: =IF(R79<>S79,VLOOKUP(A79,krzywa!L:N,2,1)) ->  | V79: =IF(U79<>FALSE,IF($C$2="GAS_BASE",(U79-A79+1)*koszyki!$A$14+J79,IF($C$2="OFFPEAK",M79*koszyki!$A$14+(N79)*24+J79,IF($C$2="BASE5",M79*koszyki!$A$14+J79,IF($C$2="PEAK7",(B79-A79+1)*koszyki!$A$14,M79*koszyki!$A$14))))/B79,1) ->  | AK79: 00:00:00 | AL79: =AK79-1 -> -1 | AM79: -2 | AN79: -3 | AP79: =NETWORKDAYS(AK79,AK79,koszyki!$M$20:$M$89) -> 0 | AQ79: =NETWORKDAYS(AL79,AL79,koszyki!$M$20:$M$89) ->  | AR79: =NETWORKDAYS(AM79,AM79,koszyki!$M$20:$M$89) ->  | AS79: =NETWORKDAYS(AN79,AN79,koszyki!$M$20:$M$89) ->  | AU79: 0 | AZ79: 1
C80: =IF($C$2="GAS_BASE",(B80-A80+1)*koszyki!$A$14+J80,IF($C$2="OFFPEAK",M80*koszyki!$A$14+(N80)*24+J80,IF($C$2="BASE5",M80*koszyki!$A$14+J80,IF($C$2="PEAK7",(B80-A80+1)*koszyki!$A$14,M80*koszyki!$A$14)))) -> 24 | D80: ='Kalkulator Depozytów'!M85 -> 0 | E80: ='Kalkulator Depozytów'!N85 -> 0 | F80: ='Kalkulator Depozytów'!O85 -> 0 | G80: ='Kalkulator Depozytów'!P85 -> 0 | H80: ='Kalkulator Depozytów'!Q85 -> 0 | I80: =ROUND(AVERAGE(INDIRECT("krzywa!C"&MATCH(A80-$A$2,krzywa!A:A,0)&":C"&MATCH(B80-$A$2,krzywa!A:A,0),TRUE)),4) ->  | K80: 0 | M80: =NETWORKDAYS(A80,B80,koszyki!$M$20:$M$89) -> 0 | N80: =B80-A80+1- NETWORKDAYS(A80,B80,koszyki!$M$20:$M$89) -> 1 | R80: =VLOOKUP(A80,krzywa!L:N,3,1) ->  | S80: =VLOOKUP(B80,krzywa!L:N,3,1) ->  | T80: =IF('Kalkulator Depozytów'!$B$35=TRUE,1,(1+R80/100)*V80+(1+S80/100)*(1-V80)) ->  | U80: =IF(R80<>S80,VLOOKUP(A80,krzywa!L:N,2,1)) ->  | V80: =IF(U80<>FALSE,IF($C$2="GAS_BASE",(U80-A80+1)*koszyki!$A$14+J80,IF($C$2="OFFPEAK",M80*koszyki!$A$14+(N80)*24+J80,IF($C$2="BASE5",M80*koszyki!$A$14+J80,IF($C$2="PEAK7",(B80-A80+1)*koszyki!$A$14,M80*koszyki!$A$14))))/B80,1) ->  | AK80: 00:00:00 | AL80: =AK80-1 -> -1 | AM80: -2 | AN80: -3 | AP80: =NETWORKDAYS(AK80,AK80,koszyki!$M$20:$M$89) -> 0 | AQ80: =NETWORKDAYS(AL80,AL80,koszyki!$M$20:$M$89) ->  | AR80: =NETWORKDAYS(AM80,AM80,koszyki!$M$20:$M$89) ->  | AS80: =NETWORKDAYS(AN80,AN80,koszyki!$M$20:$M$89) ->  | AU80: 0 | AZ80: 1
C81: =IF($C$2="GAS_BASE",(B81-A81+1)*koszyki!$A$14+J81,IF($C$2="OFFPEAK",M81*koszyki!$A$14+(N81)*24+J81,IF($C$2="BASE5",M81*koszyki!$A$14+J81,IF($C$2="PEAK7",(B81-A81+1)*koszyki!$A$14,M81*koszyki!$A$14)))) -> 24 | D81: ='Kalkulator Depozytów'!M86 -> 0 | E81: ='Kalkulator Depozytów'!N86 -> 0 | F81: ='Kalkulator Depozytów'!O86 -> 0 | G81: ='Kalkulator Depozytów'!P86 -> 0 | H81: ='Kalkulator Depozytów'!Q86 -> 0 | I81: =ROUND(AVERAGE(INDIRECT("krzywa!C"&MATCH(A81-$A$2,krzywa!A:A,0)&":C"&MATCH(B81-$A$2,krzywa!A:A,0),TRUE)),4) ->  | K81: 0 | M81: =NETWORKDAYS(A81,B81,koszyki!$M$20:$M$89) -> 0 | N81: =B81-A81+1- NETWORKDAYS(A81,B81,koszyki!$M$20:$M$89) -> 1 | R81: =VLOOKUP(A81,krzywa!L:N,3,1) ->  | S81: =VLOOKUP(B81,krzywa!L:N,3,1) ->  | T81: =IF('Kalkulator Depozytów'!$B$35=TRUE,1,(1+R81/100)*V81+(1+S81/100)*(1-V81)) ->  | U81: =IF(R81<>S81,VLOOKUP(A81,krzywa!L:N,2,1)) ->  | V81: =IF(U81<>FALSE,IF($C$2="GAS_BASE",(U81-A81+1)*koszyki!$A$14+J81,IF($C$2="OFFPEAK",M81*koszyki!$A$14+(N81)*24+J81,IF($C$2="BASE5",M81*koszyki!$A$14+J81,IF($C$2="PEAK7",(B81-A81+1)*koszyki!$A$14,M81*koszyki!$A$14))))/B81,1) ->  | AK81: 00:00:00 | AL81: =AK81-1 -> -1 | AM81: -2 | AN81: -3 | AP81: =NETWORKDAYS(AK81,AK81,koszyki!$M$20:$M$89) -> 0 | AQ81: =NETWORKDAYS(AL81,AL81,koszyki!$M$20:$M$89) ->  | AR81: =NETWORKDAYS(AM81,AM81,koszyki!$M$20:$M$89) ->  | AS81: =NETWORKDAYS(AN81,AN81,koszyki!$M$20:$M$89) ->  | AU81: 0 | AZ81: 1
C82: =IF($C$2="GAS_BASE",(B82-A82+1)*koszyki!$A$14+J82,IF($C$2="OFFPEAK",M82*koszyki!$A$14+(N82)*24+J82,IF($C$2="BASE5",M82*koszyki!$A$14+J82,IF($C$2="PEAK7",(B82-A82+1)*koszyki!$A$14,M82*koszyki!$A$14)))) -> 24 | D82: ='Kalkulator Depozytów'!M87 -> 0 | E82: ='Kalkulator Depozytów'!N87 -> 0 | F82: ='Kalkulator Depozytów'!O87 -> 0 | G82: ='Kalkulator Depozytów'!P87 -> 0 | H82: ='Kalkulator Depozytów'!Q87 -> 0 | I82: =ROUND(AVERAGE(INDIRECT("krzywa!C"&MATCH(A82-$A$2,krzywa!A:A,0)&":C"&MATCH(B82-$A$2,krzywa!A:A,0),TRUE)),4) ->  | K82: 0 | M82: =NETWORKDAYS(A82,B82,koszyki!$M$20:$M$89) -> 0 | N82: =B82-A82+1- NETWORKDAYS(A82,B82,koszyki!$M$20:$M$89) -> 1 | R82: =VLOOKUP(A82,krzywa!L:N,3,1) ->  | S82: =VLOOKUP(B82,krzywa!L:N,3,1) ->  | T82: =IF('Kalkulator Depozytów'!$B$35=TRUE,1,(1+R82/100)*V82+(1+S82/100)*(1-V82)) ->  | U82: =IF(R82<>S82,VLOOKUP(A82,krzywa!L:N,2,1)) ->  | V82: =IF(U82<>FALSE,IF($C$2="GAS_BASE",(U82-A82+1)*koszyki!$A$14+J82,IF($C$2="OFFPEAK",M82*koszyki!$A$14+(N82)*24+J82,IF($C$2="BASE5",M82*koszyki!$A$14+J82,IF($C$2="PEAK7",(B82-A82+1)*koszyki!$A$14,M82*koszyki!$A$14))))/B82,1) ->  | AK82: 00:00:00 | AL82: =AK82-1 -> -1 | AM82: -2 | AN82: -3 | AP82: =NETWORKDAYS(AK82,AK82,koszyki!$M$20:$M$89) -> 0 | AQ82: =NETWORKDAYS(AL82,AL82,koszyki!$M$20:$M$89) ->  | AR82: =NETWORKDAYS(AM82,AM82,koszyki!$M$20:$M$89) ->  | AS82: =NETWORKDAYS(AN82,AN82,koszyki!$M$20:$M$89) ->  | AU82: 0 | AZ82: 1
C83: =IF($C$2="GAS_BASE",(B83-A83+1)*koszyki!$A$14+J83,IF($C$2="OFFPEAK",M83*koszyki!$A$14+(N83)*24+J83,IF($C$2="BASE5",M83*koszyki!$A$14+J83,IF($C$2="PEAK7",(B83-A83+1)*koszyki!$A$14,M83*koszyki!$A$14)))) -> 24 | D83: ='Kalkulator Depozytów'!M88 -> 0 | E83: ='Kalkulator Depozytów'!N88 -> 0 | F83: ='Kalkulator Depozytów'!O88 -> 0 | G83: ='Kalkulator Depozytów'!P88 -> 0 | H83: ='Kalkulator Depozytów'!Q88 -> 0 | I83: =ROUND(AVERAGE(INDIRECT("krzywa!C"&MATCH(A83-$A$2,krzywa!A:A,0)&":C"&MATCH(B83-$A$2,krzywa!A:A,0),TRUE)),4) ->  | K83: 0 | M83: =NETWORKDAYS(A83,B83,koszyki!$M$20:$M$89) -> 0 | N83: =B83-A83+1- NETWORKDAYS(A83,B83,koszyki!$M$20:$M$89) -> 1 | R83: =VLOOKUP(A83,krzywa!L:N,3,1) ->  | S83: =VLOOKUP(B83,krzywa!L:N,3,1) ->  | T83: =IF('Kalkulator Depozytów'!$B$35=TRUE,1,(1+R83/100)*V83+(1+S83/100)*(1-V83)) ->  | U83: =IF(R83<>S83,VLOOKUP(A83,krzywa!L:N,2,1)) ->  | V83: =IF(U83<>FALSE,IF($C$2="GAS_BASE",(U83-A83+1)*koszyki!$A$14+J83,IF($C$2="OFFPEAK",M83*koszyki!$A$14+(N83)*24+J83,IF($C$2="BASE5",M83*koszyki!$A$14+J83,IF($C$2="PEAK7",(B83-A83+1)*koszyki!$A$14,M83*koszyki!$A$14))))/B83,1) ->  | AK83: 00:00:00 | AL83: =AK83-1 -> -1 | AM83: -2 | AN83: -3 | AP83: =NETWORKDAYS(AK83,AK83,koszyki!$M$20:$M$89) -> 0 | AQ83: =NETWORKDAYS(AL83,AL83,koszyki!$M$20:$M$89) ->  | AR83: =NETWORKDAYS(AM83,AM83,koszyki!$M$20:$M$89) ->  | AS83: =NETWORKDAYS(AN83,AN83,koszyki!$M$20:$M$89) ->  | AU83: 0 | AZ83: 1
C84: =IF($C$2="GAS_BASE",(B84-A84+1)*koszyki!$A$14+J84,IF($C$2="OFFPEAK",M84*koszyki!$A$14+(N84)*24+J84,IF($C$2="BASE5",M84*koszyki!$A$14+J84,IF($C$2="PEAK7",(B84-A84+1)*koszyki!$A$14,M84*koszyki!$A$14)))) -> 24 | D84: ='Kalkulator Depozytów'!M89 -> 0 | E84: ='Kalkulator Depozytów'!N89 -> 0 | F84: ='Kalkulator Depozytów'!O89 -> 0 | G84: ='Kalkulator Depozytów'!P89 -> 0 | H84: ='Kalkulator Depozytów'!Q89 -> 0 | I84: =ROUND(AVERAGE(INDIRECT("krzywa!C"&MATCH(A84-$A$2,krzywa!A:A,0)&":C"&MATCH(B84-$A$2,krzywa!A:A,0),TRUE)),4) ->  | K84: 0 | M84: =NETWORKDAYS(A84,B84,koszyki!$M$20:$M$89) -> 0 | N84: =B84-A84+1- NETWORKDAYS(A84,B84,koszyki!$M$20:$M$89) -> 1 | R84: =VLOOKUP(A84,krzywa!L:N,3,1) ->  | S84: =VLOOKUP(B84,krzywa!L:N,3,1) ->  | T84: =IF('Kalkulator Depozytów'!$B$35=TRUE,1,(1+R84/100)*V84+(1+S84/100)*(1-V84)) ->  | U84: =IF(R84<>S84,VLOOKUP(A84,krzywa!L:N,2,1)) ->  | V84: =IF(U84<>FALSE,IF($C$2="GAS_BASE",(U84-A84+1)*koszyki!$A$14+J84,IF($C$2="OFFPEAK",M84*koszyki!$A$14+(N84)*24+J84,IF($C$2="BASE5",M84*koszyki!$A$14+J84,IF($C$2="PEAK7",(B84-A84+1)*koszyki!$A$14,M84*koszyki!$A$14))))/B84,1) ->  | AK84: 00:00:00 | AL84: =AK84-1 -> -1 | AM84: -2 | AN84: -3 | AP84: =NETWORKDAYS(AK84,AK84,koszyki!$M$20:$M$89) -> 0 | AQ84: =NETWORKDAYS(AL84,AL84,koszyki!$M$20:$M$89) ->  | AR84: =NETWORKDAYS(AM84,AM84,koszyki!$M$20:$M$89) ->  | AS84: =NETWORKDAYS(AN84,AN84,koszyki!$M$20:$M$89) ->  | AU84: 0 | AZ84: 1
C85: =IF($C$2="GAS_BASE",(B85-A85+1)*koszyki!$A$14+J85,IF($C$2="OFFPEAK",M85*koszyki!$A$14+(N85)*24+J85,IF($C$2="BASE5",M85*koszyki!$A$14+J85,IF($C$2="PEAK7",(B85-A85+1)*koszyki!$A$14,M85*koszyki!$A$14)))) -> 24 | D85: ='Kalkulator Depozytów'!M90 -> 0 | E85: ='Kalkulator Depozytów'!N90 -> 0 | F85: ='Kalkulator Depozytów'!O90 -> 0 | G85: ='Kalkulator Depozytów'!P90 -> 0 | H85: ='Kalkulator Depozytów'!Q90 -> 0 | I85: =ROUND(AVERAGE(INDIRECT("krzywa!C"&MATCH(A85-$A$2,krzywa!A:A,0)&":C"&MATCH(B85-$A$2,krzywa!A:A,0),TRUE)),4) ->  | K85: 0 | M85: =NETWORKDAYS(A85,B85,koszyki!$M$20:$M$89) -> 0 | N85: =B85-A85+1- NETWORKDAYS(A85,B85,koszyki!$M$20:$M$89) -> 1 | R85: =VLOOKUP(A85,krzywa!L:N,3,1) ->  | S85: =VLOOKUP(B85,krzywa!L:N,3,1) ->  | T85: =IF('Kalkulator Depozytów'!$B$35=TRUE,1,(1+R85/100)*V85+(1+S85/100)*(1-V85)) ->  | U85: =IF(R85<>S85,VLOOKUP(A85,krzywa!L:N,2,1)) ->  | V85: =IF(U85<>FALSE,IF($C$2="GAS_BASE",(U85-A85+1)*koszyki!$A$14+J85,IF($C$2="OFFPEAK",M85*koszyki!$A$14+(N85)*24+J85,IF($C$2="BASE5",M85*koszyki!$A$14+J85,IF($C$2="PEAK7",(B85-A85+1)*koszyki!$A$14,M85*koszyki!$A$14))))/B85,1) ->  | AK85: 00:00:00 | AL85: =AK85-1 -> -1 | AM85: -2 | AN85: -3 | AP85: =NETWORKDAYS(AK85,AK85,koszyki!$M$20:$M$89) -> 0 | AQ85: =NETWORKDAYS(AL85,AL85,koszyki!$M$20:$M$89) ->  | AR85: =NETWORKDAYS(AM85,AM85,koszyki!$M$20:$M$89) ->  | AS85: =NETWORKDAYS(AN85,AN85,koszyki!$M$20:$M$89) ->  | AU85: 0 | AZ85: 1
C86: =IF($C$2="GAS_BASE",(B86-A86+1)*koszyki!$A$14+J86,IF($C$2="OFFPEAK",M86*koszyki!$A$14+(N86)*24+J86,IF($C$2="BASE5",M86*koszyki!$A$14+J86,IF($C$2="PEAK7",(B86-A86+1)*koszyki!$A$14,M86*koszyki!$A$14)))) -> 24 | D86: ='Kalkulator Depozytów'!M91 -> 0 | E86: ='Kalkulator Depozytów'!N91 -> 0 | F86: ='Kalkulator Depozytów'!O91 -> 0 | G86: ='Kalkulator Depozytów'!P91 -> 0 | H86: ='Kalkulator Depozytów'!Q91 -> 0 | I86: =ROUND(AVERAGE(INDIRECT("krzywa!C"&MATCH(A86-$A$2,krzywa!A:A,0)&":C"&MATCH(B86-$A$2,krzywa!A:A,0),TRUE)),4) ->  | K86: 0 | M86: =NETWORKDAYS(A86,B86,koszyki!$M$20:$M$89) -> 0 | N86: =B86-A86+1- NETWORKDAYS(A86,B86,koszyki!$M$20:$M$89) -> 1 | R86: =VLOOKUP(A86,krzywa!L:N,3,1) ->  | S86: =VLOOKUP(B86,krzywa!L:N,3,1) ->  | T86: =IF('Kalkulator Depozytów'!$B$35=TRUE,1,(1+R86/100)*V86+(1+S86/100)*(1-V86)) ->  | U86: =IF(R86<>S86,VLOOKUP(A86,krzywa!L:N,2,1)) ->  | V86: =IF(U86<>FALSE,IF($C$2="GAS_BASE",(U86-A86+1)*koszyki!$A$14+J86,IF($C$2="OFFPEAK",M86*koszyki!$A$14+(N86)*24+J86,IF($C$2="BASE5",M86*koszyki!$A$14+J86,IF($C$2="PEAK7",(B86-A86+1)*koszyki!$A$14,M86*koszyki!$A$14))))/B86,1) ->  | AK86: 00:00:00 | AL86: =AK86-1 -> -1 | AM86: -2 | AN86: -3 | AP86: =NETWORKDAYS(AK86,AK86,koszyki!$M$20:$M$89) -> 0 | AQ86: =NETWORKDAYS(AL86,AL86,koszyki!$M$20:$M$89) ->  | AR86: =NETWORKDAYS(AM86,AM86,koszyki!$M$20:$M$89) ->  | AS86: =NETWORKDAYS(AN86,AN86,koszyki!$M$20:$M$89) ->  | AU86: 0 | AZ86: 1
R87: =VLOOKUP(A87,krzywa!L:N,3,1) ->  | S87: =VLOOKUP(B87,krzywa!L:N,3,1) ->  | T87: =IF('Kalkulator Depozytów'!$B$35=TRUE,1,(1+R87/100)*V87+(1+S87/100)*(1-V87)) ->  | U87: =IF(R87<>S87,VLOOKUP(A87,krzywa!L:N,2,1)) ->  | V87: =IF(U87<>FALSE,IF($C$2="GAS_BASE",(U87-A87+1)*koszyki!$A$14+J87,IF($C$2="OFFPEAK",M87*koszyki!$A$14+(N87)*24+J87,IF($C$2="BASE5",M87*koszyki!$A$14+J87,IF($C$2="PEAK7",(B87-A87+1)*koszyki!$A$14,M87*koszyki!$A$14))))/B87,1) ->  | AK87: 00:00:00 | AL87: =AK87-1 -> -1 | AM87: -2 | AN87: -3 | AP87: =NETWORKDAYS(AK87,AK87,koszyki!$M$20:$M$89) -> 0 | AQ87: =NETWORKDAYS(AL87,AL87,koszyki!$M$20:$M$89) ->  | AR87: =NETWORKDAYS(AM87,AM87,koszyki!$M$20:$M$89) ->  | AS87: =NETWORKDAYS(AN87,AN87,koszyki!$M$20:$M$89) ->  | AU87: 0 | AZ87: 1
R88: =VLOOKUP(A88,krzywa!L:N,3,1) ->  | S88: =VLOOKUP(B88,krzywa!L:N,3,1) ->  | T88: =IF('Kalkulator Depozytów'!$B$35=TRUE,1,(1+R88/100)*V88+(1+S88/100)*(1-V88)) ->  | U88: =IF(R88<>S88,VLOOKUP(A88,krzywa!L:N,2,1)) ->  | V88: =IF(U88<>FALSE,IF($C$2="GAS_BASE",(U88-A88+1)*koszyki!$A$14+J88,IF($C$2="OFFPEAK",M88*koszyki!$A$14+(N88)*24+J88,IF($C$2="BASE5",M88*koszyki!$A$14+J88,IF($C$2="PEAK7",(B88-A88+1)*koszyki!$A$14,M88*koszyki!$A$14))))/B88,1) ->  | AK88: 00:00:00 | AL88: =AK88-1 -> -1 | AM88: -2 | AN88: -3 | AP88: =NETWORKDAYS(AK88,AK88,koszyki!$M$20:$M$89) -> 0 | AQ88: =NETWORKDAYS(AL88,AL88,koszyki!$M$20:$M$89) ->  | AR88: =NETWORKDAYS(AM88,AM88,koszyki!$M$20:$M$89) ->  | AS88: =NETWORKDAYS(AN88,AN88,koszyki!$M$20:$M$89) ->  | AU88: 0 | AZ88: 1
R89: =VLOOKUP(A89,krzywa!L:N,3,1) ->  | S89: =VLOOKUP(B89,krzywa!L:N,3,1) ->  | T89: =IF('Kalkulator Depozytów'!$B$35=TRUE,1,(1+R89/100)*V89+(1+S89/100)*(1-V89)) ->  | U89: =IF(R89<>S89,VLOOKUP(A89,krzywa!L:N,2,1)) ->  | V89: =IF(U89<>FALSE,IF($C$2="GAS_BASE",(U89-A89+1)*koszyki!$A$14+J89,IF($C$2="OFFPEAK",M89*koszyki!$A$14+(N89)*24+J89,IF($C$2="BASE5",M89*koszyki!$A$14+J89,IF($C$2="PEAK7",(B89-A89+1)*koszyki!$A$14,M89*koszyki!$A$14))))/B89,1) -> 
R90: =VLOOKUP(A90,krzywa!L:N,3,1) ->  | S90: =VLOOKUP(B90,krzywa!L:N,3,1) ->  | T90: =IF('Kalkulator Depozytów'!$B$35=TRUE,1,(1+R90/100)*V90+(1+S90/100)*(1-V90)) ->  | U90: =IF(R90<>S90,VLOOKUP(A90,krzywa!L:N,2,1)) ->  | V90: =IF(U90<>FALSE,IF($C$2="GAS_BASE",(U90-A90+1)*koszyki!$A$14+J90,IF($C$2="OFFPEAK",M90*koszyki!$A$14+(N90)*24+J90,IF($C$2="BASE5",M90*koszyki!$A$14+J90,IF($C$2="PEAK7",(B90-A90+1)*koszyki!$A$14,M90*koszyki!$A$14))))/B90,1) -> 
R91: =VLOOKUP(A91,krzywa!L:N,3,1) ->  | S91: =VLOOKUP(B91,krzywa!L:N,3,1) ->  | T91: =IF('Kalkulator Depozytów'!$B$35=TRUE,1,(1+R91/100)*V91+(1+S91/100)*(1-V91)) ->  | U91: =IF(R91<>S91,VLOOKUP(A91,krzywa!L:N,2,1)) ->  | V91: =IF(U91<>FALSE,IF($C$2="GAS_BASE",(U91-A91+1)*koszyki!$A$14+J91,IF($C$2="OFFPEAK",M91*koszyki!$A$14+(N91)*24+J91,IF($C$2="BASE5",M91*koszyki!$A$14+J91,IF($C$2="PEAK7",(B91-A91+1)*koszyki!$A$14,M91*koszyki!$A$14))))/B91,1) -> 
R92: =VLOOKUP(A92,krzywa!L:N,3,1) ->  | S92: =VLOOKUP(B92,krzywa!L:N,3,1) ->  | T92: =IF('Kalkulator Depozytów'!$B$35=TRUE,1,(1+R92/100)*V92+(1+S92/100)*(1-V92)) ->  | U92: =IF(R92<>S92,VLOOKUP(A92,krzywa!L:N,2,1)) ->  | V92: =IF(U92<>FALSE,IF($C$2="GAS_BASE",(U92-A92+1)*koszyki!$A$14+J92,IF($C$2="OFFPEAK",M92*koszyki!$A$14+(N92)*24+J92,IF($C$2="BASE5",M92*koszyki!$A$14+J92,IF($C$2="PEAK7",(B92-A92+1)*koszyki!$A$14,M92*koszyki!$A$14))))/B92,1) -> 
R93: =VLOOKUP(A93,krzywa!L:N,3,1) ->  | S93: =VLOOKUP(B93,krzywa!L:N,3,1) ->  | T93: =IF('Kalkulator Depozytów'!$B$35=TRUE,1,(1+R93/100)*V93+(1+S93/100)*(1-V93)) ->  | U93: =IF(R93<>S93,VLOOKUP(A93,krzywa!L:N,2,1)) ->  | V93: =IF(U93<>FALSE,IF($C$2="GAS_BASE",(U93-A93+1)*koszyki!$A$14+J93,IF($C$2="OFFPEAK",M93*koszyki!$A$14+(N93)*24+J93,IF($C$2="BASE5",M93*koszyki!$A$14+J93,IF($C$2="PEAK7",(B93-A93+1)*koszyki!$A$14,M93*koszyki!$A$14))))/B93,1) -> 
R94: =VLOOKUP(A94,krzywa!L:N,3,1) ->  | S94: =VLOOKUP(B94,krzywa!L:N,3,1) ->  | T94: =IF('Kalkulator Depozytów'!$B$35=TRUE,1,(1+R94/100)*V94+(1+S94/100)*(1-V94)) ->  | U94: =IF(R94<>S94,VLOOKUP(A94,krzywa!L:N,2,1)) ->  | V94: =IF(U94<>FALSE,IF($C$2="GAS_BASE",(U94-A94+1)*koszyki!$A$14+J94,IF($C$2="OFFPEAK",M94*koszyki!$A$14+(N94)*24+J94,IF($C$2="BASE5",M94*koszyki!$A$14+J94,IF($C$2="PEAK7",(B94-A94+1)*koszyki!$A$14,M94*koszyki!$A$14))))/B94,1) -> 
R95: =VLOOKUP(A95,krzywa!L:N,3,1) ->  | S95: =VLOOKUP(B95,krzywa!L:N,3,1) ->  | T95: =IF('Kalkulator Depozytów'!$B$35=TRUE,1,(1+R95/100)*V95+(1+S95/100)*(1-V95)) ->  | U95: =IF(R95<>S95,VLOOKUP(A95,krzywa!L:N,2,1)) ->  | V95: =IF(U95<>FALSE,IF($C$2="GAS_BASE",(U95-A95+1)*koszyki!$A$14+J95,IF($C$2="OFFPEAK",M95*koszyki!$A$14+(N95)*24+J95,IF($C$2="BASE5",M95*koszyki!$A$14+J95,IF($C$2="PEAK7",(B95-A95+1)*koszyki!$A$14,M95*koszyki!$A$14))))/B95,1) -> 
R96: =VLOOKUP(A96,krzywa!L:N,3,1) ->  | S96: =VLOOKUP(B96,krzywa!L:N,3,1) ->  | T96: =IF('Kalkulator Depozytów'!$B$35=TRUE,1,(1+R96/100)*V96+(1+S96/100)*(1-V96)) ->  | U96: =IF(R96<>S96,VLOOKUP(A96,krzywa!L:N,2,1)) ->  | V96: =IF(U96<>FALSE,IF($C$2="GAS_BASE",(U96-A96+1)*koszyki!$A$14+J96,IF($C$2="OFFPEAK",M96*koszyki!$A$14+(N96)*24+J96,IF($C$2="BASE5",M96*koszyki!$A$14+J96,IF($C$2="PEAK7",(B96-A96+1)*koszyki!$A$14,M96*koszyki!$A$14))))/B96,1) -> 
R97: =VLOOKUP(A97,krzywa!L:N,3,1) ->  | S97: =VLOOKUP(B97,krzywa!L:N,3,1) ->  | T97: =IF('Kalkulator Depozytów'!$B$35=TRUE,1,(1+R97/100)*V97+(1+S97/100)*(1-V97)) ->  | U97: =IF(R97<>S97,VLOOKUP(A97,krzywa!L:N,2,1)) ->  | V97: =IF(U97<>FALSE,IF($C$2="GAS_BASE",(U97-A97+1)*koszyki!$A$14+J97,IF($C$2="OFFPEAK",M97*koszyki!$A$14+(N97)*24+J97,IF($C$2="BASE5",M97*koszyki!$A$14+J97,IF($C$2="PEAK7",(B97-A97+1)*koszyki!$A$14,M97*koszyki!$A$14))))/B97,1) -> 
R98: =VLOOKUP(A98,krzywa!L:N,3,1) ->  | S98: =VLOOKUP(B98,krzywa!L:N,3,1) ->  | T98: =IF('Kalkulator Depozytów'!$B$35=TRUE,1,(1+R98/100)*V98+(1+S98/100)*(1-V98)) ->  | U98: =IF(R98<>S98,VLOOKUP(A98,krzywa!L:N,2,1)) ->  | V98: =IF(U98<>FALSE,IF($C$2="GAS_BASE",(U98-A98+1)*koszyki!$A$14+J98,IF($C$2="OFFPEAK",M98*koszyki!$A$14+(N98)*24+J98,IF($C$2="BASE5",M98*koszyki!$A$14+J98,IF($C$2="PEAK7",(B98-A98+1)*koszyki!$A$14,M98*koszyki!$A$14))))/B98,1) -> 
R99: =VLOOKUP(A99,krzywa!L:N,3,1) ->  | S99: =VLOOKUP(B99,krzywa!L:N,3,1) ->  | T99: =IF('Kalkulator Depozytów'!$B$35=TRUE,1,(1+R99/100)*V99+(1+S99/100)*(1-V99)) ->  | U99: =IF(R99<>S99,VLOOKUP(A99,krzywa!L:N,2,1)) ->  | V99: =IF(U99<>FALSE,IF($C$2="GAS_BASE",(U99-A99+1)*koszyki!$A$14+J99,IF($C$2="OFFPEAK",M99*koszyki!$A$14+(N99)*24+J99,IF($C$2="BASE5",M99*koszyki!$A$14+J99,IF($C$2="PEAK7",(B99-A99+1)*koszyki!$A$14,M99*koszyki!$A$14))))/B99,1) -> 
R100: =VLOOKUP(A100,krzywa!L:N,3,1) ->  | S100: =VLOOKUP(B100,krzywa!L:N,3,1) ->  | T100: =IF('Kalkulator Depozytów'!$B$35=TRUE,1,(1+R100/100)*V100+(1+S100/100)*(1-V100)) ->  | U100: =IF(R100<>S100,VLOOKUP(A100,krzywa!L:N,2,1)) ->  | V100: =IF(U100<>FALSE,IF($C$2="GAS_BASE",(U100-A100+1)*koszyki!$A$14+J100,IF($C$2="OFFPEAK",M100*koszyki!$A$14+(N100)*24+J100,IF($C$2="BASE5",M100*koszyki!$A$14+J100,IF($C$2="PEAK7",(B100-A100+1)*koszyki!$A$14,M100*koszyki!$A$14))))/B100,1) -> 
R101: =VLOOKUP(A101,krzywa!L:N,3,1) ->  | S101: =VLOOKUP(B101,krzywa!L:N,3,1) ->  | T101: =IF('Kalkulator Depozytów'!$B$35=TRUE,1,(1+R101/100)*V101+(1+S101/100)*(1-V101)) ->  | U101: =IF(R101<>S101,VLOOKUP(A101,krzywa!L:N,2,1)) ->  | V101: =IF(U101<>FALSE,IF($C$2="GAS_BASE",(U101-A101+1)*koszyki!$A$14+J101,IF($C$2="OFFPEAK",M101*koszyki!$A$14+(N101)*24+J101,IF($C$2="BASE5",M101*koszyki!$A$14+J101,IF($C$2="PEAK7",(B101-A101+1)*koszyki!$A$14,M101*koszyki!$A$14))))/B101,1) -> 
R102: =VLOOKUP(A102,krzywa!L:N,3,1) ->  | S102: =VLOOKUP(B102,krzywa!L:N,3,1) ->  | T102: =IF('Kalkulator Depozytów'!$B$35=TRUE,1,(1+R102/100)*V102+(1+S102/100)*(1-V102)) ->  | U102: =IF(R102<>S102,VLOOKUP(A102,krzywa!L:N,2,1)) ->  | V102: =IF(U102<>FALSE,IF($C$2="GAS_BASE",(U102-A102+1)*koszyki!$A$14+J102,IF($C$2="OFFPEAK",M102*koszyki!$A$14+(N102)*24+J102,IF($C$2="BASE5",M102*koszyki!$A$14+J102,IF($C$2="PEAK7",(B102-A102+1)*koszyki!$A$14,M102*koszyki!$A$14))))/B102,1) -> 
R103: =VLOOKUP(A103,krzywa!L:N,3,1) ->  | S103: =VLOOKUP(B103,krzywa!L:N,3,1) ->  | T103: =IF('Kalkulator Depozytów'!$B$35=TRUE,1,(1+R103/100)*V103+(1+S103/100)*(1-V103)) ->  | U103: =IF(R103<>S103,VLOOKUP(A103,krzywa!L:N,2,1)) ->  | V103: =IF(U103<>FALSE,IF($C$2="GAS_BASE",(U103-A103+1)*koszyki!$A$14+J103,IF($C$2="OFFPEAK",M103*koszyki!$A$14+(N103)*24+J103,IF($C$2="BASE5",M103*koszyki!$A$14+J103,IF($C$2="PEAK7",(B103-A103+1)*koszyki!$A$14,M103*koszyki!$A$14))))/B103,1) -> 
R104: =VLOOKUP(A104,krzywa!L:N,3,1) ->  | S104: =VLOOKUP(B104,krzywa!L:N,3,1) ->  | T104: =IF('Kalkulator Depozytów'!$B$35=TRUE,1,(1+R104/100)*V104+(1+S104/100)*(1-V104)) ->  | U104: =IF(R104<>S104,VLOOKUP(A104,krzywa!L:N,2,1)) ->  | V104: =IF(U104<>FALSE,IF($C$2="GAS_BASE",(U104-A104+1)*koszyki!$A$14+J104,IF($C$2="OFFPEAK",M104*koszyki!$A$14+(N104)*24+J104,IF($C$2="BASE5",M104*koszyki!$A$14+J104,IF($C$2="PEAK7",(B104-A104+1)*koszyki!$A$14,M104*koszyki!$A$14))))/B104,1) -> 
R105: =VLOOKUP(A105,krzywa!L:N,3,1) ->  | S105: =VLOOKUP(B105,krzywa!L:N,3,1) ->  | T105: =IF('Kalkulator Depozytów'!$B$35=TRUE,1,(1+R105/100)*V105+(1+S105/100)*(1-V105)) ->  | U105: =IF(R105<>S105,VLOOKUP(A105,krzywa!L:N,2,1)) ->  | V105: =IF(U105<>FALSE,IF($C$2="GAS_BASE",(U105-A105+1)*koszyki!$A$14+J105,IF($C$2="OFFPEAK",M105*koszyki!$A$14+(N105)*24+J105,IF($C$2="BASE5",M105*koszyki!$A$14+J105,IF($C$2="PEAK7",(B105-A105+1)*koszyki!$A$14,M105*koszyki!$A$14))))/B105,1) -> 
R106: =VLOOKUP(A106,krzywa!L:N,3,1) ->  | S106: =VLOOKUP(B106,krzywa!L:N,3,1) ->  | T106: =IF('Kalkulator Depozytów'!$B$35=TRUE,1,(1+R106/100)*V106+(1+S106/100)*(1-V106)) ->  | U106: =IF(R106<>S106,VLOOKUP(A106,krzywa!L:N,2,1)) ->  | V106: =IF(U106<>FALSE,IF($C$2="GAS_BASE",(U106-A106+1)*koszyki!$A$14+J106,IF($C$2="OFFPEAK",M106*koszyki!$A$14+(N106)*24+J106,IF($C$2="BASE5",M106*koszyki!$A$14+J106,IF($C$2="PEAK7",(B106-A106+1)*koszyki!$A$14,M106*koszyki!$A$14))))/B106,1) -> 
R107: =VLOOKUP(A107,krzywa!L:N,3,1) ->  | S107: =VLOOKUP(B107,krzywa!L:N,3,1) ->  | T107: =IF('Kalkulator Depozytów'!$B$35=TRUE,1,(1+R107/100)*V107+(1+S107/100)*(1-V107)) ->  | U107: =IF(R107<>S107,VLOOKUP(A107,krzywa!L:N,2,1)) ->  | V107: =IF(U107<>FALSE,IF($C$2="GAS_BASE",(U107-A107+1)*koszyki!$A$14+J107,IF($C$2="OFFPEAK",M107*koszyki!$A$14+(N107)*24+J107,IF($C$2="BASE5",M107*koszyki!$A$14+J107,IF($C$2="PEAK7",(B107-A107+1)*koszyki!$A$14,M107*koszyki!$A$14))))/B107,1) -> 
R108: =VLOOKUP(A108,krzywa!L:N,3,1) ->  | S108: =VLOOKUP(B108,krzywa!L:N,3,1) ->  | T108: =IF('Kalkulator Depozytów'!$B$35=TRUE,1,(1+R108/100)*V108+(1+S108/100)*(1-V108)) ->  | U108: =IF(R108<>S108,VLOOKUP(A108,krzywa!L:N,2,1)) ->  | V108: =IF(U108<>FALSE,IF($C$2="GAS_BASE",(U108-A108+1)*koszyki!$A$14+J108,IF($C$2="OFFPEAK",M108*koszyki!$A$14+(N108)*24+J108,IF($C$2="BASE5",M108*koszyki!$A$14+J108,IF($C$2="PEAK7",(B108-A108+1)*koszyki!$A$14,M108*koszyki!$A$14))))/B108,1) -> 
R109: =VLOOKUP(A109,krzywa!L:N,3,1) ->  | S109: =VLOOKUP(B109,krzywa!L:N,3,1) ->  | T109: =IF('Kalkulator Depozytów'!$B$35=TRUE,1,(1+R109/100)*V109+(1+S109/100)*(1-V109)) ->  | U109: =IF(R109<>S109,VLOOKUP(A109,krzywa!L:N,2,1)) ->  | V109: =IF(U109<>FALSE,IF($C$2="GAS_BASE",(U109-A109+1)*koszyki!$A$14+J109,IF($C$2="OFFPEAK",M109*koszyki!$A$14+(N109)*24+J109,IF($C$2="BASE5",M109*koszyki!$A$14+J109,IF($C$2="PEAK7",(B109-A109+1)*koszyki!$A$14,M109*koszyki!$A$14))))/B109,1) -> 
R110: =VLOOKUP(A110,krzywa!L:N,3,1) ->  | S110: =VLOOKUP(B110,krzywa!L:N,3,1) ->  | T110: =IF('Kalkulator Depozytów'!$B$35=TRUE,1,(1+R110/100)*V110+(1+S110/100)*(1-V110)) ->  | U110: =IF(R110<>S110,VLOOKUP(A110,krzywa!L:N,2,1)) ->  | V110: =IF(U110<>FALSE,IF($C$2="GAS_BASE",(U110-A110+1)*koszyki!$A$14+J110,IF($C$2="OFFPEAK",M110*koszyki!$A$14+(N110)*24+J110,IF($C$2="BASE5",M110*koszyki!$A$14+J110,IF($C$2="PEAK7",(B110-A110+1)*koszyki!$A$14,M110*koszyki!$A$14))))/B110,1) -> 
R111: =VLOOKUP(A111,krzywa!L:N,3,1) ->  | S111: =VLOOKUP(B111,krzywa!L:N,3,1) ->  | T111: =IF('Kalkulator Depozytów'!$B$35=TRUE,1,(1+R111/100)*V111+(1+S111/100)*(1-V111)) ->  | U111: =IF(R111<>S111,VLOOKUP(A111,krzywa!L:N,2,1)) ->  | V111: =IF(U111<>FALSE,IF($C$2="GAS_BASE",(U111-A111+1)*koszyki!$A$14+J111,IF($C$2="OFFPEAK",M111*koszyki!$A$14+(N111)*24+J111,IF($C$2="BASE5",M111*koszyki!$A$14+J111,IF($C$2="PEAK7",(B111-A111+1)*koszyki!$A$14,M111*koszyki!$A$14))))/B111,1) -> 
R112: =VLOOKUP(A112,krzywa!L:N,3,1) ->  | S112: =VLOOKUP(B112,krzywa!L:N,3,1) ->  | T112: =IF('Kalkulator Depozytów'!$B$35=TRUE,1,(1+R112/100)*V112+(1+S112/100)*(1-V112)) ->  | U112: =IF(R112<>S112,VLOOKUP(A112,krzywa!L:N,2,1)) ->  | V112: =IF(U112<>FALSE,IF($C$2="GAS_BASE",(U112-A112+1)*koszyki!$A$14+J112,IF($C$2="OFFPEAK",M112*koszyki!$A$14+(N112)*24+J112,IF($C$2="BASE5",M112*koszyki!$A$14+J112,IF($C$2="PEAK7",(B112-A112+1)*koszyki!$A$14,M112*koszyki!$A$14))))/B112,1) -> 
R113: =VLOOKUP(A113,krzywa!L:N,3,1) ->  | S113: =VLOOKUP(B113,krzywa!L:N,3,1) ->  | T113: =IF('Kalkulator Depozytów'!$B$35=TRUE,1,(1+R113/100)*V113+(1+S113/100)*(1-V113)) ->  | U113: =IF(R113<>S113,VLOOKUP(A113,krzywa!L:N,2,1)) ->  | V113: =IF(U113<>FALSE,IF($C$2="GAS_BASE",(U113-A113+1)*koszyki!$A$14+J113,IF($C$2="OFFPEAK",M113*koszyki!$A$14+(N113)*24+J113,IF($C$2="BASE5",M113*koszyki!$A$14+J113,IF($C$2="PEAK7",(B113-A113+1)*koszyki!$A$14,M113*koszyki!$A$14))))/B113,1) -> 
R114: =VLOOKUP(A114,krzywa!L:N,3,1) ->  | S114: =VLOOKUP(B114,krzywa!L:N,3,1) ->  | T114: =IF('Kalkulator Depozytów'!$B$35=TRUE,1,(1+R114/100)*V114+(1+S114/100)*(1-V114)) ->  | U114: =IF(R114<>S114,VLOOKUP(A114,krzywa!L:N,2,1)) ->  | V114: =IF(U114<>FALSE,IF($C$2="GAS_BASE",(U114-A114+1)*koszyki!$A$14+J114,IF($C$2="OFFPEAK",M114*koszyki!$A$14+(N114)*24+J114,IF($C$2="BASE5",M114*koszyki!$A$14+J114,IF($C$2="PEAK7",(B114-A114+1)*koszyki!$A$14,M114*koszyki!$A$14))))/B114,1) -> 
R115: =VLOOKUP(A115,krzywa!L:N,3,1) ->  | S115: =VLOOKUP(B115,krzywa!L:N,3,1) ->  | T115: =IF('Kalkulator Depozytów'!$B$35=TRUE,1,(1+R115/100)*V115+(1+S115/100)*(1-V115)) ->  | U115: =IF(R115<>S115,VLOOKUP(A115,krzywa!L:N,2,1)) ->  | V115: =IF(U115<>FALSE,IF($C$2="GAS_BASE",(U115-A115+1)*koszyki!$A$14+J115,IF($C$2="OFFPEAK",M115*koszyki!$A$14+(N115)*24+J115,IF($C$2="BASE5",M115*koszyki!$A$14+J115,IF($C$2="PEAK7",(B115-A115+1)*koszyki!$A$14,M115*koszyki!$A$14))))/B115,1) -> 
R116: =VLOOKUP(A116,krzywa!L:N,3,1) ->  | S116: =VLOOKUP(B116,krzywa!L:N,3,1) ->  | T116: =IF('Kalkulator Depozytów'!$B$35=TRUE,1,(1+R116/100)*V116+(1+S116/100)*(1-V116)) ->  | U116: =IF(R116<>S116,VLOOKUP(A116,krzywa!L:N,2,1)) ->  | V116: =IF(U116<>FALSE,IF($C$2="GAS_BASE",(U116-A116+1)*koszyki!$A$14+J116,IF($C$2="OFFPEAK",M116*koszyki!$A$14+(N116)*24+J116,IF($C$2="BASE5",M116*koszyki!$A$14+J116,IF($C$2="PEAK7",(B116-A116+1)*koszyki!$A$14,M116*koszyki!$A$14))))/B116,1) -> 
R117: =VLOOKUP(A117,krzywa!L:N,3,1) ->  | S117: =VLOOKUP(B117,krzywa!L:N,3,1) ->  | T117: =IF('Kalkulator Depozytów'!$B$35=TRUE,1,(1+R117/100)*V117+(1+S117/100)*(1-V117)) ->  | U117: =IF(R117<>S117,VLOOKUP(A117,krzywa!L:N,2,1)) ->  | V117: =IF(U117<>FALSE,IF($C$2="GAS_BASE",(U117-A117+1)*koszyki!$A$14+J117,IF($C$2="OFFPEAK",M117*koszyki!$A$14+(N117)*24+J117,IF($C$2="BASE5",M117*koszyki!$A$14+J117,IF($C$2="PEAK7",(B117-A117+1)*koszyki!$A$14,M117*koszyki!$A$14))))/B117,1) -> 
R118: =VLOOKUP(A118,krzywa!L:N,3,1) ->  | S118: =VLOOKUP(B118,krzywa!L:N,3,1) ->  | T118: =IF('Kalkulator Depozytów'!$B$35=TRUE,1,(1+R118/100)*V118+(1+S118/100)*(1-V118)) ->  | U118: =IF(R118<>S118,VLOOKUP(A118,krzywa!L:N,2,1)) ->  | V118: =IF(U118<>FALSE,IF($C$2="GAS_BASE",(U118-A118+1)*koszyki!$A$14+J118,IF($C$2="OFFPEAK",M118*koszyki!$A$14+(N118)*24+J118,IF($C$2="BASE5",M118*koszyki!$A$14+J118,IF($C$2="PEAK7",(B118-A118+1)*koszyki!$A$14,M118*koszyki!$A$14))))/B118,1) -> 
R119: =VLOOKUP(A119,krzywa!L:N,3,1) ->  | S119: =VLOOKUP(B119,krzywa!L:N,3,1) ->  | T119: =IF('Kalkulator Depozytów'!$B$35=TRUE,1,(1+R119/100)*V119+(1+S119/100)*(1-V119)) ->  | U119: =IF(R119<>S119,VLOOKUP(A119,krzywa!L:N,2,1)) ->  | V119: =IF(U119<>FALSE,IF($C$2="GAS_BASE",(U119-A119+1)*koszyki!$A$14+J119,IF($C$2="OFFPEAK",M119*koszyki!$A$14+(N119)*24+J119,IF($C$2="BASE5",M119*koszyki!$A$14+J119,IF($C$2="PEAK7",(B119-A119+1)*koszyki!$A$14,M119*koszyki!$A$14))))/B119,1) -> 
R120: =VLOOKUP(A120,krzywa!L:N,3,1) ->  | S120: =VLOOKUP(B120,krzywa!L:N,3,1) ->  | T120: =IF('Kalkulator Depozytów'!$B$35=TRUE,1,(1+R120/100)*V120+(1+S120/100)*(1-V120)) ->  | U120: =IF(R120<>S120,VLOOKUP(A120,krzywa!L:N,2,1)) ->  | V120: =IF(U120<>FALSE,IF($C$2="GAS_BASE",(U120-A120+1)*koszyki!$A$14+J120,IF($C$2="OFFPEAK",M120*koszyki!$A$14+(N120)*24+J120,IF($C$2="BASE5",M120*koszyki!$A$14+J120,IF($C$2="PEAK7",(B120-A120+1)*koszyki!$A$14,M120*koszyki!$A$14))))/B120,1) -> 
R121: =VLOOKUP(A121,krzywa!L:N,3,1) ->  | S121: =VLOOKUP(B121,krzywa!L:N,3,1) ->  | T121: =IF('Kalkulator Depozytów'!$B$35=TRUE,1,(1+R121/100)*V121+(1+S121/100)*(1-V121)) ->  | U121: =IF(R121<>S121,VLOOKUP(A121,krzywa!L:N,2,1)) ->  | V121: =IF(U121<>FALSE,IF($C$2="GAS_BASE",(U121-A121+1)*koszyki!$A$14+J121,IF($C$2="OFFPEAK",M121*koszyki!$A$14+(N121)*24+J121,IF($C$2="BASE5",M121*koszyki!$A$14+J121,IF($C$2="PEAK7",(B121-A121+1)*koszyki!$A$14,M121*koszyki!$A$14))))/B121,1) -> 
R122: =VLOOKUP(A122,krzywa!L:N,3,1) ->  | S122: =VLOOKUP(B122,krzywa!L:N,3,1) ->  | T122: =IF('Kalkulator Depozytów'!$B$35=TRUE,1,(1+R122/100)*V122+(1+S122/100)*(1-V122)) ->  | U122: =IF(R122<>S122,VLOOKUP(A122,krzywa!L:N,2,1)) ->  | V122: =IF(U122<>FALSE,IF($C$2="GAS_BASE",(U122-A122+1)*koszyki!$A$14+J122,IF($C$2="OFFPEAK",M122*koszyki!$A$14+(N122)*24+J122,IF($C$2="BASE5",M122*koszyki!$A$14+J122,IF($C$2="PEAK7",(B122-A122+1)*koszyki!$A$14,M122*koszyki!$A$14))))/B122,1) -> 
R123: =VLOOKUP(A123,krzywa!L:N,3,1) ->  | S123: =VLOOKUP(B123,krzywa!L:N,3,1) ->  | T123: =IF('Kalkulator Depozytów'!$B$35=TRUE,1,(1+R123/100)*V123+(1+S123/100)*(1-V123)) ->  | U123: =IF(R123<>S123,VLOOKUP(A123,krzywa!L:N,2,1)) ->  | V123: =IF(U123<>FALSE,IF($C$2="GAS_BASE",(U123-A123+1)*koszyki!$A$14+J123,IF($C$2="OFFPEAK",M123*koszyki!$A$14+(N123)*24+J123,IF($C$2="BASE5",M123*koszyki!$A$14+J123,IF($C$2="PEAK7",(B123-A123+1)*koszyki!$A$14,M123*koszyki!$A$14))))/B123,1) -> 
R124: =VLOOKUP(A124,krzywa!L:N,3,1) ->  | S124: =VLOOKUP(B124,krzywa!L:N,3,1) ->  | T124: =IF('Kalkulator Depozytów'!$B$35=TRUE,1,(1+R124/100)*V124+(1+S124/100)*(1-V124)) ->  | U124: =IF(R124<>S124,VLOOKUP(A124,krzywa!L:N,2,1)) ->  | V124: =IF(U124<>FALSE,IF($C$2="GAS_BASE",(U124-A124+1)*koszyki!$A$14+J124,IF($C$2="OFFPEAK",M124*koszyki!$A$14+(N124)*24+J124,IF($C$2="BASE5",M124*koszyki!$A$14+J124,IF($C$2="PEAK7",(B124-A124+1)*koszyki!$A$14,M124*koszyki!$A$14))))/B124,1) -> 
R125: =VLOOKUP(A125,krzywa!L:N,3,1) ->  | S125: =VLOOKUP(B125,krzywa!L:N,3,1) ->  | T125: =IF('Kalkulator Depozytów'!$B$35=TRUE,1,(1+R125/100)*V125+(1+S125/100)*(1-V125)) ->  | U125: =IF(R125<>S125,VLOOKUP(A125,krzywa!L:N,2,1)) ->  | V125: =IF(U125<>FALSE,IF($C$2="GAS_BASE",(U125-A125+1)*koszyki!$A$14+J125,IF($C$2="OFFPEAK",M125*koszyki!$A$14+(N125)*24+J125,IF($C$2="BASE5",M125*koszyki!$A$14+J125,IF($C$2="PEAK7",(B125-A125+1)*koszyki!$A$14,M125*koszyki!$A$14))))/B125,1) -> 
R126: =VLOOKUP(A126,krzywa!L:N,3,1) ->  | S126: =VLOOKUP(B126,krzywa!L:N,3,1) ->  | T126: =IF('Kalkulator Depozytów'!$B$35=TRUE,1,(1+R126/100)*V126+(1+S126/100)*(1-V126)) ->  | U126: =IF(R126<>S126,VLOOKUP(A126,krzywa!L:N,2,1)) ->  | V126: =IF(U126<>FALSE,IF($C$2="GAS_BASE",(U126-A126+1)*koszyki!$A$14+J126,IF($C$2="OFFPEAK",M126*koszyki!$A$14+(N126)*24+J126,IF($C$2="BASE5",M126*koszyki!$A$14+J126,IF($C$2="PEAK7",(B126-A126+1)*koszyki!$A$14,M126*koszyki!$A$14))))/B126,1) -> 
R127: =VLOOKUP(A127,krzywa!L:N,3,1) ->  | S127: =VLOOKUP(B127,krzywa!L:N,3,1) ->  | T127: =IF('Kalkulator Depozytów'!$B$35=TRUE,1,(1+R127/100)*V127+(1+S127/100)*(1-V127)) ->  | U127: =IF(R127<>S127,VLOOKUP(A127,krzywa!L:N,2,1)) ->  | V127: =IF(U127<>FALSE,IF($C$2="GAS_BASE",(U127-A127+1)*koszyki!$A$14+J127,IF($C$2="OFFPEAK",M127*koszyki!$A$14+(N127)*24+J127,IF($C$2="BASE5",M127*koszyki!$A$14+J127,IF($C$2="PEAK7",(B127-A127+1)*koszyki!$A$14,M127*koszyki!$A$14))))/B127,1) -> 
R128: =VLOOKUP(A128,krzywa!L:N,3,1) ->  | S128: =VLOOKUP(B128,krzywa!L:N,3,1) ->  | T128: =IF('Kalkulator Depozytów'!$B$35=TRUE,1,(1+R128/100)*V128+(1+S128/100)*(1-V128)) ->  | U128: =IF(R128<>S128,VLOOKUP(A128,krzywa!L:N,2,1)) ->  | V128: =IF(U128<>FALSE,IF($C$2="GAS_BASE",(U128-A128+1)*koszyki!$A$14+J128,IF($C$2="OFFPEAK",M128*koszyki!$A$14+(N128)*24+J128,IF($C$2="BASE5",M128*koszyki!$A$14+J128,IF($C$2="PEAK7",(B128-A128+1)*koszyki!$A$14,M128*koszyki!$A$14))))/B128,1) -> 
R129: =VLOOKUP(A129,krzywa!L:N,3,1) ->  | S129: =VLOOKUP(B129,krzywa!L:N,3,1) ->  | T129: =IF('Kalkulator Depozytów'!$B$35=TRUE,1,(1+R129/100)*V129+(1+S129/100)*(1-V129)) ->  | U129: =IF(R129<>S129,VLOOKUP(A129,krzywa!L:N,2,1)) ->  | V129: =IF(U129<>FALSE,IF($C$2="GAS_BASE",(U129-A129+1)*koszyki!$A$14+J129,IF($C$2="OFFPEAK",M129*koszyki!$A$14+(N129)*24+J129,IF($C$2="BASE5",M129*koszyki!$A$14+J129,IF($C$2="PEAK7",(B129-A129+1)*koszyki!$A$14,M129*koszyki!$A$14))))/B129,1) -> 
R130: =VLOOKUP(A130,krzywa!L:N,3,1) ->  | S130: =VLOOKUP(B130,krzywa!L:N,3,1) ->  | T130: =IF('Kalkulator Depozytów'!$B$35=TRUE,1,(1+R130/100)*V130+(1+S130/100)*(1-V130)) ->  | U130: =IF(R130<>S130,VLOOKUP(A130,krzywa!L:N,2,1)) ->  | V130: =IF(U130<>FALSE,IF($C$2="GAS_BASE",(U130-A130+1)*koszyki!$A$14+J130,IF($C$2="OFFPEAK",M130*koszyki!$A$14+(N130)*24+J130,IF($C$2="BASE5",M130*koszyki!$A$14+J130,IF($C$2="PEAK7",(B130-A130+1)*koszyki!$A$14,M130*koszyki!$A$14))))/B130,1) -> 
R131: =VLOOKUP(A131,krzywa!L:N,3,1) ->  | S131: =VLOOKUP(B131,krzywa!L:N,3,1) ->  | T131: =IF('Kalkulator Depozytów'!$B$35=TRUE,1,(1+R131/100)*V131+(1+S131/100)*(1-V131)) ->  | U131: =IF(R131<>S131,VLOOKUP(A131,krzywa!L:N,2,1)) ->  | V131: =IF(U131<>FALSE,IF($C$2="GAS_BASE",(U131-A131+1)*koszyki!$A$14+J131,IF($C$2="OFFPEAK",M131*koszyki!$A$14+(N131)*24+J131,IF($C$2="BASE5",M131*koszyki!$A$14+J131,IF($C$2="PEAK7",(B131-A131+1)*koszyki!$A$14,M131*koszyki!$A$14))))/B131,1) -> 
R132: =VLOOKUP(A132,krzywa!L:N,3,1) ->  | S132: =VLOOKUP(B132,krzywa!L:N,3,1) ->  | T132: =IF('Kalkulator Depozytów'!$B$35=TRUE,1,(1+R132/100)*V132+(1+S132/100)*(1-V132)) ->  | U132: =IF(R132<>S132,VLOOKUP(A132,krzywa!L:N,2,1)) ->  | V132: =IF(U132<>FALSE,IF($C$2="GAS_BASE",(U132-A132+1)*koszyki!$A$14+J132,IF($C$2="OFFPEAK",M132*koszyki!$A$14+(N132)*24+J132,IF($C$2="BASE5",M132*koszyki!$A$14+J132,IF($C$2="PEAK7",(B132-A132+1)*koszyki!$A$14,M132*koszyki!$A$14))))/B132,1) -> 
R133: =VLOOKUP(A133,krzywa!L:N,3,1) ->  | S133: =VLOOKUP(B133,krzywa!L:N,3,1) ->  | T133: =IF('Kalkulator Depozytów'!$B$35=TRUE,1,(1+R133/100)*V133+(1+S133/100)*(1-V133)) ->  | U133: =IF(R133<>S133,VLOOKUP(A133,krzywa!L:N,2,1)) ->  | V133: =IF(U133<>FALSE,IF($C$2="GAS_BASE",(U133-A133+1)*koszyki!$A$14+J133,IF($C$2="OFFPEAK",M133*koszyki!$A$14+(N133)*24+J133,IF($C$2="BASE5",M133*koszyki!$A$14+J133,IF($C$2="PEAK7",(B133-A133+1)*koszyki!$A$14,M133*koszyki!$A$14))))/B133,1) -> 
R134: =VLOOKUP(A134,krzywa!L:N,3,1) ->  | S134: =VLOOKUP(B134,krzywa!L:N,3,1) ->  | T134: =IF('Kalkulator Depozytów'!$B$35=TRUE,1,(1+R134/100)*V134+(1+S134/100)*(1-V134)) ->  | U134: =IF(R134<>S134,VLOOKUP(A134,krzywa!L:N,2,1)) ->  | V134: =IF(U134<>FALSE,IF($C$2="GAS_BASE",(U134-A134+1)*koszyki!$A$14+J134,IF($C$2="OFFPEAK",M134*koszyki!$A$14+(N134)*24+J134,IF($C$2="BASE5",M134*koszyki!$A$14+J134,IF($C$2="PEAK7",(B134-A134+1)*koszyki!$A$14,M134*koszyki!$A$14))))/B134,1) -> 
R135: =VLOOKUP(A135,krzywa!L:N,3,1) ->  | S135: =VLOOKUP(B135,krzywa!L:N,3,1) ->  | T135: =IF('Kalkulator Depozytów'!$B$35=TRUE,1,(1+R135/100)*V135+(1+S135/100)*(1-V135)) ->  | U135: =IF(R135<>S135,VLOOKUP(A135,krzywa!L:N,2,1)) ->  | V135: =IF(U135<>FALSE,IF($C$2="GAS_BASE",(U135-A135+1)*koszyki!$A$14+J135,IF($C$2="OFFPEAK",M135*koszyki!$A$14+(N135)*24+J135,IF($C$2="BASE5",M135*koszyki!$A$14+J135,IF($C$2="PEAK7",(B135-A135+1)*koszyki!$A$14,M135*koszyki!$A$14))))/B135,1) -> 
R136: =VLOOKUP(A136,krzywa!L:N,3,1) ->  | S136: =VLOOKUP(B136,krzywa!L:N,3,1) ->  | T136: =IF('Kalkulator Depozytów'!$B$35=TRUE,1,(1+R136/100)*V136+(1+S136/100)*(1-V136)) ->  | U136: =IF(R136<>S136,VLOOKUP(A136,krzywa!L:N,2,1)) ->  | V136: =IF(U136<>FALSE,IF($C$2="GAS_BASE",(U136-A136+1)*koszyki!$A$14+J136,IF($C$2="OFFPEAK",M136*koszyki!$A$14+(N136)*24+J136,IF($C$2="BASE5",M136*koszyki!$A$14+J136,IF($C$2="PEAK7",(B136-A136+1)*koszyki!$A$14,M136*koszyki!$A$14))))/B136,1) -> 
R137: =VLOOKUP(A137,krzywa!L:N,3,1) ->  | S137: =VLOOKUP(B137,krzywa!L:N,3,1) ->  | T137: =IF('Kalkulator Depozytów'!$B$35=TRUE,1,(1+R137/100)*V137+(1+S137/100)*(1-V137)) ->  | U137: =IF(R137<>S137,VLOOKUP(A137,krzywa!L:N,2,1)) ->  | V137: =IF(U137<>FALSE,IF($C$2="GAS_BASE",(U137-A137+1)*koszyki!$A$14+J137,IF($C$2="OFFPEAK",M137*koszyki!$A$14+(N137)*24+J137,IF($C$2="BASE5",M137*koszyki!$A$14+J137,IF($C$2="PEAK7",(B137-A137+1)*koszyki!$A$14,M137*koszyki!$A$14))))/B137,1) -> 
R138: =VLOOKUP(A138,krzywa!L:N,3,1) ->  | S138: =VLOOKUP(B138,krzywa!L:N,3,1) ->  | T138: =IF('Kalkulator Depozytów'!$B$35=TRUE,1,(1+R138/100)*V138+(1+S138/100)*(1-V138)) ->  | U138: =IF(R138<>S138,VLOOKUP(A138,krzywa!L:N,2,1)) ->  | V138: =IF(U138<>FALSE,IF($C$2="GAS_BASE",(U138-A138+1)*koszyki!$A$14+J138,IF($C$2="OFFPEAK",M138*koszyki!$A$14+(N138)*24+J138,IF($C$2="BASE5",M138*koszyki!$A$14+J138,IF($C$2="PEAK7",(B138-A138+1)*koszyki!$A$14,M138*koszyki!$A$14))))/B138,1) -> 
R139: =VLOOKUP(A139,krzywa!L:N,3,1) ->  | S139: =VLOOKUP(B139,krzywa!L:N,3,1) ->  | T139: =IF('Kalkulator Depozytów'!$B$35=TRUE,1,(1+R139/100)*V139+(1+S139/100)*(1-V139)) ->  | U139: =IF(R139<>S139,VLOOKUP(A139,krzywa!L:N,2,1)) ->  | V139: =IF(U139<>FALSE,IF($C$2="GAS_BASE",(U139-A139+1)*koszyki!$A$14+J139,IF($C$2="OFFPEAK",M139*koszyki!$A$14+(N139)*24+J139,IF($C$2="BASE5",M139*koszyki!$A$14+J139,IF($C$2="PEAK7",(B139-A139+1)*koszyki!$A$14,M139*koszyki!$A$14))))/B139,1) -> 
R140: =VLOOKUP(A140,krzywa!L:N,3,1) ->  | S140: =VLOOKUP(B140,krzywa!L:N,3,1) ->  | T140: =IF('Kalkulator Depozytów'!$B$35=TRUE,1,(1+R140/100)*V140+(1+S140/100)*(1-V140)) ->  | U140: =IF(R140<>S140,VLOOKUP(A140,krzywa!L:N,2,1)) ->  | V140: =IF(U140<>FALSE,IF($C$2="GAS_BASE",(U140-A140+1)*koszyki!$A$14+J140,IF($C$2="OFFPEAK",M140*koszyki!$A$14+(N140)*24+J140,IF($C$2="BASE5",M140*koszyki!$A$14+J140,IF($C$2="PEAK7",(B140-A140+1)*koszyki!$A$14,M140*koszyki!$A$14))))/B140,1) -> 
R141: =VLOOKUP(A141,krzywa!L:N,3,1) ->  | S141: =VLOOKUP(B141,krzywa!L:N,3,1) ->  | T141: =IF('Kalkulator Depozytów'!$B$35=TRUE,1,(1+R141/100)*V141+(1+S141/100)*(1-V141)) ->  | U141: =IF(R141<>S141,VLOOKUP(A141,krzywa!L:N,2,1)) ->  | V141: =IF(U141<>FALSE,IF($C$2="GAS_BASE",(U141-A141+1)*koszyki!$A$14+J141,IF($C$2="OFFPEAK",M141*koszyki!$A$14+(N141)*24+J141,IF($C$2="BASE5",M141*koszyki!$A$14+J141,IF($C$2="PEAK7",(B141-A141+1)*koszyki!$A$14,M141*koszyki!$A$14))))/B141,1) -> 
R142: =VLOOKUP(A142,krzywa!L:N,3,1) ->  | S142: =VLOOKUP(B142,krzywa!L:N,3,1) ->  | T142: =IF('Kalkulator Depozytów'!$B$35=TRUE,1,(1+R142/100)*V142+(1+S142/100)*(1-V142)) ->  | U142: =IF(R142<>S142,VLOOKUP(A142,krzywa!L:N,2,1)) ->  | V142: =IF(U142<>FALSE,IF($C$2="GAS_BASE",(U142-A142+1)*koszyki!$A$14+J142,IF($C$2="OFFPEAK",M142*koszyki!$A$14+(N142)*24+J142,IF($C$2="BASE5",M142*koszyki!$A$14+J142,IF($C$2="PEAK7",(B142-A142+1)*koszyki!$A$14,M142*koszyki!$A$14))))/B142,1) -> 
R143: =VLOOKUP(A143,krzywa!L:N,3,1) ->  | S143: =VLOOKUP(B143,krzywa!L:N,3,1) ->  | T143: =IF('Kalkulator Depozytów'!$B$35=TRUE,1,(1+R143/100)*V143+(1+S143/100)*(1-V143)) ->  | U143: =IF(R143<>S143,VLOOKUP(A143,krzywa!L:N,2,1)) ->  | V143: =IF(U143<>FALSE,IF($C$2="GAS_BASE",(U143-A143+1)*koszyki!$A$14+J143,IF($C$2="OFFPEAK",M143*koszyki!$A$14+(N143)*24+J143,IF($C$2="BASE5",M143*koszyki!$A$14+J143,IF($C$2="PEAK7",(B143-A143+1)*koszyki!$A$14,M143*koszyki!$A$14))))/B143,1) -> 
R144: =VLOOKUP(A144,krzywa!L:N,3,1) ->  | S144: =VLOOKUP(B144,krzywa!L:N,3,1) ->  | T144: =IF('Kalkulator Depozytów'!$B$35=TRUE,1,(1+R144/100)*V144+(1+S144/100)*(1-V144)) ->  | U144: =IF(R144<>S144,VLOOKUP(A144,krzywa!L:N,2,1)) ->  | V144: =IF(U144<>FALSE,IF($C$2="GAS_BASE",(U144-A144+1)*koszyki!$A$14+J144,IF($C$2="OFFPEAK",M144*koszyki!$A$14+(N144)*24+J144,IF($C$2="BASE5",M144*koszyki!$A$14+J144,IF($C$2="PEAK7",(B144-A144+1)*koszyki!$A$14,M144*koszyki!$A$14))))/B144,1) -> 
R145: =VLOOKUP(A145,krzywa!L:N,3,1) ->  | S145: =VLOOKUP(B145,krzywa!L:N,3,1) ->  | T145: =IF('Kalkulator Depozytów'!$B$35=TRUE,1,(1+R145/100)*V145+(1+S145/100)*(1-V145)) ->  | U145: =IF(R145<>S145,VLOOKUP(A145,krzywa!L:N,2,1)) ->  | V145: =IF(U145<>FALSE,IF($C$2="GAS_BASE",(U145-A145+1)*koszyki!$A$14+J145,IF($C$2="OFFPEAK",M145*koszyki!$A$14+(N145)*24+J145,IF($C$2="BASE5",M145*koszyki!$A$14+J145,IF($C$2="PEAK7",(B145-A145+1)*koszyki!$A$14,M145*koszyki!$A$14))))/B145,1) -> 
R146: =VLOOKUP(A146,krzywa!L:N,3,1) ->  | S146: =VLOOKUP(B146,krzywa!L:N,3,1) ->  | T146: =IF('Kalkulator Depozytów'!$B$35=TRUE,1,(1+R146/100)*V146+(1+S146/100)*(1-V146)) ->  | U146: =IF(R146<>S146,VLOOKUP(A146,krzywa!L:N,2,1)) ->  | V146: =IF(U146<>FALSE,IF($C$2="GAS_BASE",(U146-A146+1)*koszyki!$A$14+J146,IF($C$2="OFFPEAK",M146*koszyki!$A$14+(N146)*24+J146,IF($C$2="BASE5",M146*koszyki!$A$14+J146,IF($C$2="PEAK7",(B146-A146+1)*koszyki!$A$14,M146*koszyki!$A$14))))/B146,1) -> 
R147: =VLOOKUP(A147,krzywa!L:N,3,1) ->  | S147: =VLOOKUP(B147,krzywa!L:N,3,1) ->  | T147: =IF('Kalkulator Depozytów'!$B$35=TRUE,1,(1+R147/100)*V147+(1+S147/100)*(1-V147)) ->  | U147: =IF(R147<>S147,VLOOKUP(A147,krzywa!L:N,2,1)) ->  | V147: =IF(U147<>FALSE,IF($C$2="GAS_BASE",(U147-A147+1)*koszyki!$A$14+J147,IF($C$2="OFFPEAK",M147*koszyki!$A$14+(N147)*24+J147,IF($C$2="BASE5",M147*koszyki!$A$14+J147,IF($C$2="PEAK7",(B147-A147+1)*koszyki!$A$14,M147*koszyki!$A$14))))/B147,1) -> 
R148: =VLOOKUP(A148,krzywa!L:N,3,1) ->  | S148: =VLOOKUP(B148,krzywa!L:N,3,1) ->  | T148: =IF('Kalkulator Depozytów'!$B$35=TRUE,1,(1+R148/100)*V148+(1+S148/100)*(1-V148)) ->  | U148: =IF(R148<>S148,VLOOKUP(A148,krzywa!L:N,2,1)) ->  | V148: =IF(U148<>FALSE,IF($C$2="GAS_BASE",(U148-A148+1)*koszyki!$A$14+J148,IF($C$2="OFFPEAK",M148*koszyki!$A$14+(N148)*24+J148,IF($C$2="BASE5",M148*koszyki!$A$14+J148,IF($C$2="PEAK7",(B148-A148+1)*koszyki!$A$14,M148*koszyki!$A$14))))/B148,1) -> 
R149: =VLOOKUP(A149,krzywa!L:N,3,1) ->  | S149: =VLOOKUP(B149,krzywa!L:N,3,1) ->  | T149: =IF('Kalkulator Depozytów'!$B$35=TRUE,1,(1+R149/100)*V149+(1+S149/100)*(1-V149)) ->  | U149: =IF(R149<>S149,VLOOKUP(A149,krzywa!L:N,2,1)) ->  | V149: =IF(U149<>FALSE,IF($C$2="GAS_BASE",(U149-A149+1)*koszyki!$A$14+J149,IF($C$2="OFFPEAK",M149*koszyki!$A$14+(N149)*24+J149,IF($C$2="BASE5",M149*koszyki!$A$14+J149,IF($C$2="PEAK7",(B149-A149+1)*koszyki!$A$14,M149*koszyki!$A$14))))/B149,1) -> 
R150: =VLOOKUP(A150,krzywa!L:N,3,1) ->  | S150: =VLOOKUP(B150,krzywa!L:N,3,1) ->  | T150: =IF('Kalkulator Depozytów'!$B$35=TRUE,1,(1+R150/100)*V150+(1+S150/100)*(1-V150)) ->  | U150: =IF(R150<>S150,VLOOKUP(A150,krzywa!L:N,2,1)) ->  | V150: =IF(U150<>FALSE,IF($C$2="GAS_BASE",(U150-A150+1)*koszyki!$A$14+J150,IF($C$2="OFFPEAK",M150*koszyki!$A$14+(N150)*24+J150,IF($C$2="BASE5",M150*koszyki!$A$14+J150,IF($C$2="PEAK7",(B150-A150+1)*koszyki!$A$14,M150*koszyki!$A$14))))/B150,1) -> 
R151: =VLOOKUP(A151,krzywa!L:N,3,1) ->  | S151: =VLOOKUP(B151,krzywa!L:N,3,1) ->  | T151: =IF('Kalkulator Depozytów'!$B$35=TRUE,1,(1+R151/100)*V151+(1+S151/100)*(1-V151)) ->  | U151: =IF(R151<>S151,VLOOKUP(A151,krzywa!L:N,2,1)) ->  | V151: =IF(U151<>FALSE,IF($C$2="GAS_BASE",(U151-A151+1)*koszyki!$A$14+J151,IF($C$2="OFFPEAK",M151*koszyki!$A$14+(N151)*24+J151,IF($C$2="BASE5",M151*koszyki!$A$14+J151,IF($C$2="PEAK7",(B151-A151+1)*koszyki!$A$14,M151*koszyki!$A$14))))/B151,1) -> 
R152: =VLOOKUP(A152,krzywa!L:N,3,1) ->  | S152: =VLOOKUP(B152,krzywa!L:N,3,1) ->  | T152: =IF('Kalkulator Depozytów'!$B$35=TRUE,1,(1+R152/100)*V152+(1+S152/100)*(1-V152)) ->  | U152: =IF(R152<>S152,VLOOKUP(A152,krzywa!L:N,2,1)) ->  | V152: =IF(U152<>FALSE,IF($C$2="GAS_BASE",(U152-A152+1)*koszyki!$A$14+J152,IF($C$2="OFFPEAK",M152*koszyki!$A$14+(N152)*24+J152,IF($C$2="BASE5",M152*koszyki!$A$14+J152,IF($C$2="PEAK7",(B152-A152+1)*koszyki!$A$14,M152*koszyki!$A$14))))/B152,1) -> 
R153: =VLOOKUP(A153,krzywa!L:N,3,1) ->  | S153: =VLOOKUP(B153,krzywa!L:N,3,1) ->  | T153: =IF('Kalkulator Depozytów'!$B$35=TRUE,1,(1+R153/100)*V153+(1+S153/100)*(1-V153)) ->  | U153: =IF(R153<>S153,VLOOKUP(A153,krzywa!L:N,2,1)) ->  | V153: =IF(U153<>FALSE,IF($C$2="GAS_BASE",(U153-A153+1)*koszyki!$A$14+J153,IF($C$2="OFFPEAK",M153*koszyki!$A$14+(N153)*24+J153,IF($C$2="BASE5",M153*koszyki!$A$14+J153,IF($C$2="PEAK7",(B153-A153+1)*koszyki!$A$14,M153*koszyki!$A$14))))/B153,1) -> 
R154: =VLOOKUP(A154,krzywa!L:N,3,1) ->  | S154: =VLOOKUP(B154,krzywa!L:N,3,1) ->  | T154: =IF('Kalkulator Depozytów'!$B$35=TRUE,1,(1+R154/100)*V154+(1+S154/100)*(1-V154)) ->  | U154: =IF(R154<>S154,VLOOKUP(A154,krzywa!L:N,2,1)) ->  | V154: =IF(U154<>FALSE,IF($C$2="GAS_BASE",(U154-A154+1)*koszyki!$A$14+J154,IF($C$2="OFFPEAK",M154*koszyki!$A$14+(N154)*24+J154,IF($C$2="BASE5",M154*koszyki!$A$14+J154,IF($C$2="PEAK7",(B154-A154+1)*koszyki!$A$14,M154*koszyki!$A$14))))/B154,1) -> 
R155: =VLOOKUP(A155,krzywa!L:N,3,1) ->  | S155: =VLOOKUP(B155,krzywa!L:N,3,1) ->  | T155: =IF('Kalkulator Depozytów'!$B$35=TRUE,1,(1+R155/100)*V155+(1+S155/100)*(1-V155)) ->  | U155: =IF(R155<>S155,VLOOKUP(A155,krzywa!L:N,2,1)) ->  | V155: =IF(U155<>FALSE,IF($C$2="GAS_BASE",(U155-A155+1)*koszyki!$A$14+J155,IF($C$2="OFFPEAK",M155*koszyki!$A$14+(N155)*24+J155,IF($C$2="BASE5",M155*koszyki!$A$14+J155,IF($C$2="PEAK7",(B155-A155+1)*koszyki!$A$14,M155*koszyki!$A$14))))/B155,1) -> 
R156: =VLOOKUP(A156,krzywa!L:N,3,1) ->  | S156: =VLOOKUP(B156,krzywa!L:N,3,1) ->  | T156: =IF('Kalkulator Depozytów'!$B$35=TRUE,1,(1+R156/100)*V156+(1+S156/100)*(1-V156)) ->  | U156: =IF(R156<>S156,VLOOKUP(A156,krzywa!L:N,2,1)) ->  | V156: =IF(U156<>FALSE,IF($C$2="GAS_BASE",(U156-A156+1)*koszyki!$A$14+J156,IF($C$2="OFFPEAK",M156*koszyki!$A$14+(N156)*24+J156,IF($C$2="BASE5",M156*koszyki!$A$14+J156,IF($C$2="PEAK7",(B156-A156+1)*koszyki!$A$14,M156*koszyki!$A$14))))/B156,1) -> 
R157: =VLOOKUP(A157,krzywa!L:N,3,1) ->  | S157: =VLOOKUP(B157,krzywa!L:N,3,1) ->  | T157: =IF('Kalkulator Depozytów'!$B$35=TRUE,1,(1+R157/100)*V157+(1+S157/100)*(1-V157)) ->  | U157: =IF(R157<>S157,VLOOKUP(A157,krzywa!L:N,2,1)) ->  | V157: =IF(U157<>FALSE,IF($C$2="GAS_BASE",(U157-A157+1)*koszyki!$A$14+J157,IF($C$2="OFFPEAK",M157*koszyki!$A$14+(N157)*24+J157,IF($C$2="BASE5",M157*koszyki!$A$14+J157,IF($C$2="PEAK7",(B157-A157+1)*koszyki!$A$14,M157*koszyki!$A$14))))/B157,1) -> 
R158: =VLOOKUP(A158,krzywa!L:N,3,1) ->  | S158: =VLOOKUP(B158,krzywa!L:N,3,1) ->  | T158: =IF('Kalkulator Depozytów'!$B$35=TRUE,1,(1+R158/100)*V158+(1+S158/100)*(1-V158)) ->  | U158: =IF(R158<>S158,VLOOKUP(A158,krzywa!L:N,2,1)) ->  | V158: =IF(U158<>FALSE,IF($C$2="GAS_BASE",(U158-A158+1)*koszyki!$A$14+J158,IF($C$2="OFFPEAK",M158*koszyki!$A$14+(N158)*24+J158,IF($C$2="BASE5",M158*koszyki!$A$14+J158,IF($C$2="PEAK7",(B158-A158+1)*koszyki!$A$14,M158*koszyki!$A$14))))/B158,1) -> 
R159: =VLOOKUP(A159,krzywa!L:N,3,1) ->  | S159: =VLOOKUP(B159,krzywa!L:N,3,1) ->  | T159: =IF('Kalkulator Depozytów'!$B$35=TRUE,1,(1+R159/100)*V159+(1+S159/100)*(1-V159)) ->  | U159: =IF(R159<>S159,VLOOKUP(A159,krzywa!L:N,2,1)) ->  | V159: =IF(U159<>FALSE,IF($C$2="GAS_BASE",(U159-A159+1)*koszyki!$A$14+J159,IF($C$2="OFFPEAK",M159*koszyki!$A$14+(N159)*24+J159,IF($C$2="BASE5",M159*koszyki!$A$14+J159,IF($C$2="PEAK7",(B159-A159+1)*koszyki!$A$14,M159*koszyki!$A$14))))/B159,1) -> 
R160: =VLOOKUP(A160,krzywa!L:N,3,1) ->  | S160: =VLOOKUP(B160,krzywa!L:N,3,1) ->  | T160: =IF('Kalkulator Depozytów'!$B$35=TRUE,1,(1+R160/100)*V160+(1+S160/100)*(1-V160)) ->  | U160: =IF(R160<>S160,VLOOKUP(A160,krzywa!L:N,2,1)) ->  | V160: =IF(U160<>FALSE,IF($C$2="GAS_BASE",(U160-A160+1)*koszyki!$A$14+J160,IF($C$2="OFFPEAK",M160*koszyki!$A$14+(N160)*24+J160,IF($C$2="BASE5",M160*koszyki!$A$14+J160,IF($C$2="PEAK7",(B160-A160+1)*koszyki!$A$14,M160*koszyki!$A$14))))/B160,1) -> 
R161: =VLOOKUP(A161,krzywa!L:N,3,1) ->  | S161: =VLOOKUP(B161,krzywa!L:N,3,1) ->  | T161: =IF('Kalkulator Depozytów'!$B$35=TRUE,1,(1+R161/100)*V161+(1+S161/100)*(1-V161)) ->  | U161: =IF(R161<>S161,VLOOKUP(A161,krzywa!L:N,2,1)) ->  | V161: =IF(U161<>FALSE,IF($C$2="GAS_BASE",(U161-A161+1)*koszyki!$A$14+J161,IF($C$2="OFFPEAK",M161*koszyki!$A$14+(N161)*24+J161,IF($C$2="BASE5",M161*koszyki!$A$14+J161,IF($C$2="PEAK7",(B161-A161+1)*koszyki!$A$14,M161*koszyki!$A$14))))/B161,1) -> 
R162: =VLOOKUP(A162,krzywa!L:N,3,1) ->  | S162: =VLOOKUP(B162,krzywa!L:N,3,1) ->  | T162: =IF('Kalkulator Depozytów'!$B$35=TRUE,1,(1+R162/100)*V162+(1+S162/100)*(1-V162)) ->  | U162: =IF(R162<>S162,VLOOKUP(A162,krzywa!L:N,2,1)) ->  | V162: =IF(U162<>FALSE,IF($C$2="GAS_BASE",(U162-A162+1)*koszyki!$A$14+J162,IF($C$2="OFFPEAK",M162*koszyki!$A$14+(N162)*24+J162,IF($C$2="BASE5",M162*koszyki!$A$14+J162,IF($C$2="PEAK7",(B162-A162+1)*koszyki!$A$14,M162*koszyki!$A$14))))/B162,1) -> 
R163: =VLOOKUP(A163,krzywa!L:N,3,1) ->  | S163: =VLOOKUP(B163,krzywa!L:N,3,1) ->  | T163: =IF('Kalkulator Depozytów'!$B$35=TRUE,1,(1+R163/100)*V163+(1+S163/100)*(1-V163)) ->  | U163: =IF(R163<>S163,VLOOKUP(A163,krzywa!L:N,2,1)) ->  | V163: =IF(U163<>FALSE,IF($C$2="GAS_BASE",(U163-A163+1)*koszyki!$A$14+J163,IF($C$2="OFFPEAK",M163*koszyki!$A$14+(N163)*24+J163,IF($C$2="BASE5",M163*koszyki!$A$14+J163,IF($C$2="PEAK7",(B163-A163+1)*koszyki!$A$14,M163*koszyki!$A$14))))/B163,1) -> 
R164: =VLOOKUP(A164,krzywa!L:N,3,1) ->  | S164: =VLOOKUP(B164,krzywa!L:N,3,1) ->  | T164: =IF('Kalkulator Depozytów'!$B$35=TRUE,1,(1+R164/100)*V164+(1+S164/100)*(1-V164)) ->  | U164: =IF(R164<>S164,VLOOKUP(A164,krzywa!L:N,2,1)) ->  | V164: =IF(U164<>FALSE,IF($C$2="GAS_BASE",(U164-A164+1)*koszyki!$A$14+J164,IF($C$2="OFFPEAK",M164*koszyki!$A$14+(N164)*24+J164,IF($C$2="BASE5",M164*koszyki!$A$14+J164,IF($C$2="PEAK7",(B164-A164+1)*koszyki!$A$14,M164*koszyki!$A$14))))/B164,1) -> 
R165: =VLOOKUP(A165,krzywa!L:N,3,1) ->  | S165: =VLOOKUP(B165,krzywa!L:N,3,1) ->  | T165: =IF('Kalkulator Depozytów'!$B$35=TRUE,1,(1+R165/100)*V165+(1+S165/100)*(1-V165)) ->  | U165: =IF(R165<>S165,VLOOKUP(A165,krzywa!L:N,2,1)) ->  | V165: =IF(U165<>FALSE,IF($C$2="GAS_BASE",(U165-A165+1)*koszyki!$A$14+J165,IF($C$2="OFFPEAK",M165*koszyki!$A$14+(N165)*24+J165,IF($C$2="BASE5",M165*koszyki!$A$14+J165,IF($C$2="PEAK7",(B165-A165+1)*koszyki!$A$14,M165*koszyki!$A$14))))/B165,1) -> 
R166: =VLOOKUP(A166,krzywa!L:N,3,1) ->  | S166: =VLOOKUP(B166,krzywa!L:N,3,1) ->  | T166: =IF('Kalkulator Depozytów'!$B$35=TRUE,1,(1+R166/100)*V166+(1+S166/100)*(1-V166)) ->  | U166: =IF(R166<>S166,VLOOKUP(A166,krzywa!L:N,2,1)) ->  | V166: =IF(U166<>FALSE,IF($C$2="GAS_BASE",(U166-A166+1)*koszyki!$A$14+J166,IF($C$2="OFFPEAK",M166*koszyki!$A$14+(N166)*24+J166,IF($C$2="BASE5",M166*koszyki!$A$14+J166,IF($C$2="PEAK7",(B166-A166+1)*koszyki!$A$14,M166*koszyki!$A$14))))/B166,1) -> 
R167: =VLOOKUP(A167,krzywa!L:N,3,1) ->  | S167: =VLOOKUP(B167,krzywa!L:N,3,1) ->  | T167: =IF('Kalkulator Depozytów'!$B$35=TRUE,1,(1+R167/100)*V167+(1+S167/100)*(1-V167)) ->  | U167: =IF(R167<>S167,VLOOKUP(A167,krzywa!L:N,2,1)) ->  | V167: =IF(U167<>FALSE,IF($C$2="GAS_BASE",(U167-A167+1)*koszyki!$A$14+J167,IF($C$2="OFFPEAK",M167*koszyki!$A$14+(N167)*24+J167,IF($C$2="BASE5",M167*koszyki!$A$14+J167,IF($C$2="PEAK7",(B167-A167+1)*koszyki!$A$14,M167*koszyki!$A$14))))/B167,1) -> 
R168: =VLOOKUP(A168,krzywa!L:N,3,1) ->  | S168: =VLOOKUP(B168,krzywa!L:N,3,1) ->  | T168: =IF('Kalkulator Depozytów'!$B$35=TRUE,1,(1+R168/100)*V168+(1+S168/100)*(1-V168)) ->  | U168: =IF(R168<>S168,VLOOKUP(A168,krzywa!L:N,2,1)) ->  | V168: =IF(U168<>FALSE,IF($C$2="GAS_BASE",(U168-A168+1)*koszyki!$A$14+J168,IF($C$2="OFFPEAK",M168*koszyki!$A$14+(N168)*24+J168,IF($C$2="BASE5",M168*koszyki!$A$14+J168,IF($C$2="PEAK7",(B168-A168+1)*koszyki!$A$14,M168*koszyki!$A$14))))/B168,1) -> 
R169: =VLOOKUP(A169,krzywa!L:N,3,1) ->  | S169: =VLOOKUP(B169,krzywa!L:N,3,1) ->  | T169: =IF('Kalkulator Depozytów'!$B$35=TRUE,1,(1+R169/100)*V169+(1+S169/100)*(1-V169)) ->  | U169: =IF(R169<>S169,VLOOKUP(A169,krzywa!L:N,2,1)) ->  | V169: =IF(U169<>FALSE,IF($C$2="GAS_BASE",(U169-A169+1)*koszyki!$A$14+J169,IF($C$2="OFFPEAK",M169*koszyki!$A$14+(N169)*24+J169,IF($C$2="BASE5",M169*koszyki!$A$14+J169,IF($C$2="PEAK7",(B169-A169+1)*koszyki!$A$14,M169*koszyki!$A$14))))/B169,1) -> 
R170: =VLOOKUP(A170,krzywa!L:N,3,1) ->  | S170: =VLOOKUP(B170,krzywa!L:N,3,1) ->  | T170: =IF('Kalkulator Depozytów'!$B$35=TRUE,1,(1+R170/100)*V170+(1+S170/100)*(1-V170)) ->  | U170: =IF(R170<>S170,VLOOKUP(A170,krzywa!L:N,2,1)) ->  | V170: =IF(U170<>FALSE,IF($C$2="GAS_BASE",(U170-A170+1)*koszyki!$A$14+J170,IF($C$2="OFFPEAK",M170*koszyki!$A$14+(N170)*24+J170,IF($C$2="BASE5",M170*koszyki!$A$14+J170,IF($C$2="PEAK7",(B170-A170+1)*koszyki!$A$14,M170*koszyki!$A$14))))/B170,1) -> 
R171: =VLOOKUP(A171,krzywa!L:N,3,1) ->  | S171: =VLOOKUP(B171,krzywa!L:N,3,1) ->  | T171: =IF('Kalkulator Depozytów'!$B$35=TRUE,1,(1+R171/100)*V171+(1+S171/100)*(1-V171)) ->  | U171: =IF(R171<>S171,VLOOKUP(A171,krzywa!L:N,2,1)) ->  | V171: =IF(U171<>FALSE,IF($C$2="GAS_BASE",(U171-A171+1)*koszyki!$A$14+J171,IF($C$2="OFFPEAK",M171*koszyki!$A$14+(N171)*24+J171,IF($C$2="BASE5",M171*koszyki!$A$14+J171,IF($C$2="PEAK7",(B171-A171+1)*koszyki!$A$14,M171*koszyki!$A$14))))/B171,1) -> 
R172: =VLOOKUP(A172,krzywa!L:N,3,1) ->  | S172: =VLOOKUP(B172,krzywa!L:N,3,1) ->  | T172: =IF('Kalkulator Depozytów'!$B$35=TRUE,1,(1+R172/100)*V172+(1+S172/100)*(1-V172)) ->  | U172: =IF(R172<>S172,VLOOKUP(A172,krzywa!L:N,2,1)) ->  | V172: =IF(U172<>FALSE,IF($C$2="GAS_BASE",(U172-A172+1)*koszyki!$A$14+J172,IF($C$2="OFFPEAK",M172*koszyki!$A$14+(N172)*24+J172,IF($C$2="BASE5",M172*koszyki!$A$14+J172,IF($C$2="PEAK7",(B172-A172+1)*koszyki!$A$14,M172*koszyki!$A$14))))/B172,1) -> 
R173: =VLOOKUP(A173,krzywa!L:N,3,1) ->  | S173: =VLOOKUP(B173,krzywa!L:N,3,1) ->  | T173: =IF('Kalkulator Depozytów'!$B$35=TRUE,1,(1+R173/100)*V173+(1+S173/100)*(1-V173)) ->  | U173: =IF(R173<>S173,VLOOKUP(A173,krzywa!L:N,2,1)) ->  | V173: =IF(U173<>FALSE,IF($C$2="GAS_BASE",(U173-A173+1)*koszyki!$A$14+J173,IF($C$2="OFFPEAK",M173*koszyki!$A$14+(N173)*24+J173,IF($C$2="BASE5",M173*koszyki!$A$14+J173,IF($C$2="PEAK7",(B173-A173+1)*koszyki!$A$14,M173*koszyki!$A$14))))/B173,1) -> 
R174: =VLOOKUP(A174,krzywa!L:N,3,1) ->  | S174: =VLOOKUP(B174,krzywa!L:N,3,1) ->  | T174: =IF('Kalkulator Depozytów'!$B$35=TRUE,1,(1+R174/100)*V174+(1+S174/100)*(1-V174)) ->  | U174: =IF(R174<>S174,VLOOKUP(A174,krzywa!L:N,2,1)) ->  | V174: =IF(U174<>FALSE,IF($C$2="GAS_BASE",(U174-A174+1)*koszyki!$A$14+J174,IF($C$2="OFFPEAK",M174*koszyki!$A$14+(N174)*24+J174,IF($C$2="BASE5",M174*koszyki!$A$14+J174,IF($C$2="PEAK7",(B174-A174+1)*koszyki!$A$14,M174*koszyki!$A$14))))/B174,1) -> 
R175: =VLOOKUP(A175,krzywa!L:N,3,1) ->  | S175: =VLOOKUP(B175,krzywa!L:N,3,1) ->  | T175: =IF('Kalkulator Depozytów'!$B$35=TRUE,1,(1+R175/100)*V175+(1+S175/100)*(1-V175)) ->  | U175: =IF(R175<>S175,VLOOKUP(A175,krzywa!L:N,2,1)) ->  | V175: =IF(U175<>FALSE,IF($C$2="GAS_BASE",(U175-A175+1)*koszyki!$A$14+J175,IF($C$2="OFFPEAK",M175*koszyki!$A$14+(N175)*24+J175,IF($C$2="BASE5",M175*koszyki!$A$14+J175,IF($C$2="PEAK7",(B175-A175+1)*koszyki!$A$14,M175*koszyki!$A$14))))/B175,1) -> 
R176: =VLOOKUP(A176,krzywa!L:N,3,1) ->  | S176: =VLOOKUP(B176,krzywa!L:N,3,1) ->  | T176: =IF('Kalkulator Depozytów'!$B$35=TRUE,1,(1+R176/100)*V176+(1+S176/100)*(1-V176)) ->  | U176: =IF(R176<>S176,VLOOKUP(A176,krzywa!L:N,2,1)) ->  | V176: =IF(U176<>FALSE,IF($C$2="GAS_BASE",(U176-A176+1)*koszyki!$A$14+J176,IF($C$2="OFFPEAK",M176*koszyki!$A$14+(N176)*24+J176,IF($C$2="BASE5",M176*koszyki!$A$14+J176,IF($C$2="PEAK7",(B176-A176+1)*koszyki!$A$14,M176*koszyki!$A$14))))/B176,1) -> 
R177: =VLOOKUP(A177,krzywa!L:N,3,1) ->  | S177: =VLOOKUP(B177,krzywa!L:N,3,1) ->  | T177: =IF('Kalkulator Depozytów'!$B$35=TRUE,1,(1+R177/100)*V177+(1+S177/100)*(1-V177)) ->  | U177: =IF(R177<>S177,VLOOKUP(A177,krzywa!L:N,2,1)) ->  | V177: =IF(U177<>FALSE,IF($C$2="GAS_BASE",(U177-A177+1)*koszyki!$A$14+J177,IF($C$2="OFFPEAK",M177*koszyki!$A$14+(N177)*24+J177,IF($C$2="BASE5",M177*koszyki!$A$14+J177,IF($C$2="PEAK7",(B177-A177+1)*koszyki!$A$14,M177*koszyki!$A$14))))/B177,1) -> 
R178: =VLOOKUP(A178,krzywa!L:N,3,1) ->  | S178: =VLOOKUP(B178,krzywa!L:N,3,1) ->  | T178: =IF('Kalkulator Depozytów'!$B$35=TRUE,1,(1+R178/100)*V178+(1+S178/100)*(1-V178)) ->  | U178: =IF(R178<>S178,VLOOKUP(A178,krzywa!L:N,2,1)) ->  | V178: =IF(U178<>FALSE,IF($C$2="GAS_BASE",(U178-A178+1)*koszyki!$A$14+J178,IF($C$2="OFFPEAK",M178*koszyki!$A$14+(N178)*24+J178,IF($C$2="BASE5",M178*koszyki!$A$14+J178,IF($C$2="PEAK7",(B178-A178+1)*koszyki!$A$14,M178*koszyki!$A$14))))/B178,1) -> 
R179: =VLOOKUP(A179,krzywa!L:N,3,1) ->  | S179: =VLOOKUP(B179,krzywa!L:N,3,1) ->  | T179: =IF('Kalkulator Depozytów'!$B$35=TRUE,1,(1+R179/100)*V179+(1+S179/100)*(1-V179)) ->  | U179: =IF(R179<>S179,VLOOKUP(A179,krzywa!L:N,2,1)) ->  | V179: =IF(U179<>FALSE,IF($C$2="GAS_BASE",(U179-A179+1)*koszyki!$A$14+J179,IF($C$2="OFFPEAK",M179*koszyki!$A$14+(N179)*24+J179,IF($C$2="BASE5",M179*koszyki!$A$14+J179,IF($C$2="PEAK7",(B179-A179+1)*koszyki!$A$14,M179*koszyki!$A$14))))/B179,1) -> 
R180: =VLOOKUP(A180,krzywa!L:N,3,1) ->  | S180: =VLOOKUP(B180,krzywa!L:N,3,1) ->  | T180: =IF('Kalkulator Depozytów'!$B$35=TRUE,1,(1+R180/100)*V180+(1+S180/100)*(1-V180)) ->  | U180: =IF(R180<>S180,VLOOKUP(A180,krzywa!L:N,2,1)) ->  | V180: =IF(U180<>FALSE,IF($C$2="GAS_BASE",(U180-A180+1)*koszyki!$A$14+J180,IF($C$2="OFFPEAK",M180*koszyki!$A$14+(N180)*24+J180,IF($C$2="BASE5",M180*koszyki!$A$14+J180,IF($C$2="PEAK7",(B180-A180+1)*koszyki!$A$14,M180*koszyki!$A$14))))/B180,1) -> 
R181: =VLOOKUP(A181,krzywa!L:N,3,1) ->  | S181: =VLOOKUP(B181,krzywa!L:N,3,1) ->  | T181: =IF('Kalkulator Depozytów'!$B$35=TRUE,1,(1+R181/100)*V181+(1+S181/100)*(1-V181)) ->  | U181: =IF(R181<>S181,VLOOKUP(A181,krzywa!L:N,2,1)) ->  | V181: =IF(U181<>FALSE,IF($C$2="GAS_BASE",(U181-A181+1)*koszyki!$A$14+J181,IF($C$2="OFFPEAK",M181*koszyki!$A$14+(N181)*24+J181,IF($C$2="BASE5",M181*koszyki!$A$14+J181,IF($C$2="PEAK7",(B181-A181+1)*koszyki!$A$14,M181*koszyki!$A$14))))/B181,1) -> 
R182: =VLOOKUP(A182,krzywa!L:N,3,1) ->  | S182: =VLOOKUP(B182,krzywa!L:N,3,1) ->  | T182: =IF('Kalkulator Depozytów'!$B$35=TRUE,1,(1+R182/100)*V182+(1+S182/100)*(1-V182)) ->  | U182: =IF(R182<>S182,VLOOKUP(A182,krzywa!L:N,2,1)) ->  | V182: =IF(U182<>FALSE,IF($C$2="GAS_BASE",(U182-A182+1)*koszyki!$A$14+J182,IF($C$2="OFFPEAK",M182*koszyki!$A$14+(N182)*24+J182,IF($C$2="BASE5",M182*koszyki!$A$14+J182,IF($C$2="PEAK7",(B182-A182+1)*koszyki!$A$14,M182*koszyki!$A$14))))/B182,1) -> 
R183: =VLOOKUP(A183,krzywa!L:N,3,1) ->  | S183: =VLOOKUP(B183,krzywa!L:N,3,1) ->  | T183: =IF('Kalkulator Depozytów'!$B$35=TRUE,1,(1+R183/100)*V183+(1+S183/100)*(1-V183)) ->  | U183: =IF(R183<>S183,VLOOKUP(A183,krzywa!L:N,2,1)) ->  | V183: =IF(U183<>FALSE,IF($C$2="GAS_BASE",(U183-A183+1)*koszyki!$A$14+J183,IF($C$2="OFFPEAK",M183*koszyki!$A$14+(N183)*24+J183,IF($C$2="BASE5",M183*koszyki!$A$14+J183,IF($C$2="PEAK7",(B183-A183+1)*koszyki!$A$14,M183*koszyki!$A$14))))/B183,1) -> 
R184: =VLOOKUP(A184,krzywa!L:N,3,1) ->  | S184: =VLOOKUP(B184,krzywa!L:N,3,1) ->  | T184: =IF('Kalkulator Depozytów'!$B$35=TRUE,1,(1+R184/100)*V184+(1+S184/100)*(1-V184)) ->  | U184: =IF(R184<>S184,VLOOKUP(A184,krzywa!L:N,2,1)) ->  | V184: =IF(U184<>FALSE,IF($C$2="GAS_BASE",(U184-A184+1)*koszyki!$A$14+J184,IF($C$2="OFFPEAK",M184*koszyki!$A$14+(N184)*24+J184,IF($C$2="BASE5",M184*koszyki!$A$14+J184,IF($C$2="PEAK7",(B184-A184+1)*koszyki!$A$14,M184*koszyki!$A$14))))/B184,1) -> 
R185: =VLOOKUP(A185,krzywa!L:N,3,1) ->  | S185: =VLOOKUP(B185,krzywa!L:N,3,1) ->  | T185: =IF('Kalkulator Depozytów'!$B$35=TRUE,1,(1+R185/100)*V185+(1+S185/100)*(1-V185)) ->  | U185: =IF(R185<>S185,VLOOKUP(A185,krzywa!L:N,2,1)) ->  | V185: =IF(U185<>FALSE,IF($C$2="GAS_BASE",(U185-A185+1)*koszyki!$A$14+J185,IF($C$2="OFFPEAK",M185*koszyki!$A$14+(N185)*24+J185,IF($C$2="BASE5",M185*koszyki!$A$14+J185,IF($C$2="PEAK7",(B185-A185+1)*koszyki!$A$14,M185*koszyki!$A$14))))/B185,1) -> 
R186: =VLOOKUP(A186,krzywa!L:N,3,1) ->  | S186: =VLOOKUP(B186,krzywa!L:N,3,1) ->  | T186: =IF('Kalkulator Depozytów'!$B$35=TRUE,1,(1+R186/100)*V186+(1+S186/100)*(1-V186)) ->  | U186: =IF(R186<>S186,VLOOKUP(A186,krzywa!L:N,2,1)) ->  | V186: =IF(U186<>FALSE,IF($C$2="GAS_BASE",(U186-A186+1)*koszyki!$A$14+J186,IF($C$2="OFFPEAK",M186*koszyki!$A$14+(N186)*24+J186,IF($C$2="BASE5",M186*koszyki!$A$14+J186,IF($C$2="PEAK7",(B186-A186+1)*koszyki!$A$14,M186*koszyki!$A$14))))/B186,1) -> 
R187: =VLOOKUP(A187,krzywa!L:N,3,1) ->  | S187: =VLOOKUP(B187,krzywa!L:N,3,1) ->  | T187: =IF('Kalkulator Depozytów'!$B$35=TRUE,1,(1+R187/100)*V187+(1+S187/100)*(1-V187)) ->  | U187: =IF(R187<>S187,VLOOKUP(A187,krzywa!L:N,2,1)) ->  | V187: =IF(U187<>FALSE,IF($C$2="GAS_BASE",(U187-A187+1)*koszyki!$A$14+J187,IF($C$2="OFFPEAK",M187*koszyki!$A$14+(N187)*24+J187,IF($C$2="BASE5",M187*koszyki!$A$14+J187,IF($C$2="PEAK7",(B187-A187+1)*koszyki!$A$14,M187*koszyki!$A$14))))/B187,1) -> 
R188: =VLOOKUP(A188,krzywa!L:N,3,1) ->  | S188: =VLOOKUP(B188,krzywa!L:N,3,1) ->  | T188: =IF('Kalkulator Depozytów'!$B$35=TRUE,1,(1+R188/100)*V188+(1+S188/100)*(1-V188)) ->  | U188: =IF(R188<>S188,VLOOKUP(A188,krzywa!L:N,2,1)) ->  | V188: =IF(U188<>FALSE,IF($C$2="GAS_BASE",(U188-A188+1)*koszyki!$A$14+J188,IF($C$2="OFFPEAK",M188*koszyki!$A$14+(N188)*24+J188,IF($C$2="BASE5",M188*koszyki!$A$14+J188,IF($C$2="PEAK7",(B188-A188+1)*koszyki!$A$14,M188*koszyki!$A$14))))/B188,1) -> 
R189: =VLOOKUP(A189,krzywa!L:N,3,1) ->  | S189: =VLOOKUP(B189,krzywa!L:N,3,1) ->  | T189: =IF('Kalkulator Depozytów'!$B$35=TRUE,1,(1+R189/100)*V189+(1+S189/100)*(1-V189)) ->  | U189: =IF(R189<>S189,VLOOKUP(A189,krzywa!L:N,2,1)) ->  | V189: =IF(U189<>FALSE,IF($C$2="GAS_BASE",(U189-A189+1)*koszyki!$A$14+J189,IF($C$2="OFFPEAK",M189*koszyki!$A$14+(N189)*24+J189,IF($C$2="BASE5",M189*koszyki!$A$14+J189,IF($C$2="PEAK7",(B189-A189+1)*koszyki!$A$14,M189*koszyki!$A$14))))/B189,1) -> 
R190: =VLOOKUP(A190,krzywa!L:N,3,1) ->  | S190: =VLOOKUP(B190,krzywa!L:N,3,1) ->  | T190: =IF('Kalkulator Depozytów'!$B$35=TRUE,1,(1+R190/100)*V190+(1+S190/100)*(1-V190)) ->  | U190: =IF(R190<>S190,VLOOKUP(A190,krzywa!L:N,2,1)) ->  | V190: =IF(U190<>FALSE,IF($C$2="GAS_BASE",(U190-A190+1)*koszyki!$A$14+J190,IF($C$2="OFFPEAK",M190*koszyki!$A$14+(N190)*24+J190,IF($C$2="BASE5",M190*koszyki!$A$14+J190,IF($C$2="PEAK7",(B190-A190+1)*koszyki!$A$14,M190*koszyki!$A$14))))/B190,1) -> 
R191: =VLOOKUP(A191,krzywa!L:N,3,1) ->  | S191: =VLOOKUP(B191,krzywa!L:N,3,1) ->  | T191: =IF('Kalkulator Depozytów'!$B$35=TRUE,1,(1+R191/100)*V191+(1+S191/100)*(1-V191)) ->  | U191: =IF(R191<>S191,VLOOKUP(A191,krzywa!L:N,2,1)) ->  | V191: =IF(U191<>FALSE,IF($C$2="GAS_BASE",(U191-A191+1)*koszyki!$A$14+J191,IF($C$2="OFFPEAK",M191*koszyki!$A$14+(N191)*24+J191,IF($C$2="BASE5",M191*koszyki!$A$14+J191,IF($C$2="PEAK7",(B191-A191+1)*koszyki!$A$14,M191*koszyki!$A$14))))/B191,1) -> 
R192: =VLOOKUP(A192,krzywa!L:N,3,1) ->  | S192: =VLOOKUP(B192,krzywa!L:N,3,1) ->  | T192: =IF('Kalkulator Depozytów'!$B$35=TRUE,1,(1+R192/100)*V192+(1+S192/100)*(1-V192)) ->  | U192: =IF(R192<>S192,VLOOKUP(A192,krzywa!L:N,2,1)) ->  | V192: =IF(U192<>FALSE,IF($C$2="GAS_BASE",(U192-A192+1)*koszyki!$A$14+J192,IF($C$2="OFFPEAK",M192*koszyki!$A$14+(N192)*24+J192,IF($C$2="BASE5",M192*koszyki!$A$14+J192,IF($C$2="PEAK7",(B192-A192+1)*koszyki!$A$14,M192*koszyki!$A$14))))/B192,1) -> 
R193: =VLOOKUP(A193,krzywa!L:N,3,1) ->  | S193: =VLOOKUP(B193,krzywa!L:N,3,1) ->  | T193: =IF('Kalkulator Depozytów'!$B$35=TRUE,1,(1+R193/100)*V193+(1+S193/100)*(1-V193)) ->  | U193: =IF(R193<>S193,VLOOKUP(A193,krzywa!L:N,2,1)) ->  | V193: =IF(U193<>FALSE,IF($C$2="GAS_BASE",(U193-A193+1)*koszyki!$A$14+J193,IF($C$2="OFFPEAK",M193*koszyki!$A$14+(N193)*24+J193,IF($C$2="BASE5",M193*koszyki!$A$14+J193,IF($C$2="PEAK7",(B193-A193+1)*koszyki!$A$14,M193*koszyki!$A$14))))/B193,1) -> 
R194: =VLOOKUP(A194,krzywa!L:N,3,1) ->  | S194: =VLOOKUP(B194,krzywa!L:N,3,1) ->  | T194: =IF('Kalkulator Depozytów'!$B$35=TRUE,1,(1+R194/100)*V194+(1+S194/100)*(1-V194)) ->  | U194: =IF(R194<>S194,VLOOKUP(A194,krzywa!L:N,2,1)) ->  | V194: =IF(U194<>FALSE,IF($C$2="GAS_BASE",(U194-A194+1)*koszyki!$A$14+J194,IF($C$2="OFFPEAK",M194*koszyki!$A$14+(N194)*24+J194,IF($C$2="BASE5",M194*koszyki!$A$14+J194,IF($C$2="PEAK7",(B194-A194+1)*koszyki!$A$14,M194*koszyki!$A$14))))/B194,1) -> 
R195: =VLOOKUP(A195,krzywa!L:N,3,1) ->  | S195: =VLOOKUP(B195,krzywa!L:N,3,1) ->  | T195: =IF('Kalkulator Depozytów'!$B$35=TRUE,1,(1+R195/100)*V195+(1+S195/100)*(1-V195)) ->  | U195: =IF(R195<>S195,VLOOKUP(A195,krzywa!L:N,2,1)) ->  | V195: =IF(U195<>FALSE,IF($C$2="GAS_BASE",(U195-A195+1)*koszyki!$A$14+J195,IF($C$2="OFFPEAK",M195*koszyki!$A$14+(N195)*24+J195,IF($C$2="BASE5",M195*koszyki!$A$14+J195,IF($C$2="PEAK7",(B195-A195+1)*koszyki!$A$14,M195*koszyki!$A$14))))/B195,1) -> 
R196: =VLOOKUP(A196,krzywa!L:N,3,1) ->  | S196: =VLOOKUP(B196,krzywa!L:N,3,1) ->  | T196: =IF('Kalkulator Depozytów'!$B$35=TRUE,1,(1+R196/100)*V196+(1+S196/100)*(1-V196)) ->  | U196: =IF(R196<>S196,VLOOKUP(A196,krzywa!L:N,2,1)) ->  | V196: =IF(U196<>FALSE,IF($C$2="GAS_BASE",(U196-A196+1)*koszyki!$A$14+J196,IF($C$2="OFFPEAK",M196*koszyki!$A$14+(N196)*24+J196,IF($C$2="BASE5",M196*koszyki!$A$14+J196,IF($C$2="PEAK7",(B196-A196+1)*koszyki!$A$14,M196*koszyki!$A$14))))/B196,1) -> 
R197: =VLOOKUP(A197,krzywa!L:N,3,1) ->  | S197: =VLOOKUP(B197,krzywa!L:N,3,1) ->  | T197: =IF('Kalkulator Depozytów'!$B$35=TRUE,1,(1+R197/100)*V197+(1+S197/100)*(1-V197)) ->  | U197: =IF(R197<>S197,VLOOKUP(A197,krzywa!L:N,2,1)) ->  | V197: =IF(U197<>FALSE,IF($C$2="GAS_BASE",(U197-A197+1)*koszyki!$A$14+J197,IF($C$2="OFFPEAK",M197*koszyki!$A$14+(N197)*24+J197,IF($C$2="BASE5",M197*koszyki!$A$14+J197,IF($C$2="PEAK7",(B197-A197+1)*koszyki!$A$14,M197*koszyki!$A$14))))/B197,1) -> 
R198: =VLOOKUP(A198,krzywa!L:N,3,1) ->  | S198: =VLOOKUP(B198,krzywa!L:N,3,1) ->  | T198: =IF('Kalkulator Depozytów'!$B$35=TRUE,1,(1+R198/100)*V198+(1+S198/100)*(1-V198)) ->  | U198: =IF(R198<>S198,VLOOKUP(A198,krzywa!L:N,2,1)) ->  | V198: =IF(U198<>FALSE,IF($C$2="GAS_BASE",(U198-A198+1)*koszyki!$A$14+J198,IF($C$2="OFFPEAK",M198*koszyki!$A$14+(N198)*24+J198,IF($C$2="BASE5",M198*koszyki!$A$14+J198,IF($C$2="PEAK7",(B198-A198+1)*koszyki!$A$14,M198*koszyki!$A$14))))/B198,1) -> 
R199: =VLOOKUP(A199,krzywa!L:N,3,1) ->  | S199: =VLOOKUP(B199,krzywa!L:N,3,1) ->  | T199: =IF('Kalkulator Depozytów'!$B$35=TRUE,1,(1+R199/100)*V199+(1+S199/100)*(1-V199)) ->  | U199: =IF(R199<>S199,VLOOKUP(A199,krzywa!L:N,2,1)) ->  | V199: =IF(U199<>FALSE,IF($C$2="GAS_BASE",(U199-A199+1)*koszyki!$A$14+J199,IF($C$2="OFFPEAK",M199*koszyki!$A$14+(N199)*24+J199,IF($C$2="BASE5",M199*koszyki!$A$14+J199,IF($C$2="PEAK7",(B199-A199+1)*koszyki!$A$14,M199*koszyki!$A$14))))/B199,1) -> 
R200: =VLOOKUP(A200,krzywa!L:N,3,1) ->  | S200: =VLOOKUP(B200,krzywa!L:N,3,1) ->  | T200: =IF('Kalkulator Depozytów'!$B$35=TRUE,1,(1+R200/100)*V200+(1+S200/100)*(1-V200)) ->  | U200: =IF(R200<>S200,VLOOKUP(A200,krzywa!L:N,2,1)) ->  | V200: =IF(U200<>FALSE,IF($C$2="GAS_BASE",(U200-A200+1)*koszyki!$A$14+J200,IF($C$2="OFFPEAK",M200*koszyki!$A$14+(N200)*24+J200,IF($C$2="BASE5",M200*koszyki!$A$14+J200,IF($C$2="PEAK7",(B200-A200+1)*koszyki!$A$14,M200*koszyki!$A$14))))/B200,1) -> 
... 68 more rows

Sheet koszyki (hidden)
A1: wprowadź datę | D1: koszyki roczne | H1: koszyki kwartalne | L1: koszyki miesięczne | P1: koszyki tygodniowe | T1: koszyki dzienne | X1: koszyki sezonowe
A2: ='Kalkulator Depozytów'!F12 -> 00:00:00 | C2: =A2+2 -> 1900-01-02 | D2: =IF(F2<='raport RTT'!$F$9,DATE(YEAR(C2)+1,1,1),0) -> 1901-01-01 | E2: =IF(D2=0,0,DATE(YEAR(D2)+1,1,1)-1) -> 1901-12-31 | F2: 1 | G2: =IF(OR(AND(MONTH(A2)=12,DAY(A2)=30),AND(MONTH(A2)=12,DAY(A2)=31)),MONTH(A2),MONTH(C2)) -> 1 | H2: =IF(J2<='raport RTT'!$F$7+1,IF(OR(G2=12,G2<10),DATE(YEAR(A2),G2+G4+1,1),IF(G2=10,DATE(YEAR(A2),G2+G4+1+1,1),DATE(YEAR(A2),G2+G4,1))),0) -> 1900-04-01 | I2: =IF(H3=0,0,DATE(YEAR(H2),MONTH(H2)+3,1)-1) -> 1900-06-30 | J2: 1 | L2: =IF(N2<='raport RTT'!$F$6+1,DATE(YEAR(C2),MONTH(C2)+1,1),0) -> 1900-02-01 | M2: =IF(L3=0,0,DATE(YEAR(L2),MONTH(L2)+1,1)-1) -> 60 | N2: 1 | O2: =DAY(A2) -> 0 | P2: =IF(R2<='raport RTT'!F5,IF(OR(O3=5,O3=6,O3=7),A2+3*7-O3+1,A2+2*7-O3+1),0) -> 1900-01-16 | Q2: =IF(P3=0,0,P2+6) -> 1900-01-22 | R2: 1 | S2: =DAY(A2) -> 0 | T2: =A2+1 -> 1900-01-01 | U2: =T2 -> 1900-01-01 | W2: =IF(OR(AND(MONTH(A2)=12,DAY(A2)=30),AND(MONTH(A2)=12,DAY(A2)=31)),MONTH(A2),MONTH(C2)) -> 1 | X2: =IF(Z2<='raport RTT'!$F$8,IF(W2<=3,DATE(YEAR(A2),10,1),IF(W2>=10,DATE(YEAR(A2)+1,10,1),DATE(YEAR(A2)+1,4,1))),0) -> 1900-10-01 | Y2: =IF(X3=0,0,DATE(YEAR(X2),MONTH(X2)+6,1)-1) -> 1901-03-31 | Z2: 1
A3: =A2+1 -> 1900-01-01 | D3: =IF(F3<='raport RTT'!$F$9,DATE(YEAR(D2)+1,1,1),0) -> 1902-01-01 | E3: =IF(D3=0,0,DATE(YEAR(D3)+1,1,1)-1) -> 1902-12-31 | F3: 2 | G3: =MOD(G2,3) -> 1 | H3: =IF(J3<='raport RTT'!$F$7+1,DATE(YEAR(H2),MONTH(H2)+3,1),0) -> 1900-07-01 | I3: =IF(H4=0,0,DATE(YEAR(H3),MONTH(H3)+3,1)-1) -> 1900-09-30 | J3: 2 | L3: =IF(N3<='raport RTT'!$F$6+1,DATE(YEAR(L2),MONTH(L2)+1,1),0) -> 1900-03-01 | M3: =IF(L4=0,0,DATE(YEAR(L3),MONTH(L3)+1,1)-1) -> 1900-03-31 | N3: 2 | O3: =WEEKDAY(A2)-1 -> 6 | P3: =IF($P$12="TAK",IF(R3<'raport RTT'!$F$5,P2+7,0),IF(R3<='raport RTT'!$F$5,P2+7,0)) -> 1900-01-23 | Q3: =IF(P4=0,0,P3+6) -> 1900-01-29 | R3: 2 | T3: =IF(T2+1<$P$2,IF(T2=0,0,T2+1),0) -> 1900-01-02 | U3: =T3 -> 1900-01-02 | W3: =MOD(W2,6) -> 1 | X3: =IF(Z3<='raport RTT'!$F$8,DATE(YEAR(X2),MONTH(X2)+6,1),0) -> 1901-04-01 | Y3: =IF(X4=0,0,DATE(YEAR(X3),MONTH(X3)+6,1)-1) -> 1901-09-30 | Z3: 2
A4: Typ kontraktu | D4: =IF(F4<='raport RTT'!$F$9,DATE(YEAR(D3)+1,1,1),0) -> 1903-01-01 | E4: 1903-12-31 | F4: 3 | G4: =IF(AND(G2<9,G3<>0),3-G3,G3) -> 2 | H4: =IF(J4<='raport RTT'!$F$7+1,DATE(YEAR(H3),MONTH(H3)+3,1),0) -> 1900-10-01 | I4: 1900-12-31 | J4: 3 | L4: =IF(N4<='raport RTT'!$F$6+1,DATE(YEAR(L3),MONTH(L3)+1,1),0) -> 1900-04-01 | M4: 1900-04-30 | N4: 3 | O4: =7-O3 -> 1 | P4: =IF($P$12="TAK",IF(R4<'raport RTT'!$F$5,P3+7,0),IF(R4<='raport RTT'!$F$5,P3+7,0)) -> 1900-01-30 | Q4: 00:00:00 | R4: 3 | S4: ile wziąć? | T4: =IF(T3+1<$P$2,IF(T3=0,0,T3+1),0) -> 1900-01-03 | U4: 1900-01-03 | W4: =IF(AND(W2<9,W3<>0),6-W3,W3) -> 5 | X4: =IF(Z4<='raport RTT'!$F$8,DATE(YEAR(X3),MONTH(X3)+6,1),0) -> 1901-10-01 | Y4: 1902-03-31 | Z4: 3
A5: GAS_BASE | B5: 24 | D5: =IF(F5<='raport RTT'!$F$9,DATE(YEAR(D4)+1,1,1),0) -> 1904-01-01 | E5: =IF(D5=0,0,DATE(YEAR(D5)+1,1,1)-1) -> 1904-12-31 | F5: 4 | G5: =DATE(YEAR(H5),MONTH(H5)+3,1)-A2 -> 457 | H5: =IF(J5<='raport RTT'!$F$7+1,DATE(YEAR(H4),MONTH(H4)+3,1),0) -> 1901-01-01 | I5: 1901-03-31 | J5: 4 | L5: =IF(N5<='raport RTT'!$F$6+1,DATE(YEAR(L4),MONTH(L4)+1,1),0) -> 1900-05-01 | M5: 1900-05-31 | N5: 4 | P5: =IF($P$12="TAK",IF(R5<'raport RTT'!$F$5,P4+7,0),IF(R5<='raport RTT'!$F$5,P4+7,0)) -> 00:00:00 | Q5: 00:00:00 | R5: 4 | S5: =17-COUNTIF(T2:T17,"<>0") -> 2 | T5: =IF(T4+1<$P$2,IF(T4=0,0,T4+1),0) -> 1900-01-04 | U5: 1900-01-04 | X5: =IF(Z5<='raport RTT'!$F$8,DATE(YEAR(X4),MONTH(X4)+6,1),0) -> 1902-04-01 | Y5: 00:00:00 | Z5: 4
D6: =IF(F6<='raport RTT'!$F$9,DATE(YEAR(D5)+1,1,1),0) -> 00:00:00 | E6: 00:00:00 | F6: 5 | H6: =IF(J6<='raport RTT'!$F$7+1,DATE(YEAR(H5),MONTH(H5)+3,1),0) -> 1901-04-01 | I6: =IF(H7=0,0,DATE(YEAR(H6),MONTH(H6)+3,1)-1) -> 1901-06-30 | J6: 5 | L6: =IF(N6<='raport RTT'!$F$6+1,DATE(YEAR(L5),MONTH(L5)+1,1),0) -> 1900-06-01 | M6: 1900-06-30 | N6: 5 | O6: zapas! | P6: =IF($P$12="TAK",IF(R6<'raport RTT'!$F$5,P5+7,0),IF(R6<='raport RTT'!$F$5,P5+7,0)) -> 00:00:00 | Q6: 00:00:00 | R6: 5 | S6: =COUNTIF(T2:T17,"<>0") -> 15 | T6: 1900-01-05 | U6: 1900-01-05 | X6: =IF(Z6<='raport RTT'!$F$8,DATE(YEAR(X5),MONTH(X5)+6,1),0) -> 00:00:00 | Y6: 00:00:00 | Z6: 5
H7: =IF(J7<='raport RTT'!$F$7+1,DATE(YEAR(H6),MONTH(H6)+3,1),0) -> 1901-07-01 | I7: =IF(H8=0,0,DATE(YEAR(H7),MONTH(H7)+3,1)-1) -> 1901-09-30 | J7: 6 | L7: =IF(N7<='raport RTT'!$F$6+1,DATE(YEAR(L6),MONTH(L6)+1,1),0) -> 1900-07-01 | M7: 1900-07-31 | N7: 6 | P7: =IF($P$12="TAK",IF(R7<'raport RTT'!$F$5,P6+7,0),IF(R7<='raport RTT'!$F$5,P6+7,0)) -> 00:00:00 | Q7: 00:00:00 | R7: 6 | T7: 1900-01-06 | U7: 1900-01-06
D8: do dodania końców | H8: =IF(J8<='raport RTT'!$F$7+1,DATE(YEAR(H7),MONTH(H7)+3,1),0) -> 1901-10-01 | I8: =IF(H9=0,0,DATE(YEAR(H8),MONTH(H8)+3,1)-1) -> 00:00:00 | J8: 7 | L8: =IF(N8<='raport RTT'!$F$6+1,DATE(YEAR(L7),MONTH(L7)+1,1),0) -> 1900-08-01 | M8: 1900-08-31 | N8: 7 | T8: 1900-01-07 | U8: 1900-01-07
D9: =DATE(YEAR(A3),MONTH(A3)+1,1)-1 -> 1900-01-31 | H9: =IF(J9<='raport RTT'!$F$7+1,DATE(YEAR(H8),MONTH(H8)+3,1),0) -> 00:00:00 | I9: =IF(H10=0,0,DATE(YEAR(H9),MONTH(H9)+3,1)-1) -> 00:00:00 | J9: 8 | L9: =IF(N9<='raport RTT'!$F$6+1,DATE(YEAR(L8),MONTH(L8)+1,1),0) -> 1900-09-01 | M9: 1900-09-30 | N9: 8 | T9: 1900-01-08 | U9: 1900-01-08
D10: =DATE(YEAR(A3),MONTH(A3)+2,1)-1 -> 60 | L10: =IF(N10<='raport RTT'!$F$6+1,DATE(YEAR(L9),MONTH(L9)+1,1),0) -> 1900-10-01 | M10: 1900-10-31 | N10: 9 | P10: =IF(WEEKDAY(A2+28,2)=5,"TAK","NIE") -> NIE | T10: 1900-01-09 | U10: 1900-01-09
J11: =MONTH(A2)+1 -> 1900-01-02 | L11: =IF(N11<='raport RTT'!$F$6+1,DATE(YEAR(L10),MONTH(L10)+1,1),0) -> 1900-11-01 | M11: 1900-11-30 | N11: 10 | T11: 1900-01-10 | U11: 1900-01-10
D12: współczynnik | J12: =MONTH(DATE(YEAR(A2),MONTH(A2),DAY(A2)+1)) -> 1 | L12: =IF(N12<='raport RTT'!$F$6+1,DATE(YEAR(L11),MONTH(L11)+1,1),0) -> 1900-12-01 | M12: =IF(L13=0,0,DATE(YEAR(L12),MONTH(L12)+1,1)-1) -> 1900-12-31 | N12: 11 | P12: TAK | T12: =IF(T11+1<$P$2,IF(T11=0,0,T11+1),0) -> 1900-01-11 | U12: 1900-01-11
A13: Godziny | D13: 1 | J13: =MONTH(A2+1)=MONTH(A2) -> TRUE | L13: =IF(N13<='raport RTT'!$F$6+1,DATE(YEAR(L12),MONTH(L12)+1,1),0) -> 1901-01-01 | M13: 1901-01-31 | N13: 12 | T13: 1900-01-12 | U13: 1900-01-12
A14: =SUMIF(koszyki!$A$5:$A$9,Kalkulator!C2,koszyki!B5:B9) -> 24 | D14: 0.5 | L14: =IF(N14<='raport RTT'!$F$6+1,DATE(YEAR(L13),MONTH(L13)+1,1),0) -> 1901-02-01 | M14: =IF(L15=0,0,DATE(YEAR(L14),MONTH(L14)+1,1)-1) -> 00:00:00 | N14: 13 | T14: 1900-01-13 | U14: 1900-01-13
D15: 0.275 | L15: =IF(N15<='raport RTT'!$F$6+1,DATE(YEAR(L14),MONTH(L14)+1,1),0) -> 00:00:00 | M15: =IF(L16=0,0,DATE(YEAR(L15),MONTH(L15)+1,1)-1) -> 00:00:00 | N15: 14 | T15: =IF(T14+1<$P$2,IF(T14=0,0,T14+1),0) -> 1900-01-14 | U15: 1900-01-14
T16: =IF(T15+1<$P$2,IF(T15=0,0,T15+1),0) -> 1900-01-15 | U16: =T16 -> 1900-01-15
T17: 00:00:00 | U17: 00:00:00
A19: Tabelka | F19: Długość | G19: START | H19: KONIEC | I19: cos | J19: Nazwa | M19: święta | R19: Miesiąc | S19: English | T19: short | U19: Kwartał
A20: 2025-09-20 | B20: 2025-09-20 | F20: =H20-G20 -> 0 | J20: =IF(F20=0,("BASE-"&DAY(G20)&VLOOKUP(MONTH(G20),$R$20:$T$31,3,0))&"-"&VLOOKUP(YEAR(G20),$R$33:$S$41,2),IF(OR(F20=29,F20=30,F20=27,F20=28),("BASE-"&VLOOKUP(MONTH(G20),$R$20:$T$31,3,0))&"-"&VLOOKUP(YEAR(G20),$R$33:$S$41,2),IF(OR(F20=89,F20=90,F20=91),("BASE-"&VLOOKUP(MONTH(G20),$R$20:$U$31,4,0))&"-"&VLOOKUP(YEAR(G20),$R$33:$S$41,2),IF(OR(F20=6),"BASE-WK"&WEEKNUM(G20)&"-"&VLOOKUP(YEAR(G20),$R$33:$S$41,2),IF(OR(F20=1,F20=2,F20=3,F20=4,F20=5),"BASE-"&YEAR(G20)&"/"&MONTH(G20)&"/"&DAY(G20)&"-"&YEAR(H20)&"/"&MONTH(H20)&"/"&DAY(H20),"BASE-"&YEAR(G20)))))) ->  | M20: 2013-01-01 | R20: 1 | S20: January | T20: Jan | U20: Q1
A21: 2025-09-21 | B21: 2025-09-21 | F21: =H21-G21+1 -> 1 | J21: =IF(F21=0,("BASE-"&DAY(G21)&VLOOKUP(MONTH(G21),$R$20:$T$31,3,0))&"-"&VLOOKUP(YEAR(G21),$R$33:$S$41,2),IF(OR(F21=29,F21=30,F21=27,F21=28),("BASE-"&VLOOKUP(MONTH(G21),$R$20:$T$31,3,0))&"-"&VLOOKUP(YEAR(G21),$R$33:$S$41,2),IF(OR(F21=89,F21=90,F21=91),("BASE-"&VLOOKUP(MONTH(G21),$R$20:$U$31,4,0))&"-"&VLOOKUP(YEAR(G21),$R$33:$S$41,2),IF(OR(F21=6),"BASE-WK"&WEEKNUM(G21)&"-"&VLOOKUP(YEAR(G21),$R$33:$S$41,2),IF(OR(F21=1,F21=2,F21=3,F21=4,F21=5),"BASE-"&YEAR(G21)&"/"&MONTH(G21)&"/"&DAY(G21)&"-"&YEAR(H21)&"/"&MONTH(H21)&"/"&DAY(H21),"BASE-"&YEAR(G21)))))) -> BASE-1900/1/0-1900/1/0 | M21: 2013-04-01 | R21: 2 | S21: February | T21: Feb | U21: Q2
A22: 2025-09-22 | B22: 2025-09-22 | F22: 1 | J22: BASE-1900/1/0-1900/1/0 | M22: 2013-05-01 | R22: 3 | S22: March | T22: Mar | U22: Q3
A23: 2025-09-23 | B23: 2025-09-23 | F23: 1 | J23: BASE-1900/1/0-1900/1/0 | M23: 2013-05-03 | R23: 4 | S23: April | T23: Apr | U23: Q2
A24: 2025-09-24 | B24: 2025-09-24 | F24: 1 | J24: BASE-1900/1/0-1900/1/0 | M24: 2013-05-30 | R24: 5 | S24: May | T24: May | U24: Q3
A25: 2025-09-25 | B25: 2025-09-25 | F25: 1 | J25: BASE-1900/1/0-1900/1/0 | M25: 2013-08-15 | R25: 6 | S25: June | T25: Jun | U25: Q4
A26: 2025-09-26 | B26: 2025-09-26 | F26: 1 | J26: BASE-1900/1/0-1900/1/0 | M26: 2013-11-01 | R26: 7 | S26: July | T26: Jul | U26: Q3
A27: 2025-09-27 | B27: 2025-09-27 | F27: 1 | J27: BASE-1900/1/0-1900/1/0 | M27: 2013-11-11 | R27: 8 | S27: August | T27: Aug | U27: Q4
A28: 2025-09-28 | B28: 2025-09-28 | F28: 1 | J28: BASE-1900/1/0-1900/1/0 | M28: 2013-12-25 | R28: 9 | S28: September | T28: Sep | U28: Q5
A29: 2025-09-29 | B29: 2025-09-29 | F29: 1 | J29: BASE-1900/1/0-1900/1/0 | M29: 2013-12-26 | R29: 10 | S29: October | T29: Oct | U29: Q4
A30: 2025-09-30 | B30: 2025-09-30 | F30: 1 | J30: BASE-1900/1/0-1900/1/0 | M30: 2014-01-01 | R30: 11 | S30: November | T30: Nov | U30: Q5
A31: 2025-10-01 | B31: 2025-10-01 | F31: 1 | J31: BASE-1900/1/0-1900/1/0 | M31: 2014-01-06 | R31: 12 | S31: December | T31: Dec | U31: Q6
A32: 2025-10-02 | B32: 2025-10-02 | F32: 1 | J32: BASE-1900/1/0-1900/1/0 | M32: 2014-04-21
A33: 2025-10-03 | B33: 2025-10-03 | F33: 1 | J33: BASE-1900/1/0-1900/1/0 | M33: 2014-05-01 | R33: Rok | S33: Short
A34: 2025-10-04 | B34: 2025-10-04 | F34: 1 | J34: BASE-1900/1/0-1900/1/0 | M34: 2014-06-19 | R34: 2013 | S34: =RIGHT(R34,2) -> 13
A35: 2025-10-05 | B35: 2025-10-05 | F35: 1 | J35: BASE-1900/1/0-1900/1/0 | M35: 2014-08-15 | R35: 2014 | S35: =RIGHT(R35,2) -> 14
A36: 2025-10-06 | B36: 2025-10-12 | F36: 1 | J36: BASE-1900/1/0-1900/1/0 | M36: 2014-11-11 | R36: 2015 | S36: 15
A37: 2025-10-13 | B37: 2025-10-19 | F37: 1 | J37: BASE-1900/1/0-1900/1/0 | M37: 2014-12-25 | R37: 2016 | S37: 16
A38: 2025-10-20 | B38: 00:00:00 | F38: 1 | J38: BASE-1900/1/0-1900/1/0 | M38: 2014-12-26 | R38: 2017 | S38: 17
A39: 00:00:00 | B39: 00:00:00 | F39: 1 | J39: BASE-1900/1/0-1900/1/0 | M39: 2015-01-01 | R39: 2018 | S39: 18
A40: 00:00:00 | B40: 00:00:00 | F40: 1 | J40: BASE-1900/1/0-1900/1/0 | M40: 2015-01-06 | R40: 2019 | S40: 19
A41: 00:00:00 | B41: 00:00:00 | F41: 1 | J41: BASE-1900/1/0-1900/1/0 | M41: 2015-04-06 | R41: 2020 | S41: 20
A42: 2025-10-01 | B42: 2025-10-31 | F42: 1 | J42: BASE-1900/1/0-1900/1/0 | M42: 2015-05-01 | T42: Długość
A43: 2025-11-01 | B43: 2025-11-30 | F43: 1 | J43: BASE-1900/1/0-1900/1/0 | M43: 2015-06-04 | R43: liczba miesięcy | T43: 30
A44: 2025-12-01 | B44: 2025-12-31 | F44: 1 | J44: BASE-1900/1/0-1900/1/0 | M44: 2015-11-11 | R44: =-(8-COUNTIFS(F20:F57,">26",F20:F57,"<32")) -> -8 | T44: 29
A45: 2026-01-01 | B45: 2026-01-31 | F45: 1 | J45: BASE-1900/1/0-1900/1/0 | M45: 2015-12-25 | T45: 28
A46: 2026-02-01 | B46: 2026-02-28 | F46: 1 | J46: BASE-1900/1/0-1900/1/0 | M46: 2016-01-01 | R46: =DMAX($F$19:$G$57,"START",$T$42:$T$46) -> 00:00:00 | T46: 27
A47: 2026-03-01 | B47: 2026-03-31 | F47: 1 | J47: BASE-1900/1/0-1900/1/0 | M47: 2016-01-06
A48: 2026-04-01 | B48: 2026-04-30 | F48: 1 | J48: BASE-1900/1/0-1900/1/0 | M48: 2016-03-28 | R48: =IF(R44=1,MID(VLOOKUP($R$46,$G$19:$J$57,4,0),1,5)&YEAR(R46)&"/"&MONTH(R46)&"/"&DAY(R46)&"-"&YEAR(H43)&"/"&MONTH(H43)&"/"&DAY(H43)) -> FALSE
A49: 2026-05-01 | B49: 2026-05-31 | F49: 1 | J49: BASE-1900/1/0-1900/1/0 | M49: 2016-05-03
A50: 2026-06-01 | B50: 2026-06-30 | F50: 1 | J50: BASE-1900/1/0-1900/1/0 | M50: 2016-05-26
A51: 2026-07-01 | B51: 2026-07-31 | F51: 1 | J51: BASE-1900/1/0-1900/1/0 | M51: 2016-08-15
A52: 2026-08-01 | B52: 2026-08-31 | F52: 1 | J52: BASE-1900/1/0-1900/1/0 | M52: 2016-11-01
A53: 2026-09-01 | B53: 2026-09-30 | F53: 1 | J53: BASE-1900/1/0-1900/1/0 | M53: 2016-11-11
A54: 2026-10-01 | B54: 00:00:00 | F54: =H54-G54 -> 0 | M54: 2016-12-26
A55: 00:00:00 | B55: 00:00:00 | F55: 0 | M55: 2017-01-06
A56: 2025-10-01 | B56: 2025-12-31 | F56: 0 | M56: 2017-04-17
A57: 2026-01-01 | B57: 2026-03-31 | F57: 0 | M57: 2017-05-01
A58: 2026-04-01 | B58: 2026-06-30 | F58: 0 | M58: 2017-05-03
A59: 2026-07-01 | B59: 2026-09-30 | F59: 0 | M59: 2017-06-15
A60: 2026-10-01 | B60: 2026-12-31 | F60: 0 | M60: 2017-08-15
A61: 2027-01-01 | B61: 2027-03-31 | F61: 0 | M61: 2017-11-01
A62: 2027-04-01 | B62: 00:00:00 | F62: 0 | M62: 2017-12-25
A63: 00:00:00 | B63: 00:00:00 | M63: 2017-12-26
A64: 2026-04-01 | B64: 2026-09-30 | M64: 2018-01-01
A65: 2026-10-01 | B65: 2027-03-31 | M65: 2018-04-02
A66: 2027-04-01 | B66: 2027-09-30 | M66: 2018-05-01
A67: 2027-10-01 | B67: 00:00:00 | M67: 2018-05-03
A68: 00:00:00 | B68: 00:00:00 | M68: 2018-05-31
A69: 2026-01-01 | B69: 2026-12-31 | M69: 2018-08-15
A70: 2027-01-01 | B70: 2027-12-31 | M70: 2018-11-01
A71: 2028-01-01 | B71: 2028-12-31 | M71: 2018-12-25
A72: 2029-01-01 | B72: 2029-12-31 | M72: 2018-12-26
A73: 00:00:00 | B73: 00:00:00 | M73: 2019-01-01
B74: 2025-09-30 | M74: 2019-04-22
B75: 2025-10-31 | M75: 2019-05-01
M76: 2019-05-03
M77: 2019-06-20
M78: 2019-08-15
M79: 2019-11-01
M80: 2019-11-11
M81: 2019-12-25
M82: 2019-12-26
M83: 2020-01-01
M84: 2020-01-06
M85: 2020-04-13
M86: 2020-05-01
M87: 2020-06-11
M88: 2020-11-11
M89: 2020-12-25
M90: 2020-12-26
M91: 2021-01-01
M92: 2021-01-06
M93: 2021-04-04
M94: 2021-04-05
M95: 2021-05-01
M96: 2021-05-03
M97: 2021-05-23
M98: 2021-06-03
M99: 2021-08-15
M100: 2021-11-01
M101: 2021-11-11
M102: 2021-12-25
M103: 2021-12-26
M104: 2022-01-01
M105: 2022-01-06
M106: 2022-04-17
M107: 2022-04-18
M108: 2022-05-01
M109: 2022-05-03
M110: 2022-06-05
M111: 2022-06-16
M112: 2022-08-15
M113: 2022-11-01
M114: 2022-11-11
M115: 2022-12-25
M116: 2022-12-26
M117: 2023-01-01
M118: 2023-01-06
M119: 2023-04-09
M120: 2023-04-10
M121: 2023-05-01
M122: 2023-05-03
M123: 2023-05-28
M124: 2023-06-08
M125: 2023-08-15
M126: 2023-11-01
M127: 2023-11-11
M128: 2023-12-25
M129: 2023-12-26
M130: 2024-01-01
M131: 2024-01-06
M132: 2024-03-31
M133: 2024-04-01
M134: 2024-05-01
M135: 2024-05-03
M136: 2024-05-19
M137: 2024-05-30
M138: 2024-08-15
M139: 2024-11-01
M140: 2024-11-11
M141: 2024-12-25
M142: 2024-12-26
M143: 2025-01-01
M144: 2025-01-06
M145: 2025-04-20
M146: 2025-04-21
M147: 2025-05-01
M148: 2025-05-03
M149: 2025-06-08
M150: 2025-06-19
M151: 2025-08-15
M152: 2025-11-01
M153: 2025-11-11
M154: 2025-12-25
M155: 2025-12-26
M156: 2026-01-01
M157: 2026-01-06
M158: 2026-04-05
M159: 2026-04-06
M160: 2026-05-01
M161: 2026-05-03
M162: 2026-05-24
M163: 2026-06-04
M164: 2026-08-15
M165: 2026-11-01
M166: 2026-11-11
M167: 2026-12-25
M168: 2026-12-26
M169: 2027-01-01
M170: 2027-01-06
M171: 2027-03-28
M172: 2027-03-29
M173: 2027-05-01
M174: 2027-05-03
M175: 2027-05-16
M176: 2027-05-27
M177: 2027-08-15
M178: 2027-11-01
M179: 2027-11-11
M180: 2027-12-24
M181: 2027-12-25
M182: 2027-12-26
M183: 2028-01-01
M184: 2028-01-06
M185: 2028-04-16
M186: 2028-04-17
M187: 2028-05-01
M188: 2028-05-03
M189: 2028-06-04
M190: 2028-06-15
M191: 2028-08-15
M192: 2028-11-01
M193: 2028-11-11
M194: 2028-12-24
M195: 2028-12-25
M196: 2028-12-26
M197: 2029-01-01
M198: 2029-01-06
M199: 2029-04-01
M200: 2029-04-02
M201: 2029-05-01
... 303 more rows

Sheet raport RTT (hidden)
B5: GAS_BASE_W-25-25 | C5: =IFERROR(MID(B5,FIND("_",B5)+6,1),"") -> W | E5: W | F5: =COUNTIF(C:C,E5) -> 4 | I5: tutaj usuwając/dodając instrumenty wpływamy na ilość generujących się koszyków
B6: GAS_BASE_W-26-25 | C6: W | E6: M | F6: =COUNTIF(C:C,E6) -> 12
B7: GAS_BASE_W-27-25 | C7: W | E7: Q | F7: 6
B8: GAS_BASE_W-28-25 | C8: W | E8: S | F8: 4
B9: GAS_BASE_M-07-25 | C9: M | E9: Y | F9: =COUNTIF(C:C,E9) -> 4
B10: GAS_BASE_M-08-25 | C10: M
B11: GAS_BASE_M-09-25 | C11: M
B12: GAS_BASE_M-10-25 | C12: M
B13: GAS_BASE_M-11-25 | C13: M
B14: GAS_BASE_M-12-25 | C14: M
B15: GAS_BASE_M-01-26 | C15: M
B16: GAS_BASE_M-02-26 | C16: M
B17: GAS_BASE_M-03-26 | C17: M
B18: GAS_BASE_M-04-26 | C18: M
B19: GAS_BASE_M-05-26 | C19: M
B20: GAS_BASE_M-06-26 | C20: M
B21: GAS_BASE_Q-3-25 | C21: Q
B22: GAS_BASE_Q-4-25 | C22: Q
B23: GAS_BASE_Q-1-26 | C23: Q
B24: GAS_BASE_Q-2-26 | C24: Q
B25: GAS_BASE_Q-3-26 | C25: Q
B26: GAS_BASE_Q-4-26 | C26: Q
B27: GAS_BASE_S-W-25 | C27: S
B28: GAS_BASE_S-S-26 | C28: S
B29: GAS_BASE_S-W-26 | C29: S
B30: GAS_BASE_S-S-27 | C30: S
B31: GAS_BASE_Y-26 | C31: Y
B32: GAS_BASE_Y-27 | C32: Y
B33: GAS_BASE_Y-28 | C33: Y
B34: GAS_BASE_Y-29 | C34: Y

Sheet Arkusz2 (hidden)
A1: 2025-09-20 | B1: 2025-09-20 | F1: liczba koszyków
A2: 2025-09-21 | B2: 2025-09-21 | F2: =COUNTA(A:A) -> 36
A3: 2025-09-22 | B3: 2025-09-22
A4: 2025-09-23 | B4: 2025-09-23
A5: 2025-09-24 | B5: 2025-09-24
A6: 2025-09-25 | B6: 2025-09-25
A7: 2025-09-26 | B7: 2025-09-26
A8: 2025-09-27 | B8: 2025-09-27
A9: 2025-09-28 | B9: 2025-09-28
A10: 2025-09-29 | B10: 2025-09-29
A11: 2025-09-30 | B11: 2025-09-30
A12: 2025-10-01 | B12: 2025-10-01
A13: 2025-10-02 | B13: 2025-10-02
A14: 2025-10-03 | B14: 2025-10-03
A15: 2025-10-04 | B15: 2025-10-04
A16: 2025-10-05 | B16: 2025-10-05
A17: 2025-10-06 | B17: 2025-10-12
A18: 2025-10-13 | B18: 2025-10-19
A19: 2025-10-20 | B19: 2025-10-31
A20: 2025-11-01 | B20: 2025-11-30
A21: 2025-12-01 | B21: 2025-12-31
A22: 2026-01-01 | B22: 2026-01-31
A23: 2026-02-01 | B23: 2026-02-28
A24: 2026-03-01 | B24: 2026-03-31
A25: 2026-04-01 | B25: 2026-04-30
A26: 2026-05-01 | B26: 2026-05-31
A27: 2026-06-01 | B27: 2026-06-30
A28: 2026-07-01 | B28: 2026-07-31
A29: 2026-08-01 | B29: 2026-08-31
A30: 2026-09-01 | B30: 2026-09-30
A31: 2026-10-01 | B31: 2026-12-31
A32: 2027-01-01 | B32: 2027-03-31
A33: 2027-04-01 | B33: 2027-09-30
A34: 2027-10-01 | B34: 2027-12-31
A35: 2028-01-01 | B35: 2028-12-31
A36: 2029-01-01 | B36: 2029-12-31

Sheet krzywa (hidden)
B1: PEAK | C1: BASE
A2: days to delivery | B2: initial margin | C2: initial margin | L2: Data rozpoczęcia | M2: Data zakończenia | N2: VAT
A3: 1 | C3: 0.227 | L3: 2022-01-01 | M3: 2022-12-31 | N3: 5
A4: 2 | C4: 0.2253 | L4: 2023-01-01 | M4: 2023-03-31 | N4: 23
A5: 3 | C5: 0.2236 | L5: 2023-04-01 | M5: 2026-12-31 | N5: 0
A6: 4 | C6: 0.2219 | L6: 2027-01-01 | M6: 2100-12-31 | N6: 23
A7: 5 | C7: 0.2202
A8: 6 | C8: 0.2185
A9: 7 | C9: 0.2168
A10: 8 | C10: 0.2151
A11: 9 | C11: 0.2134
A12: 10 | C12: 0.2117
A13: 11 | C13: 0.21
A14: 12 | C14: 0.21
A15: 13 | C15: 0.21
A16: 14 | C16: 0.21
A17: 15 | C17: 0.21
A18: 16 | C18: 0.21
A19: 17 | C19: 0.21
A20: 18 | C20: 0.21
A21: 19 | C21: 0.2098
A22: 20 | C22: 0.2096
A23: 21 | C23: 0.2093
A24: 22 | C24: 0.2091
A25: 23 | C25: 0.2089
A26: 24 | C26: 0.2087
A27: 25 | C27: 0.2084
A28: 26 | C28: 0.2082
A29: 27 | C29: 0.208
A30: 28 | C30: 0.2078
A31: 29 | C31: 0.2075
A32: 30 | C32: 0.2073
A33: 31 | C33: 0.2071
A34: 32 | C34: 0.2068
A35: 33 | C35: 0.2066
A36: 34 | C36: 0.2064
A37: 35 | C37: 0.2062
A38: 36 | C38: 0.206
A39: 37 | C39: 0.2057
A40: 38 | C40: 0.2055
A41: 39 | C41: 0.2053
A42: 40 | C42: 0.205
A43: 41 | C43: 0.2048
A44: 42 | C44: 0.2046
A45: 43 | C45: 0.2044
A46: 44 | C46: 0.2042
A47: 45 | C47: 0.2039
A48: 46 | C48: 0.2037
A49: 47 | C49: 0.2035
A50: 48 | C50: 0.2032
A51: 49 | C51: 0.203
A52: 50 | C52: 0.2027
A53: 51 | C53: 0.2025
A54: 52 | C54: 0.2022
A55: 53 | C55: 0.202
A56: 54 | C56: 0.2018
A57: 55 | C57: 0.2015
A58: 56 | C58: 0.2013
A59: 57 | C59: 0.201
A60: 58 | C60: 0.2008
A61: 59 | C61: 0.2005
A62: 60 | C62: 0.2003
A63: 61 | C63: 0.2001
A64: 62 | C64: 0.1998
A65: 63 | C65: 0.1996
A66: 64 | C66: 0.1993
A67: 65 | C67: 0.1991
A68: 66 | C68: 0.1988
A69: 67 | C69: 0.1986
A70: 68 | C70: 0.1983
A71: 69 | C71: 0.1981
A72: 70 | C72: 0.1979
A73: 71 | C73: 0.1976
A74: 72 | C74: 0.1974
A75: 73 | C75: 0.1971
A76: 74 | C76: 0.1969
A77: 75 | C77: 0.1966
A78: 76 | C78: 0.1964
A79: 77 | C79: 0.1957
A80: 78 | C80: 0.1951
A81: 79 | C81: 0.1944
A82: 80 | C82: 0.1938
A83: 81 | C83: 0.1931
A84: 82 | C84: 0.1924
A85: 83 | C85: 0.1918
A86: 84 | C86: 0.1911
A87: 85 | C87: 0.1904
A88: 86 | C88: 0.1898
A89: 87 | C89: 0.1891
A90: 88 | C90: 0.1885
A91: 89 | C91: 0.1878
A92: 90 | C92: 0.1871
A93: 91 | C93: 0.1865
A94: 92 | C94: 0.1858
A95: 93 | C95: 0.1852
A96: 94 | C96: 0.1845
A97: 95 | C97: 0.1838
A98: 96 | C98: 0.1832
A99: 97 | C99: 0.1825
A100: 98 | C100: 0.1819
A101: 99 | C101: 0.1812
A102: 100 | C102: 0.1805
A103: 101 | C103: 0.1799
A104: 102 | C104: 0.1792
A105: 103 | C105: 0.1785
A106: 104 | C106: 0.1779
A107: 105 | C107: 0.1772
A108: 106 | C108: 0.1766
A109: 107 | C109: 0.1759
A110: 108 | C110: 0.177
A111: 109 | C111: 0.1782
A112: 110 | C112: 0.1793
A113: 111 | C113: 0.1804
A114: 112 | C114: 0.1816
A115: 113 | C115: 0.1827
A116: 114 | C116: 0.1839
A117: 115 | C117: 0.185
A118: 116 | C118: 0.1861
A119: 117 | C119: 0.1873
A120: 118 | C120: 0.1884
A121: 119 | C121: 0.1895
A122: 120 | C122: 0.1907
A123: 121 | C123: 0.1918
A124: 122 | C124: 0.193
A125: 123 | C125: 0.1941
A126: 124 | C126: 0.1952
A127: 125 | C127: 0.1964
A128: 126 | C128: 0.1975
A129: 127 | C129: 0.1986
A130: 128 | C130: 0.1998
A131: 129 | C131: 0.2009
A132: 130 | C132: 0.202
A133: 131 | C133: 0.2032
A134: 132 | C134: 0.2043
A135: 133 | C135: 0.2055
A136: 134 | C136: 0.2066
A137: 135 | C137: 0.2077
A138: 136 | C138: 0.2089
A139: 137 | C139: 0.21
A140: 138 | C140: 0.2097
A141: 139 | C141: 0.2095
A142: 140 | C142: 0.2092
A143: 141 | C143: 0.209
A144: 142 | C144: 0.2087
A145: 143 | C145: 0.2085
A146: 144 | C146: 0.2082
A147: 145 | C147: 0.208
A148: 146 | C148: 0.2077
A149: 147 | C149: 0.2075
A150: 148 | C150: 0.2072
A151: 149 | C151: 0.207
A152: 150 | C152: 0.2067
A153: 151 | C153: 0.2065
A154: 152 | C154: 0.2062
A155: 153 | C155: 0.206
A156: 154 | C156: 0.2057
A157: 155 | C157: 0.2055
A158: 156 | C158: 0.2052
A159: 157 | C159: 0.205
A160: 158 | C160: 0.2047
A161: 159 | C161: 0.2045
A162: 160 | C162: 0.2042
A163: 161 | C163: 0.2039
A164: 162 | C164: 0.2037
A165: 163 | C165: 0.2034
A166: 164 | C166: 0.2032
A167: 165 | C167: 0.2029
A168: 166 | C168: 0.2027
A169: 167 | C169: 0.2024
A170: 168 | C170: 0.2022
A171: 169 | C171: 0.2019
A172: 170 | C172: 0.2017
A173: 171 | C173: 0.2014
A174: 172 | C174: 0.2012
A175: 173 | C175: 0.2009
A176: 174 | C176: 0.2007
A177: 175 | C177: 0.2004
A178: 176 | C178: 0.2002
A179: 177 | C179: 0.1999
A180: 178 | C180: 0.1997
A181: 179 | C181: 0.1994
A182: 180 | C182: 0.1992
A183: 181 | C183: 0.1989
A184: 182 | C184: 0.1987
A185: 183 | C185: 0.1984
A186: 184 | C186: 0.1981
A187: 185 | C187: 0.1979
A188: 186 | C188: 0.1976
A189: 187 | C189: 0.1974
A190: 188 | C190: 0.1971
A191: 189 | C191: 0.1969
A192: 190 | C192: 0.1966
A193: 191 | C193: 0.1964
A194: 192 | C194: 0.1961
A195: 193 | C195: 0.1959
A196: 194 | C196: 0.1956
A197: 195 | C197: 0.1954
A198: 196 | C198: 0.1951
A199: 197 | C199: 0.1949
A200: 198 | C200: 0.1946
... 2008 more rows

Sheet Instrukcja (hidden)
B2: Instrukcja obsługi kalkulatora depozytów dla portfeli dla Rynku Terminowego Produktów Gazowych
B4: Kalkulator depozytów służy do wyliczania depozytu wstępnego i uzupełniającego na Rynku Terminowym Produktów Gazowych dla dowolnych portfeli kontraktów.
B6: Przed rozpoczęciem pracy z kalkulatorem należy upewnić się, że obsługa makr w MS Excel jest włączona.
B8: W celu obliczenia depozytów należy:
B9: 1. Podać datę naliczenia depozytów zabezpieczających (w formacie rrrr-mm-dd).
B10: 2. Jeżeli depozyty mają być wyliczone dla Członka zagranicznego, zaznaczyć check-box Członek zagraniczny.
B11: 3. Stworzyć zestawienie koszyków dostaw na rynku RTPG poprzez wciśnięcie przycisku "Stwórz koszyki dostaw".
B12: 4. Uzupełnić (ręcznie lub przy wykorzystaniu danych z PCCP) informacje dotyczące wolumenu kupna, wolumenu sprzedaży, średnio ważonego kursu kupna i średnio ważonego kursu sprzedaży w arkuszu Transakcje_PCCP:
B14: 4.1. Uzupełnienie informacji przy użyciu aplikacji PCCP:
B15: a) Do arkusza Transkacje_PCCP należy wkleić pobrany z aplikacji PCCP raport dotyczący zawartych transakcji, dla których mają zostać oszacowane depozyty wstępne i uzupełniające (Trade History) w postaci rozdzielonej na kolumny. Następnie należy uruchomić procedurę wczytywania pliku przy użyciu przycisku "Wczytaj transakcje z PCCP".
B18: b) Następnie należy wcisnąć przycisk "Uzupełnij tabelę transakcjami z PCCP", co spowoduje uzupełnienie informacji dla aktualnie utworzonego zestawienia koszyków dostaw.
B20: 5. Podać kursy rozliczeniowe dla wszystkich utworzonych koszyków dostaw. Krok ten jest niezbędny w celu poprawnego naliczenia depozytu wstępnego. Zasady wyznaczania kursów dla okresów dostawy opisane są w "Szczegółowych zasadach rozliczeń i rozrachunku Giełdowej Izby Rozrachunkowej", dostępnych na stronie internetowej Izby. Wartości wyznaczonych przez Izbę kursów rozliczeniowych można znaleźć w aplikacji PCCP w raporcie Depozyty wstępne (Initial Margin - Position Netting).
B25: 6. Wcisnąć przycisk "Oblicz i zapisz depozyty".
B27: Zgodnie z regulacjami IRGiT S.A., depozyt uzupełniający o wartości dodatniej jest kompensowany do wartości 0.

Sheet Manual (hidden)
B2: Manual for portfolio margin calculator for RTPG
B4: The margin calculator is designed for calculation of the initial margin value and the variation margin value on the Commodity Exchange Markets for any contract portfolio.
B6: Before starting work with margin calculator you should make sure that MS Excel macro handling has been enabled.
B8: In order to calculate the margins you should:
B9: 1. Enter the date of reckoning the collateral margins (in yyyy-mm-dd format).
B10: 2. If margins shall be calculated for foreign entity, mark the check-box Foreign entity.
B11: 3. Create statement of the delivery baskets for the Commodity Exchange Markets through pressing "Create delivery baskets" button.
B12: 4. Complete the information regarding the purchase volume, the sale volume, the weighted average purchase price and the weighted average sale price in the sheet "X-Stream Transactions" (manually or using the data from X-Stream Clearing Workstation):
B14: 4.1. Completing the information using PCCP application software:
B15: a) Paste the Trade History report (downloaded from the PCCP, regarding the transactions for which you would like to estimate the initial margins and the variation margins) into "PCCP Transactions" sheet as separated columns. Then start the file reading in procedure by pressing "Load transactions from PCCP" button.
B18: b) Press "Fill in the table with transactions from PCCP", what will result in completing the information for the delivery baskets statement which has been currently established.
B20: 5. Enter the clearing prices for all of established delivery baskets. It is a necessary step to calculate initial margin properly. The rules for determination of the prices for delivery periods have been described in "Detailed Clearing and Settlement Rules of the Exchange Clearing House", available on the IRGiT's website. The value of IRGiT's clearing prices can be found in Initial Margin - Position Netting report (downloaded from PCCP).
B24: 6. Press "Calculate and save margins" button.
B27: Pursuant to IRGiT's regulations the positive value of variation margin is compensated to "zero" (0) value.

Sheet Kalkulator Depozytów
AA2: 1
B3: Kalkulator depozytów na RTTG | K3: GAS_BASE | L3: Depozyt ogółem | Z3: GAS_BASE | AA3: 0.5
J4: Dep. Wstępny | K4: 0 | L4: 0 | AA4: 0.275
J5: Dep. Uzupełniający | K5: 0 | N5: -
F10: GAS_BASE | M10: 390 | N10: 30670.05 | O10: 360 | P10: 28285.05
C12: Podaj datę (rrrr-mm-dd): | J12: Typ kontraktu | K12: Początek okresu | L12: Koniec okresu | M12: Wolumen kupna | N12: ŚWKK | O12: Wolumen sprzedaży | P12: ŚWKS | Q12: Kurs Rozliczeniowy | S12: Dep. Wstępny | T12: Dep. Uzupełniający
C13: Członek zagraniczny: | X13: 1
X14: 2
X15: 3
X16: 4
X17: 5
X18: 6
X19: 7
X20: 8
X21: 9
X22: 10
D23: Aktualnie wczytany plik dla: | X23: 11
X24: 12
X25: 13
X26: 14
X27: 15
X28: 16
X29: 17
X30: 18
X31: 19
X32: 20
X33: 21
X34: 22
B35: FALSE | F35: 1 | X35: 23
X36: 24
X37: 25
X38: 26
X39: 27
X40: 28
X41: 29
X42: 30
X43: 31
X44: 32
X45: 33
X46: 34
X47: 35
X48: 36
X49: 37
X50: 38
X51: 39
X52: 40
X53: 41
X54: 42
X55: 43
X56: 44
X57: 45
X58: 46
X59: 47
X60: 48
X61: 49
X62: 50

Sheet Transakcje_PCCP

Sheet Tabela (hidden)
AP5: 42 kupno | AQ5: 43 sprzedaz | AR5: 44 start | AT5: 46 roznica | AV5: 48 kurs kupna | AW5: 49 kurs sprzedazy
AM8: cos1 | AN8: cos2 | AO8: cos3 | AP8: cos4 | AQ8: cos5 | AR8: cos6 | AS8: cos7 | AT8: cos8 | AU8: cos9 | AV8: cos10 | AW8: cos11 | AX8: cos12
AX9: 1 | BA9: 20131 | BB9: 1 | BC9: 2013 | BD9: 2012-12-31 | BE9: 2013-01-06
AX10: 2 | BA10: 20132 | BB10: 2 | BC10: 2013 | BD10: 2013-01-07 | BE10: 2013-01-13
AX11: 3 | BA11: 20133 | BB11: 3 | BC11: 2013 | BD11: 2013-01-14 | BE11: 2013-01-20
AX12: 4 | BA12: 20134 | BB12: 4 | BC12: 2013 | BD12: 2013-01-21 | BE12: 2013-01-27
AX13: 5 | BA13: 20135 | BB13: 5 | BC13: 2013 | BD13: 2013-01-28 | BE13: 2013-02-03
AX14: 6 | BA14: 20136 | BB14: 6 | BC14: 2013 | BD14: 2013-02-04 | BE14: 2013-02-10
AX15: 7 | BA15: 20137 | BB15: 7 | BC15: 2013 | BD15: 2013-02-11 | BE15: 2013-02-17
AX16: 8 | BA16: 20138 | BB16: 8 | BC16: 2013 | BD16: 2013-02-18 | BE16: 2013-02-24
AX17: 9 | BA17: 20139 | BB17: 9 | BC17: 2013 | BD17: 2013-02-25 | BE17: 2013-03-03
AX18: 10 | BA18: 201310 | BB18: 10 | BC18: 2013 | BD18: 2013-03-04 | BE18: 2013-03-10
AX19: 11 | BA19: 201311 | BB19: 11 | BC19: 2013 | BD19: 2013-03-11 | BE19: 2013-03-17
AX20: 12 | BA20: 201312 | BB20: 12 | BC20: 2013 | BD20: 2013-03-18 | BE20: 2013-03-24
AX21: 13 | BA21: 201313 | BB21: 13 | BC21: 2013 | BD21: 2013-03-25 | BE21: 2013-03-31
AX22: 14 | BA22: 201314 | BB22: 14 | BC22: 2013 | BD22: 2013-04-01 | BE22: 2013-04-07
AX23: 15 | BA23: 201315 | BB23: 15 | BC23: 2013 | BD23: 2013-04-08 | BE23: 2013-04-14
AX24: 16 | BA24: 201316 | BB24: 16 | BC24: 2013 | BD24: 2013-04-15 | BE24: 2013-04-21
AX25: 17 | BA25: 201317 | BB25: 17 | BC25: 2013 | BD25: 2013-04-22 | BE25: 2013-04-28
AX26: 18 | BA26: 201318 | BB26: 18 | BC26: 2013 | BD26: 2013-04-29 | BE26: 2013-05-05
AX27: 19 | BA27: 201319 | BB27: 19 | BC27: 2013 | BD27: 2013-05-06 | BE27: 2013-05-12
AX28: 20 | BA28: 201320 | BB28: 20 | BC28: 2013 | BD28: 2013-05-13 | BE28: 2013-05-19
AX29: 21 | BA29: 201321 | BB29: 21 | BC29: 2013 | BD29: 2013-05-20 | BE29: 2013-05-26
AX30: 22 | BA30: 201322 | BB30: 22 | BC30: 2013 | BD30: 2013-05-27 | BE30: 2013-06-02
AX31: 23 | BA31: 201323 | BB31: 23 | BC31: 2013 | BD31: 2013-06-03 | BE31: 2013-06-09
AX32: 24 | BA32: 201324 | BB32: 24 | BC32: 2013 | BD32: 2013-06-10 | BE32: 2013-06-16
AX33: 25 | BA33: 201325 | BB33: 25 | BC33: 2013 | BD33: 2013-06-17 | BE33: 2013-06-23
AX34: 26 | BA34: 201326 | BB34: 26 | BC34: 2013 | BD34: 2013-06-24 | BE34: 2013-06-30
AX35: 27 | BA35: 201327 | BB35: 27 | BC35: 2013 | BD35: 2013-07-01 | BE35: 2013-07-07
AX36: 28 | BA36: 201328 | BB36: 28 | BC36: 2013 | BD36: 2013-07-08 | BE36: 2013-07-14
AX37: 29 | BA37: 201329 | BB37: 29 | BC37: 2013 | BD37: 2013-07-15 | BE37: 2013-07-21
AX38: 30 | BA38: 201330 | BB38: 30 | BC38: 2013 | BD38: 2013-07-22 | BE38: 2013-07-28
AX39: 31 | BA39: 201331 | BB39: 31 | BC39: 2013 | BD39: 2013-07-29 | BE39: 2013-08-04
AX40: 32 | BA40: 201332 | BB40: 32 | BC40: 2013 | BD40: 2013-08-05 | BE40: 2013-08-11
AX41: 33 | BA41: 201333 | BB41: 33 | BC41: 2013 | BD41: 2013-08-12 | BE41: 2013-08-18
AX42: 34 | BA42: 201334 | BB42: 34 | BC42: 2013 | BD42: 2013-08-19 | BE42: 2013-08-25
AX43: 35 | BA43: 201335 | BB43: 35 | BC43: 2013 | BD43: 2013-08-26 | BE43: 2013-09-01
AX44: 36 | BA44: 201336 | BB44: 36 | BC44: 2013 | BD44: 2013-09-02 | BE44: 2013-09-08
AX45: 37 | BA45: 201337 | BB45: 37 | BC45: 2013 | BD45: 2013-09-09 | BE45: 2013-09-15
AX46: 38 | BA46: 201338 | BB46: 38 | BC46: 2013 | BD46: 2013-09-16 | BE46: 2013-09-22
AX47: 39 | BA47: 201339 | BB47: 39 | BC47: 2013 | BD47: 2013-09-23 | BE47: 2013-09-29
AX48: 40 | BA48: 201340 | BB48: 40 | BC48: 2013 | BD48: 2013-09-30 | BE48: 2013-10-06
AX49: 41 | BA49: 201341 | BB49: 41 | BC49: 2013 | BD49: 2013-10-07 | BE49: 2013-10-13
AX50: 42 | BA50: 201342 | BB50: 42 | BC50: 2013 | BD50: 2013-10-14 | BE50: 2013-10-20
AX51: 43 | BA51: 201343 | BB51: 43 | BC51: 2013 | BD51: 2013-10-21 | BE51: 2013-10-27
AX52: 44 | BA52: 201344 | BB52: 44 | BC52: 2013 | BD52: 2013-10-28 | BE52: 2013-11-03
AX53: 45 | BA53: 201345 | BB53: 45 | BC53: 2013 | BD53: 2013-11-04 | BE53: 2013-11-10
AX54: 46 | BA54: 201346 | BB54: 46 | BC54: 2013 | BD54: 2013-11-11 | BE54: 2013-11-17
AX55: 47 | BA55: 201347 | BB55: 47 | BC55: 2013 | BD55: 2013-11-18 | BE55: 2013-11-24
AX56: 48 | BA56: 201348 | BB56: 48 | BC56: 2013 | BD56: 2013-11-25 | BE56: 2013-12-01
AX57: 49 | BA57: 201349 | BB57: 49 | BC57: 2013 | BD57: 2013-12-02 | BE57: 2013-12-08
AX58: 50 | BA58: 201350 | BB58: 50 | BC58: 2013 | BD58: 2013-12-09 | BE58: 2013-12-15
AX59: 51 | BA59: 201351 | BB59: 51 | BC59: 2013 | BD59: 2013-12-16 | BE59: 2013-12-22
AX60: 52 | BA60: 201352 | BB60: 52 | BC60: 2013 | BD60: 2013-12-23 | BE60: 2013-12-29
AX61: 53 | BA61: 20141 | BB61: 1 | BC61: 2014 | BD61: 2013-12-30 | BE61: 2014-01-05
AX62: 54 | BA62: 20142 | BB62: 2 | BC62: 2014 | BD62: 2014-01-06 | BE62: 2014-01-12
AX63: 55 | BA63: 20143 | BB63: 3 | BC63: 2014 | BD63: 2014-01-13 | BE63: 2014-01-19
AX64: 56 | BA64: 20144 | BB64: 4 | BC64: 2014 | BD64: 2014-01-20 | BE64: 2014-01-26
AX65: 57 | BA65: 20145 | BB65: 5 | BC65: 2014 | BD65: 2014-01-27 | BE65: 2014-02-02
AX66: 58 | BA66: 20146 | BB66: 6 | BC66: 2014 | BD66: 2014-02-03 | BE66: 2014-02-09
AX67: 59 | BA67: 20147 | BB67: 7 | BC67: 2014 | BD67: 2014-02-10 | BE67: 2014-02-16
AX68: 60 | BA68: 20148 | BB68: 8 | BC68: 2014 | BD68: 2014-02-17 | BE68: 2014-02-23
AX69: 61 | BA69: 20149 | BB69: 9 | BC69: 2014 | BD69: 2014-02-24 | BE69: 2014-03-02
AX70: 62 | BA70: 201410 | BB70: 10 | BC70: 2014 | BD70: 2014-03-03 | BE70: 2014-03-09
AX71: 63 | BA71: 201411 | BB71: 11 | BC71: 2014 | BD71: 2014-03-10 | BE71: 2014-03-16
AX72: 64 | BA72: 201412 | BB72: 12 | BC72: 2014 | BD72: 2014-03-17 | BE72: 2014-03-23
AX73: 65 | BA73: 201413 | BB73: 13 | BC73: 2014 | BD73: 2014-03-24 | BE73: 2014-03-30
AX74: 66 | BA74: 201414 | BB74: 14 | BC74: 2014 | BD74: 2014-03-31 | BE74: 2014-04-06
AX75: 67 | BA75: 201415 | BB75: 15 | BC75: 2014 | BD75: 2014-04-07 | BE75: 2014-04-13
AX76: 68 | BA76: 201416 | BB76: 16 | BC76: 2014 | BD76: 2014-04-14 | BE76: 2014-04-20
AX77: 69 | BA77: 201417 | BB77: 17 | BC77: 2014 | BD77: 2014-04-21 | BE77: 2014-04-27
AX78: 70 | BA78: 201418 | BB78: 18 | BC78: 2014 | BD78: 2014-04-28 | BE78: 2014-05-04
AX79: 71 | BA79: 201419 | BB79: 19 | BC79: 2014 | BD79: 2014-05-05 | BE79: 2014-05-11
AX80: 72 | BA80: 201420 | BB80: 20 | BC80: 2014 | BD80: 2014-05-12 | BE80: 2014-05-18
AX81: 73 | BA81: 201421 | BB81: 21 | BC81: 2014 | BD81: 2014-05-19 | BE81: 2014-05-25
AX82: 74 | BA82: 201422 | BB82: 22 | BC82: 2014 | BD82: 2014-05-26 | BE82: 2014-06-01
AX83: 75 | BA83: 201423 | BB83: 23 | BC83: 2014 | BD83: 2014-06-02 | BE83: 2014-06-08
AX84: 76 | BA84: 201424 | BB84: 24 | BC84: 2014 | BD84: 2014-06-09 | BE84: 2014-06-15
AX85: 77 | BA85: 201425 | BB85: 25 | BC85: 2014 | BD85: 2014-06-16 | BE85: 2014-06-22
AX86: 78 | BA86: 201426 | BB86: 26 | BC86: 2014 | BD86: 2014-06-23 | BE86: 2014-06-29
AX87: 79 | BA87: 201427 | BB87: 27 | BC87: 2014 | BD87: 2014-06-30 | BE87: 2014-07-06
AX88: 80 | BA88: 201428 | BB88: 28 | BC88: 2014 | BD88: 2014-07-07 | BE88: 2014-07-13
AX89: 81 | BA89: 201429 | BB89: 29 | BC89: 2014 | BD89: 2014-07-14 | BE89: 2014-07-20
AX90: 82 | BA90: 201430 | BB90: 30 | BC90: 2014 | BD90: 2014-07-21 | BE90: 2014-07-27
AX91: 83 | BA91: 201431 | BB91: 31 | BC91: 2014 | BD91: 2014-07-28 | BE91: 2014-08-03
AX92: 84 | BA92: 201432 | BB92: 32 | BC92: 2014 | BD92: 2014-08-04 | BE92: 2014-08-10
AX93: 85 | BA93: 201433 | BB93: 33 | BC93: 2014 | BD93: 2014-08-11 | BE93: 2014-08-17
AX94: 86 | BA94: 201434 | BB94: 34 | BC94: 2014 | BD94: 2014-08-18 | BE94: 2014-08-24
AX95: 87 | BA95: 201435 | BB95: 35 | BC95: 2014 | BD95: 2014-08-25 | BE95: 2014-08-31
AX96: 88 | BA96: 201436 | BB96: 36 | BC96: 2014 | BD96: 2014-09-01 | BE96: 2014-09-07
AX97: 89 | BA97: 201437 | BB97: 37 | BC97: 2014 | BD97: 2014-09-08 | BE97: 2014-09-14
AX98: 90 | BA98: 201438 | BB98: 38 | BC98: 2014 | BD98: 2014-09-15 | BE98: 2014-09-21
AX99: 91 | BA99: 201439 | BB99: 39 | BC99: 2014 | BD99: 2014-09-22 | BE99: 2014-09-28
AX100: 92 | BA100: 201440 | BB100: 40 | BC100: 2014 | BD100: 2014-09-29 | BE100: 2014-10-05
AX101: 93 | BA101: 201441 | BB101: 41 | BC101: 2014 | BD101: 2014-10-06 | BE101: 2014-10-12
AX102: 94 | BA102: 201442 | BB102: 42 | BC102: 2014 | BD102: 2014-10-13 | BE102: 2014-10-19
AX103: 95 | BA103: 201443 | BB103: 43 | BC103: 2014 | BD103: 2014-10-20 | BE103: 2014-10-26
AX104: 96 | BA104: 201444 | BB104: 44 | BC104: 2014 | BD104: 2014-10-27 | BE104: 2014-11-02
AX105: 97 | BA105: 201445 | BB105: 45 | BC105: 2014 | BD105: 2014-11-03 | BE105: 2014-11-09
AX106: 98 | BA106: 201446 | BB106: 46 | BC106: 2014 | BD106: 2014-11-10 | BE106: 2014-11-16
AX107: 99 | BA107: 201447 | BB107: 47 | BC107: 2014 | BD107: 2014-11-17 | BE107: 2014-11-23
AX108: 100 | BA108: 201448 | BB108: 48 | BC108: 2014 | BD108: 2014-11-24 | BE108: 2014-11-30
AX109: 101 | BA109: 201449 | BB109: 49 | BC109: 2014 | BD109: 2014-12-01 | BE109: 2014-12-07
AX110: 102 | BA110: 201450 | BB110: 50 | BC110: 2014 | BD110: 2014-12-08 | BE110: 2014-12-14
AX111: 103 | BA111: 201451 | BB111: 51 | BC111: 2014 | BD111: 2014-12-15 | BE111: 2014-12-21
AX112: 104 | BA112: 201452 | BB112: 52 | BC112: 2014 | BD112: 2014-12-22 | BE112: 2014-12-28
AX113: 105 | BA113: 20151 | BB113: 1 | BC113: 2015 | BD113: 2014-12-29 | BE113: 2015-01-04
AX114: 106 | BA114: 20152 | BB114: 2 | BC114: 2015 | BD114: 2015-01-05 | BE114: 2015-01-11
AX115: 107 | BA115: 20153 | BB115: 3 | BC115: 2015 | BD115: 2015-01-12 | BE115: 2015-01-18
AX116: 108 | BA116: 20154 | BB116: 4 | BC116: 2015 | BD116: 2015-01-19 | BE116: 2015-01-25
AX117: 109 | BA117: 20155 | BB117: 5 | BC117: 2015 | BD117: 2015-01-26 | BE117: 2015-02-01
AX118: 110 | BA118: 20156 | BB118: 6 | BC118: 2015 | BD118: 2015-02-02 | BE118: 2015-02-08
AX119: 111 | BA119: 20157 | BB119: 7 | BC119: 2015 | BD119: 2015-02-09 | BE119: 2015-02-15
AX120: 112 | BA120: 20158 | BB120: 8 | BC120: 2015 | BD120: 2015-02-16 | BE120: 2015-02-22
AX121: 113 | BA121: 20159 | BB121: 9 | BC121: 2015 | BD121: 2015-02-23 | BE121: 2015-03-01
AX122: 114 | BA122: 201510 | BB122: 10 | BC122: 2015 | BD122: 2015-03-02 | BE122: 2015-03-08
AX123: 115 | BA123: 201511 | BB123: 11 | BC123: 2015 | BD123: 2015-03-09 | BE123: 2015-03-15
AX124: 116 | BA124: 201512 | BB124: 12 | BC124: 2015 | BD124: 2015-03-16 | BE124: 2015-03-22
AX125: 117 | BA125: 201513 | BB125: 13 | BC125: 2015 | BD125: 2015-03-23 | BE125: 2015-03-29
AX126: 118 | BA126: 201514 | BB126: 14 | BC126: 2015 | BD126: 2015-03-30 | BE126: 2015-04-05
AX127: 119 | BA127: 201515 | BB127: 15 | BC127: 2015 | BD127: 2015-04-06 | BE127: 2015-04-12
AX128: 120 | BA128: 201516 | BB128: 16 | BC128: 2015 | BD128: 2015-04-13 | BE128: 2015-04-19
AX129: 121 | BA129: 201517 | BB129: 17 | BC129: 2015 | BD129: 2015-04-20 | BE129: 2015-04-26
AX130: 122 | BA130: 201518 | BB130: 18 | BC130: 2015 | BD130: 2015-04-27 | BE130: 2015-05-03
AX131: 123 | BA131: 201519 | BB131: 19 | BC131: 2015 | BD131: 2015-05-04 | BE131: 2015-05-10
AX132: 124 | BA132: 201520 | BB132: 20 | BC132: 2015 | BD132: 2015-05-11 | BE132: 2015-05-17
AX133: 125 | BA133: 201521 | BB133: 21 | BC133: 2015 | BD133: 2015-05-18 | BE133: 2015-05-24
AX134: 126 | BA134: 201522 | BB134: 22 | BC134: 2015 | BD134: 2015-05-25 | BE134: 2015-05-31
AX135: 127 | BA135: 201523 | BB135: 23 | BC135: 2015 | BD135: 2015-06-01 | BE135: 2015-06-07
AX136: 128 | BA136: 201524 | BB136: 24 | BC136: 2015 | BD136: 2015-06-08 | BE136: 2015-06-14
AX137: 129 | BA137: 201525 | BB137: 25 | BC137: 2015 | BD137: 2015-06-15 | BE137: 2015-06-21
AX138: 130 | BA138: 201526 | BB138: 26 | BC138: 2015 | BD138: 2015-06-22 | BE138: 2015-06-28
AX139: 131 | BA139: 201527 | BB139: 27 | BC139: 2015 | BD139: 2015-06-29 | BE139: 2015-07-05
AX140: 132 | BA140: 201528 | BB140: 28 | BC140: 2015 | BD140: 2015-07-06 | BE140: 2015-07-12
AX141: 133 | BA141: 201529 | BB141: 29 | BC141: 2015 | BD141: 2015-07-13 | BE141: 2015-07-19
AX142: 134 | BA142: 201530 | BB142: 30 | BC142: 2015 | BD142: 2015-07-20 | BE142: 2015-07-26
AX143: 135 | BA143: 201531 | BB143: 31 | BC143: 2015 | BD143: 2015-07-27 | BE143: 2015-08-02
AX144: 136 | BA144: 201532 | BB144: 32 | BC144: 2015 | BD144: 2015-08-03 | BE144: 2015-08-09
AX145: 137 | BA145: 201533 | BB145: 33 | BC145: 2015 | BD145: 2015-08-10 | BE145: 2015-08-16
AX146: 138 | BA146: 201534 | BB146: 34 | BC146: 2015 | BD146: 2015-08-17 | BE146: 2015-08-23
AX147: 139 | BA147: 201535 | BB147: 35 | BC147: 2015 | BD147: 2015-08-24 | BE147: 2015-08-30
AX148: 140 | BA148: 201536 | BB148: 36 | BC148: 2015 | BD148: 2015-08-31 | BE148: 2015-09-06
AX149: 141 | BA149: 201537 | BB149: 37 | BC149: 2015 | BD149: 2015-09-07 | BE149: 2015-09-13
AX150: 142 | BA150: 201538 | BB150: 38 | BC150: 2015 | BD150: 2015-09-14 | BE150: 2015-09-20
AX151: 143 | BA151: 201539 | BB151: 39 | BC151: 2015 | BD151: 2015-09-21 | BE151: 2015-09-27
AX152: 144 | BA152: 201540 | BB152: 40 | BC152: 2015 | BD152: 2015-09-28 | BE152: 2015-10-04
AX153: 145 | BA153: 201541 | BB153: 41 | BC153: 2015 | BD153: 2015-10-05 | BE153: 2015-10-11
AX154: 146 | BA154: 201542 | BB154: 42 | BC154: 2015 | BD154: 2015-10-12 | BE154: 2015-10-18
AX155: 147 | BA155: 201543 | BB155: 43 | BC155: 2015 | BD155: 2015-10-19 | BE155: 2015-10-25
AX156: 148 | BA156: 201544 | BB156: 44 | BC156: 2015 | BD156: 2015-10-26 | BE156: 2015-11-01
AX157: 149 | BA157: 201545 | BB157: 45 | BC157: 2015 | BD157: 2015-11-02 | BE157: 2015-11-08
AX158: 150 | BA158: 201546 | BB158: 46 | BC158: 2015 | BD158: 2015-11-09 | BE158: 2015-11-15
AX159: 151 | BA159: 201547 | BB159: 47 | BC159: 2015 | BD159: 2015-11-16 | BE159: 2015-11-22
AX160: 152 | BA160: 201548 | BB160: 48 | BC160: 2015 | BD160: 2015-11-23 | BE160: 2015-11-29
AX161: 153 | BA161: 201549 | BB161: 49 | BC161: 2015 | BD161: 2015-11-30 | BE161: 2015-12-06
AX162: 154 | BA162: 201550 | BB162: 50 | BC162: 2015 | BD162: 2015-12-07 | BE162: 2015-12-13
AX163: 155 | BA163: 201551 | BB163: 51 | BC163: 2015 | BD163: 2015-12-14 | BE163: 2015-12-20
AX164: 156 | BA164: 201552 | BB164: 52 | BC164: 2015 | BD164: 2015-12-21 | BE164: 2015-12-27
AX165: 157 | BA165: 20161 | BB165: 1 | BC165: 2016 | BD165: 2015-12-28 | BE165: 2016-01-03
AX166: 158 | BA166: 20162 | BB166: 2 | BC166: 2016 | BD166: 2016-01-04 | BE166: 2016-01-10
AX167: 159 | BA167: 20163 | BB167: 3 | BC167: 2016 | BD167: 2016-01-11 | BE167: 2016-01-17
AX168: 160 | BA168: 20164 | BB168: 4 | BC168: 2016 | BD168: 2016-01-18 | BE168: 2016-01-24
AX169: 161 | BA169: 20165 | BB169: 5 | BC169: 2016 | BD169: 2016-01-25 | BE169: 2016-01-31
AX170: 162 | BA170: 20166 | BB170: 6 | BC170: 2016 | BD170: 2016-02-01 | BE170: 2016-02-07
AX171: 163 | BA171: 20167 | BB171: 7 | BC171: 2016 | BD171: 2016-02-08 | BE171: 2016-02-14
AX172: 164 | BA172: 20168 | BB172: 8 | BC172: 2016 | BD172: 2016-02-15 | BE172: 2016-02-21
AX173: 165 | BA173: 20169 | BB173: 9 | BC173: 2016 | BD173: 2016-02-22 | BE173: 2016-02-28
AX174: 166 | BA174: 201610 | BB174: 10 | BC174: 2016 | BD174: 2016-02-29 | BE174: 2016-03-06
AX175: 167 | BA175: 201611 | BB175: 11 | BC175: 2016 | BD175: 2016-03-07 | BE175: 2016-03-13
AX176: 168 | BA176: 201612 | BB176: 12 | BC176: 2016 | BD176: 2016-03-14 | BE176: 2016-03-20
AX177: 169 | BA177: 201613 | BB177: 13 | BC177: 2016 | BD177: 2016-03-21 | BE177: 2016-03-27
AX178: 170 | BA178: 201614 | BB178: 14 | BC178: 2016 | BD178: 2016-03-28 | BE178: 2016-04-03
AX179: 171 | BA179: 201615 | BB179: 15 | BC179: 2016 | BD179: 2016-04-04 | BE179: 2016-04-10
AX180: 172 | BA180: 201616 | BB180: 16 | BC180: 2016 | BD180: 2016-04-11 | BE180: 2016-04-17
AX181: 173 | BA181: 201617 | BB181: 17 | BC181: 2016 | BD181: 2016-04-18 | BE181: 2016-04-24
AX182: 174 | BA182: 201618 | BB182: 18 | BC182: 2016 | BD182: 2016-04-25 | BE182: 2016-05-01
AX183: 175 | BA183: 201619 | BB183: 19 | BC183: 2016 | BD183: 2016-05-02 | BE183: 2016-05-08
AX184: 176 | BA184: 201620 | BB184: 20 | BC184: 2016 | BD184: 2016-05-09 | BE184: 2016-05-15
AX185: 177 | BA185: 201621 | BB185: 21 | BC185: 2016 | BD185: 2016-05-16 | BE185: 2016-05-22
AX186: 178 | BA186: 201622 | BB186: 22 | BC186: 2016 | BD186: 2016-05-23 | BE186: 2016-05-29
AX187: 179 | BA187: 201623 | BB187: 23 | BC187: 2016 | BD187: 2016-05-30 | BE187: 2016-06-05
AX188: 180 | BA188: 201624 | BB188: 24 | BC188: 2016 | BD188: 2016-06-06 | BE188: 2016-06-12
AX189: 181 | BA189: 201625 | BB189: 25 | BC189: 2016 | BD189: 2016-06-13 | BE189: 2016-06-19
AX190: 182 | BA190: 201626 | BB190: 26 | BC190: 2016 | BD190: 2016-06-20 | BE190: 2016-06-26
AX191: 183 | BA191: 201627 | BB191: 27 | BC191: 2016 | BD191: 2016-06-27 | BE191: 2016-07-03
AX192: 184 | BA192: 201628 | BB192: 28 | BC192: 2016 | BD192: 2016-07-04 | BE192: 2016-07-10
AX193: 185 | BA193: 201629 | BB193: 29 | BC193: 2016 | BD193: 2016-07-11 | BE193: 2016-07-17
AX194: 186 | BA194: 201630 | BB194: 30 | BC194: 2016 | BD194: 2016-07-18 | BE194: 2016-07-24
AX195: 187 | BA195: 201631 | BB195: 31 | BC195: 2016 | BD195: 2016-07-25 | BE195: 2016-07-31
AX196: 188 | BA196: 201632 | BB196: 32 | BC196: 2016 | BD196: 2016-08-01 | BE196: 2016-08-07
AX197: 189 | BA197: 201633 | BB197: 33 | BC197: 2016 | BD197: 2016-08-08 | BE197: 2016-08-14
AX198: 190 | BA198: 201634 | BB198: 34 | BC198: 2016 | BD198: 2016-08-15 | BE198: 2016-08-21
AX199: 191 | BA199: 201635 | BB199: 35 | BC199: 2016 | BD199: 2016-08-22 | BE199: 2016-08-28
AX200: 192 | BA200: 201636 | BB200: 36 | BC200: 2016 | BD200: 2016-08-29 | BE200: 2016-09-04
AX201: 193 | BA201: 201637 | BB201: 37 | BC201: 2016 | BD201: 2016-09-05 | BE201: 2016-09-11
AX202: 194 | BA202: 201638 | BB202: 38 | BC202: 2016 | BD202: 2016-09-12 | BE202: 2016-09-18
AX203: 195 | BA203: 201639 | BB203: 39 | BC203: 2016 | BD203: 2016-09-19 | BE203: 2016-09-25
AX204: 196 | BA204: 201640 | BB204: 40 | BC204: 2016 | BD204: 2016-09-26 | BE204: 2016-10-02
AX205: 197 | BA205: 201641 | BB205: 41 | BC205: 2016 | BD205: 2016-10-03 | BE205: 2016-10-09
AX206: 198 | BA206: 201642 | BB206: 42 | BC206: 2016 | BD206: 2016-10-10 | BE206: 2016-10-16
... 828 more rows
